Body,Body Name,Date Paid,Transaction Number,Amount,Supplier Name,Supplier ID,Supplier post code (first 4 digits),Directorate,Service Area,General Ledger code Description,BVACOP class,Revenue/ Capital Spend
http://statistics.data.gov.uk/id/local-authority/00HY,Wiltshire Council,30/05/2013,1901046843,306.25,3663,113090,L40 ,Children & Education,PDCMelksham,Catering,Supplies and Services,REVENUE
http://statistics.data.gov.uk/id/local-authority/00HY,Wiltshire Council,16/05/2013,5106302023,303.68,3663,113090,L40 ,Children & Education,PDCMelksham,Vending costs,Supplies and Services,REVENUE
http://statistics.data.gov.uk/id/local-authority/00HY,Wiltshire Council,02/05/2013,5106302024,335.95,3663,113090,L40 ,Children & Education,PDCMelksham,Vending costs,Supplies and Services,REVENUE
http://statistics.data.gov.uk/id/local-authority/00HY,Wiltshire Council,09/05/2013,1901045695,368.00,1st Choice Cabs ,101285,SP4 ,Children & Education,Community Team South,Transport Contracts,Third Party Payments,REVENUE
http://statistics.data.gov.uk/id/local-authority/00HY,Wiltshire Council,09/05/2013,1901045696,1263.82,1st Choice Cabs ,101285,SP4 ,Community Services,CTPLD County CIC U65,Transport Contracts,Third Party Payments,REVENUE
http://statistics.data.gov.uk/id/local-authority/00HY,Wiltshire Council,09/05/2013,1901045699,1365.42,1st Choice Cabs ,101285,SP4 ,Community Services,CTPLD County CIC U65,Transport Contracts,Third Party Payments,REVENUE
http://statistics.data.gov.uk/id/local-authority/00HY,Wiltshire Council,09/05/2013,1901045700,702.10,1st Choice Cabs ,101285,SP4 ,Neighbourhood & Planning,Mainstream Primary,Transport Contracts,Third Party Payments,REVENUE
http://statistics.data.gov.uk/id/local-authority/00HY,Wiltshire Council,09/05/2013,1901045704,600.55,1st Choice Cabs ,101285,SP4 ,Neighbourhood & Planning,Mainstream Secondary,Transport Contracts,Third Party Payments,REVENUE
http://statistics.data.gov.uk/id/local-authority/00HY,Wiltshire Council,09/05/2013,1901045704,2402.16,1st Choice Cabs ,101285,SP4 ,Children & Education,SENTransport,Transport Contracts,Third Party Payments,REVENUE
http://statistics.data.gov.uk/id/local-authority/00HY,Wiltshire Council,09/05/2013,1901045403,950.00,1st Choice Stairlifts ,113095,SN11,Wiltshire Council,Wiltshire Council,Payments to Contractors - Other,Third Party Payments,CAPITAL
http://statistics.data.gov.uk/id/local-authority/00HY,Wiltshire Council,16/05/2013,1901056009,1148.73,1st Choice Stairlifts ,113095,SN11,Wiltshire Council,Wiltshire Council,Payments to Contractors - Other,Third Party Payments,CAPITAL
http://statistics.data.gov.uk/id/local-authority/00HY,Wiltshire Council,24/05/2013,1901059005,3945.00,1st Choice Stairlifts ,113095,SN11,Wiltshire Council,Wiltshire Council,Payments to Contractors - Other,Third Party Payments,CAPITAL
http://statistics.data.gov.uk/id/local-authority/00HY,Wiltshire Council,24/05/2013,1901059131,4270.00,1st Choice Stairlifts ,113095,SN11,Wiltshire Council,Wiltshire Council,Payments to Contractors - Other,Third Party Payments,CAPITAL
http://statistics.data.gov.uk/id/local-authority/00HY,Wiltshire Council,08/05/2013,5106303634,2328.68,2 Care UK Ltd ,110002,BH7 ,Community Services,MH AOWA South,Adult Residential Placements - Spot Purchase,Third Party Payments,REVENUE
http://statistics.data.gov.uk/id/local-authority/00HY,Wiltshire Council,08/05/2013,5106306060,1191.80,2 Care UK Ltd ,110002,BH7 ,Community Services,MH OP North Locality,Adult Residential Placements - Spot Purchase,Third Party Payments,REVENUE
http://statistics.data.gov.uk/id/local-authority/00HY,Wiltshire Council,08/05/2013,5106306061,1191.80,2 Care UK Ltd ,110002,BH7 ,Community Services,Section 117-PCT Clnt,Adult Residential Placements - Spot Purchase,Third Party Payments,REVENUE
http://statistics.data.gov.uk/id/local-authority/00HY,Wiltshire Council,08/05/2013,5106302996,6096.68,22 Wingfield ,129621,BA14,Community Services,CTPLD County CIC U65,Adult Residential Placements - Spot Purchase,Third Party Payments,REVENUE
http://statistics.data.gov.uk/id/local-authority/00HY,Wiltshire Council,08/05/2013,5106303141,5552.16,22 Wingfield ,129621,BA14,Community Services,MH AOWA West,Adult Residential Placements - Spot Purchase,Third Party Payments,REVENUE
http://statistics.data.gov.uk/id/local-authority/00HY,Wiltshire Council,08/05/2013,5106303256,4947.00,22 Wingfield ,129621,BA14,Community Services,PI West Locality,Adult Residential Placements - Spot Purchase,Third Party Payments,REVENUE
http://statistics.data.gov.uk/id/local-authority/00HY,Wiltshire Council,08/05/2013,5106303321,7250.72,22 Wingfield ,129621,BA14,Community Services,CTPLD County CIC U65,Adult Residential Placements - Spot Purchase,Third Party Payments,REVENUE
http://statistics.data.gov.uk/id/local-authority/00HY,Wiltshire Council,23/05/2013,1901058888,275.64,24-7 Taxis ,101087,BA12,Children & Education,BehaviourSuppCore,Transport Contracts,Third Party Payments,REVENUE
http://statistics.data.gov.uk/id/local-authority/00HY,Wiltshire Council,23/05/2013,1901058888,925.41,24-7 Taxis ,101087,BA12,Children & Education,SENTransport,Transport Contracts,Third Party Payments,REVENUE
http://statistics.data.gov.uk/id/local-authority/00HY,Wiltshire Council,09/05/2013,1901045702,453.33,2get2 Taxi Services Ltd ,101102,SP1 ,Neighbourhood & Planning,Mainstream Secondary,Transport Contracts,Third Party Payments,REVENUE
http://statistics.data.gov.uk/id/local-authority/00HY,Wiltshire Council,09/05/2013,1901045702,906.67,2get2 Taxi Services Ltd ,101102,SP1 ,Children & Education,SENTransport,Transport Contracts,Third Party Payments,REVENUE
http://statistics.data.gov.uk/id/local-authority/00HY,Wiltshire Council,10/05/2013,1901045986,764.12,A  and  S Private Hire ,101115,SN15,Children & Education,SENTransport,Transport Contracts,Third Party Payments,REVENUE
http://statistics.data.gov.uk/id/local-authority/00HY,Wiltshire Council,10/05/2013,5106307887,304.32,A & T Salisbury (Ltd) ,134373,SP1 ,Community Services,OP South Locality,Adult Domiciliary Care - Spot Contribution,Income,REVENUE
http://statistics.data.gov.uk/id/local-authority/00HY,Wiltshire Council,31/05/2013,5106315993,420.00,A & T Salisbury (Ltd) ,134373,SP1 ,Community Services,MH OP South Locality,Adult Domiciliary Care - Spot,Third Party Payments,REVENUE
http://statistics.data.gov.uk/id/local-authority/00HY,Wiltshire Council,31/05/2013,5106316129,497.43,A & T Salisbury (Ltd) ,134373,SP1 ,Community Services,PI South Locality,Adult Domiciliary Care - Spot Contribution,Income,REVENUE
http://statistics.data.gov.uk/id/local-authority/00HY,Wiltshire Council,14/05/2013,1901046826,563.89,A B Taxis Ltd ,100945,SN12,Neighbourhood & Planning,Mainstream Secondary,Transport Contracts,Third Party Payments,REVENUE
http://statistics.data.gov.uk/id/local-authority/00HY,Wiltshire Council,14/05/2013,1901046832,510.00,A B Taxis Ltd ,100945,SN12,Community Services,CTPLD County CIC U65,Transport Contracts,Third Party Payments,REVENUE
http://statistics.data.gov.uk/id/local-authority/00HY,Wiltshire Council,21/05/2013,1901042327,266.04,A C E Supplies ,126284,BA15,Resources,WTP Office,Preventative Property Maintenance,Premises Related,REVENUE
http://statistics.data.gov.uk/id/local-authority/00HY,Wiltshire Council,22/05/2013,5106311816,499.00,A C S ,113156,SN12,Resources,Revs & Bens - Fraud,Publications / periodicals,Supplies and Services,REVENUE
http://statistics.data.gov.uk/id/local-authority/00HY,Wiltshire Council,22/05/2013,5106311816,998.00,A C S ,113156,SN12,Resources,Revs&Bens-Housng Ben,Publications / periodicals,Supplies and Services,REVENUE
http://statistics.data.gov.uk/id/local-authority/00HY,Wiltshire Council,22/05/2013,5106311816,998.00,A C S ,113156,SN12,Resources,Revs&Bens-Revenues,Publications / periodicals,Supplies and Services,REVENUE
http://statistics.data.gov.uk/id/local-authority/00HY,Wiltshire Council,14/05/2013,5106310273,1187.00,A E Smith   Son ,110014,SN3 ,Resources,CoronerGeneral,Body Removals,Supplies and Services,REVENUE
http://statistics.data.gov.uk/id/local-authority/00HY,Wiltshire Council,20/05/2013,1901056956,997.50,A G Minibuses ,100878,BA12,Neighbourhood & Planning,Mainstream Primary,Transport Contracts,Third Party Payments,REVENUE
http://statistics.data.gov.uk/id/local-authority/00HY,Wiltshire Council,20/05/2013,1901056956,1588.52,A G Minibuses ,100878,BA12,Neighbourhood & Planning,Public Transport,Transport Contracts,Third Party Payments,REVENUE
http://statistics.data.gov.uk/id/local-authority/00HY,Wiltshire Council,20/05/2013,1901056956,3857.11,A G Minibuses ,100878,BA12,Neighbourhood & Planning,Connect 2 Wiltshire,Transport Contracts,Third Party Payments,REVENUE
http://statistics.data.gov.uk/id/local-authority/00HY,Wiltshire Council,20/05/2013,1901056967,12906.47,A G Minibuses ,100878,BA12,Neighbourhood & Planning,Connect 2 Wiltshire,Transport Contracts,Third Party Payments,REVENUE
http://statistics.data.gov.uk/id/local-authority/00HY,Wiltshire Council,24/05/2013,1901059149,787.30,A G Minibuses ,100878,BA12,Community Services,CTPLD County CIC U65,Transport Contracts,Third Party Payments,REVENUE
http://statistics.data.gov.uk/id/local-authority/00HY,Wiltshire Council,24/05/2013,1901059149,1019.83,A G Minibuses ,100878,BA12,Community Services,PI East Locality,Transport Contracts,Third Party Payments,REVENUE
http://statistics.data.gov.uk/id/local-authority/00HY,Wiltshire Council,24/05/2013,1901059150,485.87,A G Minibuses ,100878,BA12,Community Services,CTPLD County CIC U65,Transport Contracts,Third Party Payments,REVENUE
http://statistics.data.gov.uk/id/local-authority/00HY,Wiltshire Council,24/05/2013,1901059152,251.93,A G Minibuses ,100878,BA12,Community Services,PI East Locality,Transport Contracts,Third Party Payments,REVENUE
http://statistics.data.gov.uk/id/local-authority/00HY,Wiltshire Council,24/05/2013,1901059153,2100.17,A G Minibuses ,100878,BA12,Community Services,CTPLD County CIC U65,Transport Contracts,Third Party Payments,REVENUE
http://statistics.data.gov.uk/id/local-authority/00HY,Wiltshire Council,29/05/2013,1901061420,1830.40,A G Minibuses ,100878,BA12,Neighbourhood & Planning,Mainstream Primary,Transport Contracts,Third Party Payments,REVENUE
http://statistics.data.gov.uk/id/local-authority/00HY,Wiltshire Council,30/05/2013,1901062273,1926.10,A G Minibuses ,100878,BA12,Children & Education,SENTransport,Transport Contracts,Third Party Payments,REVENUE
http://statistics.data.gov.uk/id/local-authority/00HY,Wiltshire Council,30/05/2013,1901062274,1941.76,A G Minibuses ,100878,BA12,Children & Education,SENTransport,Transport Contracts,Third Party Payments,REVENUE
http://statistics.data.gov.uk/id/local-authority/00HY,Wiltshire Council,30/05/2013,1901062275,1788.47,A G Minibuses ,100878,BA12,Neighbourhood & Planning,Mainstream Primary,Transport Contracts,Third Party Payments,REVENUE
http://statistics.data.gov.uk/id/local-authority/00HY,Wiltshire Council,30/05/2013,1901062276,769.80,A G Minibuses ,100878,BA12,Neighbourhood & Planning,Mainstream Primary,Transport Contracts,Third Party Payments,REVENUE
http://statistics.data.gov.uk/id/local-authority/00HY,Wiltshire Council,30/05/2013,1901062277,814.22,A G Minibuses ,100878,BA12,Neighbourhood & Planning,Mainstream Primary,Transport Contracts,Third Party Payments,REVENUE
http://statistics.data.gov.uk/id/local-authority/00HY,Wiltshire Council,30/05/2013,1901062277,1628.44,A G Minibuses ,100878,BA12,Children & Education,SENTransport,Transport Contracts,Third Party Payments,REVENUE
http://statistics.data.gov.uk/id/local-authority/00HY,Wiltshire Council,30/05/2013,1901062278,632.61,A G Minibuses ,100878,BA12,Neighbourhood & Planning,Mainstream Secondary,Transport Contracts,Third Party Payments,REVENUE
http://statistics.data.gov.uk/id/local-authority/00HY,Wiltshire Council,30/05/2013,1901062279,261.38,A G Minibuses ,100878,BA12,Neighbourhood & Planning,SEN Rechargable Exp,Transport Contracts,Third Party Payments,REVENUE
http://statistics.data.gov.uk/id/local-authority/00HY,Wiltshire Council,30/05/2013,1901062279,1306.87,A G Minibuses ,100878,BA12,Children & Education,SENTransport,Transport Contracts,Third Party Payments,REVENUE
http://statistics.data.gov.uk/id/local-authority/00HY,Wiltshire Council,30/05/2013,1901062284,1496.17,A G Minibuses ,100878,BA12,Children & Education,SENTransport,Transport Contracts,Third Party Payments,REVENUE
http://statistics.data.gov.uk/id/local-authority/00HY,Wiltshire Council,30/05/2013,1901062286,381.84,A G Minibuses ,100878,BA12,Neighbourhood & Planning,Mainstream Primary,Transport Contracts,Third Party Payments,REVENUE
http://statistics.data.gov.uk/id/local-authority/00HY,Wiltshire Council,30/05/2013,1901062286,1622.80,A G Minibuses ,100878,BA12,Children & Education,SENTransport,Transport Contracts,Third Party Payments,REVENUE
http://statistics.data.gov.uk/id/local-authority/00HY,Wiltshire Council,02/05/2013,1901043915,1559.58,A M S Taxis ,100839,BA14,Children & Education,SENTransport,Transport Contracts,Third Party Payments,REVENUE
http://statistics.data.gov.uk/id/local-authority/00HY,Wiltshire Council,15/05/2013,1901055527,1086.16,A M S Taxis ,100839,BA14,Children & Education,SENTransport,Transport Contracts,Third Party Payments,REVENUE
http://statistics.data.gov.uk/id/local-authority/00HY,Wiltshire Council,13/05/2013,1901046285,327.48,A P Taxis ,100628,SN12,Children & Education,LAC & 16+ Team 1,Transport Contracts,Third Party Payments,REVENUE
http://statistics.data.gov.uk/id/local-authority/00HY,Wiltshire Council,13/05/2013,1901046287,2467.86,A P Taxis ,100628,SN12,Children & Education,SENTransport,Transport Contracts,Third Party Payments,REVENUE
http://statistics.data.gov.uk/id/local-authority/00HY,Wiltshire Council,13/05/2013,1901046289,528.70,A P Taxis ,100628,SN12,Children & Education,SENTransport,Transport Contracts,Third Party Payments,REVENUE
http://statistics.data.gov.uk/id/local-authority/00HY,Wiltshire Council,13/05/2013,1901046293,455.00,A P Taxis ,100628,SN12,Children & Education,LAC & 16+ Team 2,Transport Contracts,Third Party Payments,REVENUE
http://statistics.data.gov.uk/id/local-authority/00HY,Wiltshire Council,13/05/2013,1901046294,706.30,A P Taxis ,100628,SN12,Neighbourhood & Planning,SEN Rechargable Exp,Transport Contracts,Third Party Payments,REVENUE
http://statistics.data.gov.uk/id/local-authority/00HY,Wiltshire Council,01/05/2013,5106295623,435.30,A S A Awards Scheme ,110020,B98 ,Neighbourhood & Planning,Five Rivers,Traded Goods Expenses,Supplies and Services,REVENUE
http://statistics.data.gov.uk/id/local-authority/00HY,Wiltshire Council,08/05/2013,1901039128,459.00,A Semeraro ,100112,BA14,Resources,WTP Office,Preventative Property Maintenance,Premises Related,REVENUE
http://statistics.data.gov.uk/id/local-authority/00HY,Wiltshire Council,20/05/2013,1901041428,495.80,A Semeraro ,100112,BA14,Resources,WTP Office,Preventative Property Maintenance,Premises Related,REVENUE
http://statistics.data.gov.uk/id/local-authority/00HY,Wiltshire Council,07/05/2013,1901044512,1436.50,A1 Cab Company ,101233,SP4 ,Children & Education,SENTransport,Transport Contracts,Third Party Payments,REVENUE
http://statistics.data.gov.uk/id/local-authority/00HY,Wiltshire Council,07/05/2013,1901044521,687.25,A1 Cab Company ,101233,SP4 ,Children & Education,Community Team South,Transport Contracts,Third Party Payments,REVENUE
http://statistics.data.gov.uk/id/local-authority/00HY,Wiltshire Council,07/05/2013,1901044522,1056.00,A1 Cab Company ,101233,SP4 ,Neighbourhood & Planning,Mainstream Primary,Transport Contracts,Third Party Payments,REVENUE
http://statistics.data.gov.uk/id/local-authority/00HY,Wiltshire Council,07/05/2013,1901044292,5458.08,A2 Winchester Ltd ,101167,SO23,Neighbourhood & Planning,HousingStrategy,Payments to Contractors - Other,Third Party Payments,REVENUE
http://statistics.data.gov.uk/id/local-authority/00HY,Wiltshire Council,07/05/2013,1901044392,10916.16,A2 Winchester Ltd ,101167,SO23,Neighbourhood & Planning,HousingStrategy,Payments to Contractors - Other,Third Party Payments,REVENUE
http://statistics.data.gov.uk/id/local-authority/00HY,Wiltshire Council,14/05/2013,1901046500,10916.16,A2 Winchester Ltd ,101167,SO23,Neighbourhood & Planning,HousingStrategy,Payments to Contractors - Other,Third Party Payments,REVENUE
http://statistics.data.gov.uk/id/local-authority/00HY,Wiltshire Council,15/05/2013,1901047281,762.27,A4 Stationers ,136360,SN16,Neighbourhood & Planning,Neighbourhood Planng,Other Professional Fees,Supplies and Services,REVENUE
http://statistics.data.gov.uk/id/local-authority/00HY,Wiltshire Council,15/05/2013,5106310423,600.00,AAH Accounting ,135783,BA14,Neighbourhood & Planning,A4W Flex Supp ES3c,Grants Paid to individuals for Tangible Benefits,Supplies and Services,REVENUE
http://statistics.data.gov.uk/id/local-authority/00HY,Wiltshire Council,13/05/2013,5106298319,1100.00,Aareon Uk Ltd ,113252,CV8 ,Wiltshire Council,Wiltshire Council,ICT - Support arrangements,Supplies and Services,CAPITAL
http://statistics.data.gov.uk/id/local-authority/00HY,Wiltshire Council,13/05/2013,5106298360,2200.00,Aareon Uk Ltd ,113252,CV8 ,Wiltshire Council,Wiltshire Council,ICT - Support arrangements,Supplies and Services,CAPITAL
http://statistics.data.gov.uk/id/local-authority/00HY,Wiltshire Council,13/05/2013,5106298361,425.00,Aareon Uk Ltd ,113252,CV8 ,Wiltshire Council,Wiltshire Council,ICT - Support arrangements,Supplies and Services,CAPITAL
http://statistics.data.gov.uk/id/local-authority/00HY,Wiltshire Council,28/05/2013,5106310713,950.00,Aareon Uk Ltd ,113252,CV8 ,Wiltshire Council,Wiltshire Council,ICT - Support arrangements,Supplies and Services,CAPITAL
http://statistics.data.gov.uk/id/local-authority/00HY,Wiltshire Council,28/05/2013,5106310714,750.00,Aareon Uk Ltd ,113252,CV8 ,Wiltshire Council,Wiltshire Council,ICT - Support arrangements,Supplies and Services,CAPITAL
http://statistics.data.gov.uk/id/local-authority/00HY,Wiltshire Council,13/05/2013,1901046307,865.26,Abbey Taxis (Swindon) Ltd ,100920,SN2 ,Neighbourhood & Planning,Mainstream Primary,Transport Contracts,Third Party Payments,REVENUE
http://statistics.data.gov.uk/id/local-authority/00HY,Wiltshire Council,13/05/2013,1901046318,1636.08,Abbey Taxis (Swindon) Ltd ,100920,SN2 ,Children & Education,SENTransport,Transport Contracts,Third Party Payments,REVENUE
http://statistics.data.gov.uk/id/local-authority/00HY,Wiltshire Council,13/05/2013,1901046322,1876.92,Abbey Taxis (Swindon) Ltd ,100920,SN2 ,Children & Education,SENTransport,Transport Contracts,Third Party Payments,REVENUE
http://statistics.data.gov.uk/id/local-authority/00HY,Wiltshire Council,14/05/2013,1901046778,279.45,Abbey Taxis (Swindon) Ltd ,100920,SN2 ,Community Services,OP East Locality,Transport Contracts,Third Party Payments,REVENUE
http://statistics.data.gov.uk/id/local-authority/00HY,Wiltshire Council,14/05/2013,1901046781,1950.72,Abbey Taxis (Swindon) Ltd ,100920,SN2 ,Children & Education,SENTransport,Transport Contracts,Third Party Payments,REVENUE
http://statistics.data.gov.uk/id/local-authority/00HY,Wiltshire Council,14/05/2013,1901046782,1130.34,Abbey Taxis (Swindon) Ltd ,100920,SN2 ,Children & Education,SENTransport,Transport Contracts,Third Party Payments,REVENUE
http://statistics.data.gov.uk/id/local-authority/00HY,Wiltshire Council,14/05/2013,1901046784,738.92,Abbey Taxis (Swindon) Ltd ,100920,SN2 ,Neighbourhood & Planning,Mainstream Secondary,Transport Contracts,Third Party Payments,REVENUE
http://statistics.data.gov.uk/id/local-authority/00HY,Wiltshire Council,14/05/2013,1901046785,518.40,Abbey Taxis (Swindon) Ltd ,100920,SN2 ,Children & Education,SENTransport,Transport Contracts,Third Party Payments,REVENUE
http://statistics.data.gov.uk/id/local-authority/00HY,Wiltshire Council,14/05/2013,1901046790,302.80,Abbey Taxis (Swindon) Ltd ,100920,SN2 ,Neighbourhood & Planning,Mainstream 16+ FE,Transport Contracts,Third Party Payments,REVENUE
http://statistics.data.gov.uk/id/local-authority/00HY,Wiltshire Council,14/05/2013,1901046792,375.53,Abbey Taxis (Swindon) Ltd ,100920,SN2 ,Neighbourhood & Planning,Mainstream Primary,Transport Contracts,Third Party Payments,REVENUE
http://statistics.data.gov.uk/id/local-authority/00HY,Wiltshire Council,15/05/2013,1901055500,786.59,Abbey Taxis (Swindon) Ltd ,100920,SN2 ,Neighbourhood & Planning,Mainstream Primary,Transport Contracts,Third Party Payments,REVENUE
http://statistics.data.gov.uk/id/local-authority/00HY,Wiltshire Council,15/05/2013,1901055504,1061.44,Abbey Taxis (Swindon) Ltd ,100920,SN2 ,Children & Education,SENTransport,Transport Contracts,Third Party Payments,REVENUE
http://statistics.data.gov.uk/id/local-authority/00HY,Wiltshire Council,13/05/2013,1901046306,492.32,Abbey Taxis Ltd ,101080,BA2 ,Neighbourhood & Planning,Mainstream Secondary,Transport Contracts,Third Party Payments,REVENUE
http://statistics.data.gov.uk/id/local-authority/00HY,Wiltshire Council,13/05/2013,1901046320,491.98,Abbey Taxis Ltd ,101080,BA2 ,Neighbourhood & Planning,Mainstream Secondary,Transport Contracts,Third Party Payments,REVENUE
http://statistics.data.gov.uk/id/local-authority/00HY,Wiltshire Council,08/05/2013,5106303461,1930.48,Abbeyfield Greensted Residential Ho ,135852,ME2 ,Community Services,OP North Locality,Adult Residential Placements - Spot Purchase,Third Party Payments,REVENUE
http://statistics.data.gov.uk/id/local-authority/00HY,Wiltshire Council,03/05/2013,5106302298,293.08,Abicare Services Ltd Homecare ,110031,SP2 ,Community Services,CTPLD County CIC U65,Adult Domiciliary Care - Spot,Third Party Payments,REVENUE
http://statistics.data.gov.uk/id/local-authority/00HY,Wiltshire Council,03/05/2013,5106302299,289.46,Abicare Services Ltd Homecare ,110031,SP2 ,Community Services,CTPLD County CIC U65,Adult Domiciliary Care - Spot,Third Party Payments,REVENUE
http://statistics.data.gov.uk/id/local-authority/00HY,Wiltshire Council,07/05/2013,5106303912,771.19,Abicare Services Ltd Homecare ,110031,SP2 ,Community Services,MH OP South Locality,Adult Domiciliary Care - Live in Care,Third Party Payments,REVENUE
http://statistics.data.gov.uk/id/local-authority/00HY,Wiltshire Council,07/05/2013,5106303952,274.31,Abicare Services Ltd Homecare ,110031,SP2 ,Community Services,CTPLD County CIC U65,Adult Domiciliary Care - Spot,Third Party Payments,REVENUE
http://statistics.data.gov.uk/id/local-authority/00HY,Wiltshire Council,08/05/2013,5106306717,372.83,Abicare Services Ltd Homecare ,110031,SP2 ,Community Services,PI South Locality,Adult Domiciliary Care - Spot Contribution,Income,REVENUE
http://statistics.data.gov.uk/id/local-authority/00HY,Wiltshire Council,08/05/2013,5106306718,358.74,Abicare Services Ltd Homecare ,110031,SP2 ,Community Services,OP West Locality,Adult Domiciliary Care - Spot,Third Party Payments,REVENUE
http://statistics.data.gov.uk/id/local-authority/00HY,Wiltshire Council,09/05/2013,5106307586,763.84,Abicare Services Ltd Homecare ,110031,SP2 ,Community Services,PI South Locality,Adult Domiciliary Care - Block,Third Party Payments,REVENUE
http://statistics.data.gov.uk/id/local-authority/00HY,Wiltshire Council,09/05/2013,5106307586,2338.75,Abicare Services Ltd Homecare ,110031,SP2 ,Community Services,OP South Locality,Adult Domiciliary Care - Block,Third Party Payments,REVENUE
http://statistics.data.gov.uk/id/local-authority/00HY,Wiltshire Council,09/05/2013,5106307589,2890.32,Abicare Services Ltd Homecare ,110031,SP2 ,Community Services,OP South Locality,Adult Domiciliary Care - Spot,Third Party Payments,REVENUE
http://statistics.data.gov.uk/id/local-authority/00HY,Wiltshire Council,09/05/2013,5106307592,354.42,Abicare Services Ltd Homecare ,110031,SP2 ,Community Services,PI South Locality,Adult Domiciliary Care - Block Contribution,Income,REVENUE
http://statistics.data.gov.uk/id/local-authority/00HY,Wiltshire Council,09/05/2013,5106307594,354.42,Abicare Services Ltd Homecare ,110031,SP2 ,Community Services,PI South Locality,Adult Domiciliary Care - Spot Contribution,Income,REVENUE
http://statistics.data.gov.uk/id/local-authority/00HY,Wiltshire Council,10/05/2013,5106307991,793.41,Abicare Services Ltd Homecare ,110031,SP2 ,Community Services,OP West Locality,Adult Domiciliary Care - Mileage,Third Party Payments,REVENUE
http://statistics.data.gov.uk/id/local-authority/00HY,Wiltshire Council,14/05/2013,5106310169,289.46,Abicare Services Ltd Homecare ,110031,SP2 ,Community Services,CTPLD County CIC U65,Adult Domiciliary Care - Spot,Third Party Payments,REVENUE
http://statistics.data.gov.uk/id/local-authority/00HY,Wiltshire Council,15/05/2013,5106310430,793.41,Abicare Services Ltd Homecare ,110031,SP2 ,Community Services,OP West Locality,Adult Domiciliary Care - Mileage,Third Party Payments,REVENUE
http://statistics.data.gov.uk/id/local-authority/00HY,Wiltshire Council,15/05/2013,5106310431,358.74,Abicare Services Ltd Homecare ,110031,SP2 ,Community Services,OP West Locality,Adult Domiciliary Care - Spot,Third Party Payments,REVENUE
http://statistics.data.gov.uk/id/local-authority/00HY,Wiltshire Council,15/05/2013,5106310436,463.49,Abicare Services Ltd Homecare ,110031,SP2 ,Community Services,PI South Locality,Adult Domiciliary Care - Spot Contribution,Income,REVENUE
http://statistics.data.gov.uk/id/local-authority/00HY,Wiltshire Council,20/05/2013,5106311346,358.74,Abicare Services Ltd Homecare ,110031,SP2 ,Community Services,OP West Locality,Adult Domiciliary Care - Spot,Third Party Payments,REVENUE
http://statistics.data.gov.uk/id/local-authority/00HY,Wiltshire Council,20/05/2013,5106311358,793.41,Abicare Services Ltd Homecare ,110031,SP2 ,Community Services,OP West Locality,Adult Domiciliary Care - Mileage,Third Party Payments,REVENUE
http://statistics.data.gov.uk/id/local-authority/00HY,Wiltshire Council,20/05/2013,5106311377,289.46,Abicare Services Ltd Homecare ,110031,SP2 ,Community Services,CTPLD County CIC U65,Adult Domiciliary Care - Spot,Third Party Payments,REVENUE
http://statistics.data.gov.uk/id/local-authority/00HY,Wiltshire Council,20/05/2013,5106311383,463.49,Abicare Services Ltd Homecare ,110031,SP2 ,Community Services,PI South Locality,Adult Domiciliary Care - Spot Contribution,Income,REVENUE
http://statistics.data.gov.uk/id/local-authority/00HY,Wiltshire Council,22/05/2013,5106311857,488.23,Abicare Services Ltd Homecare ,110031,SP2 ,Community Services,PI South Locality,Adult Domiciliary Care - Spot Contribution,Income,REVENUE
http://statistics.data.gov.uk/id/local-authority/00HY,Wiltshire Council,22/05/2013,5106311859,886.73,Abicare Services Ltd Homecare ,110031,SP2 ,Community Services,OP West Locality,Adult Domiciliary Care - Mileage,Third Party Payments,REVENUE
http://statistics.data.gov.uk/id/local-authority/00HY,Wiltshire Council,22/05/2013,5106311862,403.49,Abicare Services Ltd Homecare ,110031,SP2 ,Community Services,OP West Locality,Adult Domiciliary Care - Spot,Third Party Payments,REVENUE
http://statistics.data.gov.uk/id/local-authority/00HY,Wiltshire Council,29/05/2013,5106314298,341.89,Abicare Services Ltd Homecare ,110031,SP2 ,Community Services,CTPLD County CIC U65,Adult Domiciliary Care - Spot,Third Party Payments,REVENUE
http://statistics.data.gov.uk/id/local-authority/00HY,Wiltshire Council,29/05/2013,5106314357,422.76,Abicare Services Ltd Homecare ,110031,SP2 ,Community Services,PI South Locality,Adult Domiciliary Care - Spot,Third Party Payments,REVENUE
http://statistics.data.gov.uk/id/local-authority/00HY,Wiltshire Council,29/05/2013,5106314357,4556.53,Abicare Services Ltd Homecare ,110031,SP2 ,Community Services,OP South Locality,Adult Domiciliary Care - Spot,Third Party Payments,REVENUE
http://statistics.data.gov.uk/id/local-authority/00HY,Wiltshire Council,29/05/2013,5106314359,307.05,Abicare Services Ltd Homecare ,110031,SP2 ,Community Services,MH AOWA South,Adult Domiciliary Care - Spot,Third Party Payments,REVENUE
http://statistics.data.gov.uk/id/local-authority/00HY,Wiltshire Council,31/05/2013,5106316046,289.46,Abicare Services Ltd Homecare ,110031,SP2 ,Community Services,CTPLD County CIC U65,Adult Domiciliary Care - Spot,Third Party Payments,REVENUE
http://statistics.data.gov.uk/id/local-authority/00HY,Wiltshire Council,31/05/2013,5106316163,793.41,Abicare Services Ltd Homecare ,110031,SP2 ,Community Services,OP West Locality,Adult Domiciliary Care - Mileage,Third Party Payments,REVENUE
http://statistics.data.gov.uk/id/local-authority/00HY,Wiltshire Council,31/05/2013,5106316164,358.74,Abicare Services Ltd Homecare ,110031,SP2 ,Community Services,OP West Locality,Adult Domiciliary Care - Spot,Third Party Payments,REVENUE
http://statistics.data.gov.uk/id/local-authority/00HY,Wiltshire Council,31/05/2013,5106316165,441.21,Abicare Services Ltd Homecare ,110031,SP2 ,Community Services,PI South Locality,Adult Domiciliary Care - Spot Contribution,Income,REVENUE
http://statistics.data.gov.uk/id/local-authority/00HY,Wiltshire Council,03/05/2013,5106298677,776.77,Abicare Services Ltd Live in Care. ,113071,SP2 ,Community Services,MH OP East Locality,Adult Domiciliary care - Live in contribution,Income,REVENUE
http://statistics.data.gov.uk/id/local-authority/00HY,Wiltshire Council,10/05/2013,5106298678,776.77,Abicare Services Ltd Live in Care. ,113071,SP2 ,Community Services,MH OP East Locality,Adult Domiciliary care - Live in contribution,Income,REVENUE
http://statistics.data.gov.uk/id/local-authority/00HY,Wiltshire Council,17/05/2013,5106303913,776.77,Abicare Services Ltd Live in Care. ,113071,SP2 ,Community Services,MH OP East Locality,Adult Domiciliary care - Live in contribution,Income,REVENUE
http://statistics.data.gov.uk/id/local-authority/00HY,Wiltshire Council,07/05/2013,5106303914,543.51,Abicare Services Ltd Live in Care. ,113071,SP2 ,Community Services,MH OP South Locality,Adult Domiciliary care - Live in contribution,Income,REVENUE
http://statistics.data.gov.uk/id/local-authority/00HY,Wiltshire Council,10/05/2013,5106307858,543.51,Abicare Services Ltd Live in Care. ,113071,SP2 ,Community Services,MH OP South Locality,Adult Domiciliary care - Live in contribution,Income,REVENUE
http://statistics.data.gov.uk/id/local-authority/00HY,Wiltshire Council,31/05/2013,5106307859,776.77,Abicare Services Ltd Live in Care. ,113071,SP2 ,Community Services,MH OP East Locality,Adult Domiciliary care - Live in contribution,Income,REVENUE
http://statistics.data.gov.uk/id/local-authority/00HY,Wiltshire Council,10/05/2013,5106307988,713.30,Abicare Services Ltd Live in Care. ,113071,SP2 ,Community Services,OP South Locality,Adult Domiciliary Care - Live in Care,Third Party Payments,REVENUE
http://statistics.data.gov.uk/id/local-authority/00HY,Wiltshire Council,10/05/2013,5106307989,713.30,Abicare Services Ltd Live in Care. ,113071,SP2 ,Community Services,OP South Locality,Adult Domiciliary Care - Live in Care,Third Party Payments,REVENUE
http://statistics.data.gov.uk/id/local-authority/00HY,Wiltshire Council,24/05/2013,5106308006,776.77,Abicare Services Ltd Live in Care. ,113071,SP2 ,Community Services,MH OP East Locality,Adult Domiciliary care - Live in contribution,Income,REVENUE
http://statistics.data.gov.uk/id/local-authority/00HY,Wiltshire Council,10/05/2013,5106308007,543.51,Abicare Services Ltd Live in Care. ,113071,SP2 ,Community Services,MH OP South Locality,Adult Domiciliary care - Live in contribution,Income,REVENUE
http://statistics.data.gov.uk/id/local-authority/00HY,Wiltshire Council,15/05/2013,5106310228,713.30,Abicare Services Ltd Live in Care. ,113071,SP2 ,Community Services,OP South Locality,Adult Domiciliary Care - Live in Care,Third Party Payments,REVENUE
http://statistics.data.gov.uk/id/local-authority/00HY,Wiltshire Council,20/05/2013,5106311360,713.30,Abicare Services Ltd Live in Care. ,113071,SP2 ,Community Services,OP South Locality,Adult Domiciliary Care - Live in Care,Third Party Payments,REVENUE
http://statistics.data.gov.uk/id/local-authority/00HY,Wiltshire Council,23/05/2013,5106312629,402.09,Abicare Services Ltd Live in Care. ,113071,SP2 ,Community Services,OP East Locality,Adult Domiciliary care - Live in contribution,Income,REVENUE
http://statistics.data.gov.uk/id/local-authority/00HY,Wiltshire Council,24/05/2013,5106312670,402.09,Abicare Services Ltd Live in Care. ,113071,SP2 ,Community Services,OP East Locality,Adult Domiciliary care - Live in contribution,Income,REVENUE
http://statistics.data.gov.uk/id/local-authority/00HY,Wiltshire Council,31/05/2013,5106314230,402.09,Abicare Services Ltd Live in Care. ,113071,SP2 ,Community Services,OP East Locality,Adult Domiciliary care - Live in contribution,Income,REVENUE
http://statistics.data.gov.uk/id/local-authority/00HY,Wiltshire Council,29/05/2013,5106314289,543.51,Abicare Services Ltd Live in Care. ,113071,SP2 ,Community Services,MH OP South Locality,Adult Domiciliary care - Live in contribution,Income,REVENUE
http://statistics.data.gov.uk/id/local-authority/00HY,Wiltshire Council,29/05/2013,5106314290,771.19,Abicare Services Ltd Live in Care. ,113071,SP2 ,Community Services,MH OP South Locality,Adult Domiciliary Care - Live in Care,Third Party Payments,REVENUE
http://statistics.data.gov.uk/id/local-authority/00HY,Wiltshire Council,29/05/2013,5106314293,771.19,Abicare Services Ltd Live in Care. ,113071,SP2 ,Community Services,MH OP South Locality,Adult Domiciliary Care - Live in Care,Third Party Payments,REVENUE
http://statistics.data.gov.uk/id/local-authority/00HY,Wiltshire Council,29/05/2013,5106314355,713.30,Abicare Services Ltd Live in Care. ,113071,SP2 ,Community Services,OP South Locality,Adult Domiciliary Care - Live in Care,Third Party Payments,REVENUE
http://statistics.data.gov.uk/id/local-authority/00HY,Wiltshire Council,31/05/2013,5106316125,713.30,Abicare Services Ltd Live in Care. ,113071,SP2 ,Community Services,OP South Locality,Adult Domiciliary Care - Live in Care,Third Party Payments,REVENUE
http://statistics.data.gov.uk/id/local-authority/00HY,Wiltshire Council,08/05/2013,5106303164,6254.92,Ability Associates Ltd ,110033,SP3 ,Community Services,CTPLD County CIC U65,Adult Residential Placements - Spot Purchase,Third Party Payments,REVENUE
http://statistics.data.gov.uk/id/local-authority/00HY,Wiltshire Council,08/05/2013,5106303391,6446.80,Ability Associates Ltd ,110033,SP3 ,Community Services,CTPLD County CIC U65,Adult Residential Placements - Spot Purchase,Third Party Payments,REVENUE
http://statistics.data.gov.uk/id/local-authority/00HY,Wiltshire Council,08/05/2013,5106303577,5555.48,Ability Associates Ltd ,110033,SP3 ,Community Services,CTPLD County CIC U65,Adult Residential Placements - Spot Purchase,Third Party Payments,REVENUE
http://statistics.data.gov.uk/id/local-authority/00HY,Wiltshire Council,08/05/2013,5106303695,3320.72,Ability Associates Ltd ,110033,SP3 ,Community Services,CTPLD County CIC U65,Supported Living - Without SP payments,Third Party Payments,REVENUE
http://statistics.data.gov.uk/id/local-authority/00HY,Wiltshire Council,08/05/2013,5106303739,3852.04,Ability Associates Ltd ,110033,SP3 ,Community Services,CTPLD County CIC U65,Supported Living - Without SP payments,Third Party Payments,REVENUE
http://statistics.data.gov.uk/id/local-authority/00HY,Wiltshire Council,07/05/2013,1901044329,843.84,ABLE ,101029,BA14,Community Services,MH Commissioned Cont,Payments to Contractors - Other,Third Party Payments,REVENUE
http://statistics.data.gov.uk/id/local-authority/00HY,Wiltshire Council,07/05/2013,1901044330,613.70,ABLE ,101029,BA14,Community Services,MH Commissioned Cont,Payments to Contractors - Other,Third Party Payments,REVENUE
http://statistics.data.gov.uk/id/local-authority/00HY,Wiltshire Council,07/05/2013,1901044429,1687.67,ABLE ,101029,BA14,Community Services,MH Commissioned Cont,Payments to Contractors - Other,Third Party Payments,REVENUE
http://statistics.data.gov.uk/id/local-authority/00HY,Wiltshire Council,07/05/2013,1901044430,1227.40,ABLE ,101029,BA14,Community Services,MH Commissioned Cont,Payments to Contractors - Other,Third Party Payments,REVENUE
http://statistics.data.gov.uk/id/local-authority/00HY,Wiltshire Council,14/05/2013,1901046537,1687.67,ABLE ,101029,BA14,Community Services,MH Commissioned Cont,Payments to Contractors - Other,Third Party Payments,REVENUE
http://statistics.data.gov.uk/id/local-authority/00HY,Wiltshire Council,14/05/2013,1901046538,1227.40,ABLE ,101029,BA14,Community Services,MH Commissioned Cont,Payments to Contractors - Other,Third Party Payments,REVENUE
http://statistics.data.gov.uk/id/local-authority/00HY,Wiltshire Council,08/05/2013,5106303696,425.32,ABLE ,101029,BA14,Community Services,MH AOWA North,Supported Living - Without SP payments,Third Party Payments,REVENUE
http://statistics.data.gov.uk/id/local-authority/00HY,Wiltshire Council,08/05/2013,5106303697,425.32,ABLE ,101029,BA14,Community Services,MH PCT Section 256,Adult Domiciliary Care - Spot,Third Party Payments,REVENUE
http://statistics.data.gov.uk/id/local-authority/00HY,Wiltshire Council,08/05/2013,5106303014,2963.12,ABLE ,110034,BA14,Community Services,MH PCT Section 256,Adult Residential Placements - Spot Purchase,Third Party Payments,REVENUE
http://statistics.data.gov.uk/id/local-authority/00HY,Wiltshire Council,08/05/2013,5106303149,2949.20,ABLE ,110034,BA14,Community Services,MH AOWA West,Adult Residential Placements - Spot Purchase,Third Party Payments,REVENUE
http://statistics.data.gov.uk/id/local-authority/00HY,Wiltshire Council,08/05/2013,5106303186,2344.24,ABLE ,110034,BA14,Community Services,MH PCT Section 256,Adult Residential Placements - Spot Purchase,Third Party Payments,REVENUE
http://statistics.data.gov.uk/id/local-authority/00HY,Wiltshire Council,08/05/2013,5106303190,2797.60,ABLE ,110034,BA14,Community Services,MH PCT Section 256,Adult Residential Placements - Spot Purchase,Third Party Payments,REVENUE
http://statistics.data.gov.uk/id/local-authority/00HY,Wiltshire Council,08/05/2013,5106303194,2506.68,ABLE ,110034,BA14,Community Services,MH PCT Section 256,Adult Residential Placements - Spot Purchase,Third Party Payments,REVENUE
http://statistics.data.gov.uk/id/local-authority/00HY,Wiltshire Council,08/05/2013,5106303274,2527.04,ABLE ,110034,BA14,Community Services,MH PCT Section 256,Adult Residential Placements - Spot Purchase,Third Party Payments,REVENUE
http://statistics.data.gov.uk/id/local-authority/00HY,Wiltshire Council,08/05/2013,5106306161,2872.56,ABLE ,110034,BA14,Community Services,MH AOWA West,Adult Residential Placements - Spot Purchase,Third Party Payments,REVENUE
http://statistics.data.gov.uk/id/local-authority/00HY,Wiltshire Council,17/05/2013,5106311206,3000.00,ABLE ,110034,BA14,Community Services,MH AOWA West,Adult Residential Placements - Spot Purchase,Third Party Payments,REVENUE
http://statistics.data.gov.uk/id/local-authority/00HY,Wiltshire Council,23/05/2013,5106312859,361.66,Ablemove ,110035,TA6 ,Community Services,OP Central Holding,Premises Related Other Maintenance Costs,Premises Related,REVENUE
http://statistics.data.gov.uk/id/local-authority/00HY,Wiltshire Council,08/05/2013,1901030065,10181.47,AC  and  MS Ltd ,101175,SS8 ,Resources,Fire Extinguishers,Preventative Property Maintenance,Premises Related,REVENUE
http://statistics.data.gov.uk/id/local-authority/00HY,Wiltshire Council,08/05/2013,1901030066,499.69,AC  and  MS Ltd ,101175,SS8 ,Resources,WTP Office,Preventative Property Maintenance,Premises Related,REVENUE
http://statistics.data.gov.uk/id/local-authority/00HY,Wiltshire Council,10/05/2013,1901030067,950.00,AC  and  MS Ltd ,101175,SS8 ,Resources,Primary Schools,Preventative Property Maintenance,Premises Related,REVENUE
http://statistics.data.gov.uk/id/local-authority/00HY,Wiltshire Council,10/05/2013,1901030068,1460.00,AC  and  MS Ltd ,101175,SS8 ,Resources,Primary Schools,Preventative Property Maintenance,Premises Related,REVENUE
http://statistics.data.gov.uk/id/local-authority/00HY,Wiltshire Council,10/05/2013,1901030104,1450.00,AC  and  MS Ltd ,101175,SS8 ,Resources,Primary Schools,Preventative Property Maintenance,Premises Related,REVENUE
http://statistics.data.gov.uk/id/local-authority/00HY,Wiltshire Council,01/05/2013,1901039151,1847.63,AC  and  MS Ltd ,101175,SS8 ,Neighbourhood & Planning,DTEL Dept Balance Sh,Preventative Property Maintenance,Premises Related,REVENUE
http://statistics.data.gov.uk/id/local-authority/00HY,Wiltshire Council,30/05/2013,1901045095,794.63,AC  and  MS Ltd ,101175,SS8 ,Wiltshire Council,Wiltshire Council,Buildings Minor Alterations,Premises Related,CAPITAL
http://statistics.data.gov.uk/id/local-authority/00HY,Wiltshire Council,30/05/2013,1901045096,794.63,AC  and  MS Ltd ,101175,SS8 ,Wiltshire Council,Wiltshire Council,Buildings Minor Alterations,Premises Related,CAPITAL
http://statistics.data.gov.uk/id/local-authority/00HY,Wiltshire Council,30/05/2013,1901045097,619.13,AC  and  MS Ltd ,101175,SS8 ,Wiltshire Council,Wiltshire Council,Buildings Minor Alterations,Premises Related,CAPITAL
http://statistics.data.gov.uk/id/local-authority/00HY,Wiltshire Council,30/05/2013,1901045099,600.00,AC  and  MS Ltd ,101175,SS8 ,Wiltshire Council,Wiltshire Council,Buildings Minor Alterations,Premises Related,CAPITAL
http://statistics.data.gov.uk/id/local-authority/00HY,Wiltshire Council,30/05/2013,1901045101,721.13,AC  and  MS Ltd ,101175,SS8 ,Wiltshire Council,Wiltshire Council,Buildings Minor Alterations,Premises Related,CAPITAL
http://statistics.data.gov.uk/id/local-authority/00HY,Wiltshire Council,15/05/2013,1901046852,341.25,AC  and  MS Ltd ,101175,SS8 ,Wiltshire Council,Wiltshire Council,Buildings Minor Alterations,Premises Related,CAPITAL
http://statistics.data.gov.uk/id/local-authority/00HY,Wiltshire Council,10/05/2013,5106295874,725.00,AC  and  MS Ltd ,101175,SS8 ,Wiltshire Council,Wiltshire Council,Premises Related Other Maintenance Costs,Premises Related,CAPITAL
http://statistics.data.gov.uk/id/local-authority/00HY,Wiltshire Council,10/05/2013,5106297302,3641.00,AC  and  MS Ltd ,101175,SS8 ,Wiltshire Council,Wiltshire Council,Premises Related Other Maintenance Costs,Premises Related,CAPITAL
http://statistics.data.gov.uk/id/local-authority/00HY,Wiltshire Council,08/05/2013,5106300004,8320.00,AC  and  MS Ltd ,101175,SS8 ,Wiltshire Council,Wiltshire Council,Premises Related Other Maintenance Costs,Premises Related,CAPITAL
http://statistics.data.gov.uk/id/local-authority/00HY,Wiltshire Council,08/05/2013,5106300005,510.00,AC  and  MS Ltd ,101175,SS8 ,Wiltshire Council,Wiltshire Council,Premises Related Other Maintenance Costs,Premises Related,CAPITAL
http://statistics.data.gov.uk/id/local-authority/00HY,Wiltshire Council,08/05/2013,5106300006,8460.00,AC  and  MS Ltd ,101175,SS8 ,Wiltshire Council,Wiltshire Council,Premises Related Other Maintenance Costs,Premises Related,CAPITAL
http://statistics.data.gov.uk/id/local-authority/00HY,Wiltshire Council,17/05/2013,5106307570,3974.00,Access Care Ltd ,110037,SP10,Community Services,OP West Locality,Adult Domiciliary Care - Live in Care,Third Party Payments,REVENUE
http://statistics.data.gov.uk/id/local-authority/00HY,Wiltshire Council,17/05/2013,5106308005,2956.00,Access Care Ltd ,110037,SP10,Community Services,PI East Locality,Adult Domiciliary care - Live in contribution,Income,REVENUE
http://statistics.data.gov.uk/id/local-authority/00HY,Wiltshire Council,31/05/2013,5106316008,3685.88,Access Care Ltd ,110037,SP10,Community Services,OP West Locality,Adult Domiciliary care - Live in contribution,Income,REVENUE
http://statistics.data.gov.uk/id/local-authority/00HY,Wiltshire Council,31/05/2013,5106316010,2810.76,Access Care Ltd ,110037,SP10,Community Services,PI East Locality,Adult Domiciliary care - Live in contribution,Income,REVENUE
http://statistics.data.gov.uk/id/local-authority/00HY,Wiltshire Council,13/05/2013,5106297460,280.00,Access Keyway Locksmiths ,117217,SN10,Neighbourhood & Planning,Fleet Operations,Vehicle 3rd Party Repairs,Transport Related,REVENUE
http://statistics.data.gov.uk/id/local-authority/00HY,Wiltshire Council,03/05/2013,5106296413,480.00,Acer Tree Surgeons Ltd ,113296,BA13,Neighbourhood & Planning,Woodland & Tree Mtc,Grounds Maintenance,Premises Related,REVENUE
http://statistics.data.gov.uk/id/local-authority/00HY,Wiltshire Council,17/05/2013,5106302374,605.00,Acer Tree Surgeons Ltd ,113296,BA13,Neighbourhood & Planning,Woodland & Tree Mtc,Grounds Maintenance,Premises Related,REVENUE
http://statistics.data.gov.uk/id/local-authority/00HY,Wiltshire Council,17/05/2013,5106302377,300.00,Acer Tree Surgeons Ltd ,113296,BA13,Neighbourhood & Planning,Woodland & Tree Mtc,Grounds Maintenance,Premises Related,REVENUE
http://statistics.data.gov.uk/id/local-authority/00HY,Wiltshire Council,02/05/2013,5106302380,450.00,Acer Tree Surgeons Ltd ,113296,BA13,Neighbourhood & Planning,Woodland & Tree Mtc,Grounds Maintenance,Premises Related,REVENUE
http://statistics.data.gov.uk/id/local-authority/00HY,Wiltshire Council,02/05/2013,5106302383,305.00,Acer Tree Surgeons Ltd ,113296,BA13,Neighbourhood & Planning,Woodland & Tree Mtc,Grounds Maintenance,Premises Related,REVENUE
http://statistics.data.gov.uk/id/local-authority/00HY,Wiltshire Council,28/05/2013,5106310704,350.00,Acer Tree Surgeons Ltd ,113296,BA13,Neighbourhood & Planning,Woodland & Tree Mtc,Grounds Maintenance,Premises Related,REVENUE
http://statistics.data.gov.uk/id/local-authority/00HY,Wiltshire Council,28/05/2013,5106310707,400.00,Acer Tree Surgeons Ltd ,113296,BA13,Neighbourhood & Planning,Woodland & Tree Mtc,Grounds Maintenance,Premises Related,REVENUE
http://statistics.data.gov.uk/id/local-authority/00HY,Wiltshire Council,16/05/2013,5106310711,1500.00,Acer Tree Surgeons Ltd ,113296,BA13,Neighbourhood & Planning,Woodland & Tree Mtc,Grounds Maintenance,Premises Related,REVENUE
http://statistics.data.gov.uk/id/local-authority/00HY,Wiltshire Council,03/05/2013,5106302366,1074.20,Acorn Industrial Doors ,113301,BS37,Neighbourhood & Planning,Fleet Operations,Equipment Maintenance,Supplies and Services,REVENUE
http://statistics.data.gov.uk/id/local-authority/00HY,Wiltshire Council,24/05/2013,5106312769,272.00,Acorn Industrial Doors ,113301,BS37,Neighbourhood & Planning,Fleet Operations,Equipment Maintenance,Supplies and Services,REVENUE
http://statistics.data.gov.uk/id/local-authority/00HY,Wiltshire Council,03/05/2013,1901044244,1663.50,Action on Addiction ,110046,SP3 ,Community Services,(9)ResPlacementsCIC,Adult Residential Placements - Substance Misuse,Third Party Payments,REVENUE
http://statistics.data.gov.uk/id/local-authority/00HY,Wiltshire Council,03/05/2013,1901044245,5000.00,Action on Addiction ,110046,SP3 ,Community Services,(9)ResPlacementsCIC,Adult Residential Placements - Substance Misuse,Third Party Payments,REVENUE
http://statistics.data.gov.uk/id/local-authority/00HY,Wiltshire Council,07/05/2013,1901044256,676.80,Action on Addiction ,110046,SP3 ,Community Services,(9)ResPlacementsCIC,Adult Residential Placements - Substance Misuse,Third Party Payments,REVENUE
http://statistics.data.gov.uk/id/local-authority/00HY,Wiltshire Council,07/05/2013,1901044259,330.00,Action on Addiction ,110046,SP3 ,Community Services,(9)ResPlacementsCIC,Adult Residential Placements - Substance Misuse,Third Party Payments,REVENUE
http://statistics.data.gov.uk/id/local-authority/00HY,Wiltshire Council,28/05/2013,5106310199,3241.50,Action on Addiction ,125931,SW4 ,Community Services,(9)ResPlacementsCIC,Adult Residential Place - Substance Misuse Cont,Income,REVENUE
http://statistics.data.gov.uk/id/local-authority/00HY,Wiltshire Council,08/05/2013,5106303082,5059.64,Action on Hearing Loss ,112215,EC1Y,Community Services,OP North Locality,Adult Residential Placements - Spot Purchase,Third Party Payments,REVENUE
http://statistics.data.gov.uk/id/local-authority/00HY,Wiltshire Council,08/05/2013,5106303220,5956.96,Action on Hearing Loss ,112215,EC1Y,Community Services,PI South Locality,Adult Residential Placements - Spot Purchase,Third Party Payments,REVENUE
http://statistics.data.gov.uk/id/local-authority/00HY,Wiltshire Council,14/05/2013,5106310325,8340.40,Action on Hearing Loss ,112215,EC1Y,Community Services,PI South Locality,Supported Living - Without SP payments,Third Party Payments,REVENUE
http://statistics.data.gov.uk/id/local-authority/00HY,Wiltshire Council,14/05/2013,5106310326,8340.40,Action on Hearing Loss ,112215,EC1Y,Community Services,PI South Locality,Supported Living - Without SP payments,Third Party Payments,REVENUE
http://statistics.data.gov.uk/id/local-authority/00HY,Wiltshire Council,14/05/2013,5106310327,5212.75,Action on Hearing Loss ,112215,EC1Y,Community Services,PI South Locality,Supported Living - Without SP payments,Third Party Payments,REVENUE
http://statistics.data.gov.uk/id/local-authority/00HY,Wiltshire Council,14/05/2013,5106310328,4170.20,Action on Hearing Loss ,112215,EC1Y,Community Services,PI South Locality,Supported Living - Without SP payments,Third Party Payments,REVENUE
http://statistics.data.gov.uk/id/local-authority/00HY,Wiltshire Council,14/05/2013,5106310329,4170.20,Action on Hearing Loss ,112215,EC1Y,Community Services,PI South Locality,Supported Living - Without SP payments,Third Party Payments,REVENUE
http://statistics.data.gov.uk/id/local-authority/00HY,Wiltshire Council,09/05/2013,5106296422,431.46,Action on Hearing Loss ,120413,PE2 ,Neighbourhood & Planning,DevConCent,Other Professional Fees,Supplies and Services,REVENUE
http://statistics.data.gov.uk/id/local-authority/00HY,Wiltshire Council,17/05/2013,5106311126,1362.52,Action on Hearing Loss ,120413,PE2 ,Community Services,Hearing & Vision,Client Aids and Adaptations,Third Party Payments,REVENUE
http://statistics.data.gov.uk/id/local-authority/00HY,Wiltshire Council,28/05/2013,5106313086,555.38,Action on Hearing Loss ,120413,PE2 ,Neighbourhood & Planning,DevConCent,Internal Training Costs,Employee Related,REVENUE
http://statistics.data.gov.uk/id/local-authority/00HY,Wiltshire Council,21/05/2013,1901057189,1100.00,Active Assisstance ,131584,TN13,Community Services,DCS Dept Balance Sht,DCS Holding Account,Balance Sheet Accounts,REVENUE
http://statistics.data.gov.uk/id/local-authority/00HY,Wiltshire Council,24/05/2013,1901057206,1100.00,Active Assisstance ,131584,TN13,Community Services,DCS Dept Balance Sht,DCS Holding Account,Balance Sheet Accounts,REVENUE
http://statistics.data.gov.uk/id/local-authority/00HY,Wiltshire Council,21/05/2013,1901057207,1100.00,Active Assisstance ,131584,TN13,Community Services,DCS Dept Balance Sht,DCS Holding Account,Balance Sheet Accounts,REVENUE
http://statistics.data.gov.uk/id/local-authority/00HY,Wiltshire Council,09/05/2013,5106296140,265.00,Adams Morey Ltd ,110053,SP2 ,Neighbourhood & Planning,Fleet Operations,Vehicle Oil & Consumables,Transport Related,REVENUE
http://statistics.data.gov.uk/id/local-authority/00HY,Wiltshire Council,01/05/2013,5106296364,630.31,Adams Morey Ltd ,110053,SP2 ,Neighbourhood & Planning,Fleet Operations,Vehicle Parts,Transport Related,REVENUE
http://statistics.data.gov.uk/id/local-authority/00HY,Wiltshire Council,03/05/2013,5106296660,408.80,Adams Morey Ltd ,110053,SP2 ,Neighbourhood & Planning,Fleet Operations,Vehicle Parts,Transport Related,REVENUE
http://statistics.data.gov.uk/id/local-authority/00HY,Wiltshire Council,02/05/2013,5106296661,1313.22,Adams Morey Ltd ,110053,SP2 ,Neighbourhood & Planning,Fleet Operations,Vehicle Parts,Transport Related,REVENUE
http://statistics.data.gov.uk/id/local-authority/00HY,Wiltshire Council,15/05/2013,5106297434,1461.66,Adams Morey Ltd ,110053,SP2 ,Neighbourhood & Planning,Fleet Operations,Vehicle Parts,Transport Related,REVENUE
http://statistics.data.gov.uk/id/local-authority/00HY,Wiltshire Council,13/05/2013,5106297447,333.38,Adams Morey Ltd ,110053,SP2 ,Neighbourhood & Planning,Fleet Operations,Vehicle Parts,Transport Related,REVENUE
http://statistics.data.gov.uk/id/local-authority/00HY,Wiltshire Council,20/05/2013,5106311313,368.67,Adams Morey Ltd ,110053,SP2 ,Neighbourhood & Planning,Fleet Operations,Vehicle Parts,Transport Related,REVENUE
http://statistics.data.gov.uk/id/local-authority/00HY,Wiltshire Council,22/05/2013,5106311845,793.41,Adams Morey Ltd ,110053,SP2 ,Neighbourhood & Planning,Fleet Operations,Vehicle 3rd Party Repairs,Transport Related,REVENUE
http://statistics.data.gov.uk/id/local-authority/00HY,Wiltshire Council,31/05/2013,5106311865,653.47,Adams Morey Ltd ,110053,SP2 ,Neighbourhood & Planning,Fleet Operations,Vehicle Parts,Transport Related,REVENUE
http://statistics.data.gov.uk/id/local-authority/00HY,Wiltshire Council,22/05/2013,5106311866,411.58,Adams Morey Ltd ,110053,SP2 ,Neighbourhood & Planning,Fleet Operations,Vehicle Parts,Transport Related,REVENUE
http://statistics.data.gov.uk/id/local-authority/00HY,Wiltshire Council,09/05/2013,5106302551,495.00,ADASS [London] ,125245,SW1P,Resources,Corporate Directors,Staff Training Course Costs,Employee Related,REVENUE
http://statistics.data.gov.uk/id/local-authority/00HY,Wiltshire Council,09/05/2013,1901045341,4457.00,Adiemus Care Limited - Ravenscroft ,132154,HA1 ,Community Services,FNC,Adult Care Funded Nursing Care - Out of County Cli,Third Party Payments,REVENUE
http://statistics.data.gov.uk/id/local-authority/00HY,Wiltshire Council,14/05/2013,1901046701,2200.00,Adiemus Care Limited - Ravenscroft ,132154,HA1 ,Community Services,STARR Scheme,Adult Nursing Placements - transitional beds,Third Party Payments,REVENUE
http://statistics.data.gov.uk/id/local-authority/00HY,Wiltshire Council,14/05/2013,1901046702,2600.00,Adiemus Care Limited - Ravenscroft ,132154,HA1 ,Community Services,STARR Scheme,Adult Nursing Placements - transitional beds,Third Party Payments,REVENUE
http://statistics.data.gov.uk/id/local-authority/00HY,Wiltshire Council,14/05/2013,1901046703,2600.00,Adiemus Care Limited - Ravenscroft ,132154,HA1 ,Community Services,STARR Scheme,Adult Nursing Placements - transitional beds,Third Party Payments,REVENUE
http://statistics.data.gov.uk/id/local-authority/00HY,Wiltshire Council,14/05/2013,1901046704,1300.00,Adiemus Care Limited - Ravenscroft ,132154,HA1 ,Community Services,STARR Scheme,Adult Nursing Placements - transitional beds,Third Party Payments,REVENUE
http://statistics.data.gov.uk/id/local-authority/00HY,Wiltshire Council,14/05/2013,1901046706,1114.29,Adiemus Care Limited - Ravenscroft ,132154,HA1 ,Community Services,STARR Scheme,Adult Nursing Placements - transitional beds,Third Party Payments,REVENUE
http://statistics.data.gov.uk/id/local-authority/00HY,Wiltshire Council,20/05/2013,1901057001,2600.00,Adiemus Care Limited - Ravenscroft ,132154,HA1 ,Community Services,STARR Scheme,Adult Nursing Placements - transitional beds,Third Party Payments,REVENUE
http://statistics.data.gov.uk/id/local-authority/00HY,Wiltshire Council,08/05/2013,5106302665,2072.84,Adiemus Care Limited - Ravenscroft ,132154,HA1 ,Community Services,OP West Locality,Adult Care Nursing Placements- Spot Purchase,Third Party Payments,REVENUE
http://statistics.data.gov.uk/id/local-authority/00HY,Wiltshire Council,08/05/2013,5106302666,439.16,Adiemus Care Limited - Ravenscroft ,132154,HA1 ,Community Services,OP West FNC,Adult Care Funded Nursing Care - Loal Auth Clients,Third Party Payments,REVENUE
http://statistics.data.gov.uk/id/local-authority/00HY,Wiltshire Council,08/05/2013,5106302738,2086.40,Adiemus Care Limited - Ravenscroft ,132154,HA1 ,Community Services,OP West Locality,Adult Care Nursing Placements- Spot Purchase,Third Party Payments,REVENUE
http://statistics.data.gov.uk/id/local-authority/00HY,Wiltshire Council,08/05/2013,5106302739,439.16,Adiemus Care Limited - Ravenscroft ,132154,HA1 ,Community Services,OP West FNC,Adult Care Funded Nursing Care - Loal Auth Clients,Third Party Payments,REVENUE
http://statistics.data.gov.uk/id/local-authority/00HY,Wiltshire Council,08/05/2013,5106304623,1505.80,Adiemus Care Limited - Ravenscroft ,132154,HA1 ,Community Services,OP West Locality,Adult Care Nursing Placements- Spot Purchase,Third Party Payments,REVENUE
http://statistics.data.gov.uk/id/local-authority/00HY,Wiltshire Council,08/05/2013,5106304624,439.16,Adiemus Care Limited - Ravenscroft ,132154,HA1 ,Community Services,OP West FNC,Adult Care Funded Nursing Care - Loal Auth Clients,Third Party Payments,REVENUE
http://statistics.data.gov.uk/id/local-authority/00HY,Wiltshire Council,08/05/2013,5106304739,2010.12,Adiemus Care Limited - Ravenscroft ,132154,HA1 ,Community Services,OP West Locality,Adult Care Nursing Placements- Spot Purchase,Third Party Payments,REVENUE
http://statistics.data.gov.uk/id/local-authority/00HY,Wiltshire Council,08/05/2013,5106304740,439.16,Adiemus Care Limited - Ravenscroft ,132154,HA1 ,Community Services,OP West FNC,Adult Care Funded Nursing Care - Loal Auth Clients,Third Party Payments,REVENUE
http://statistics.data.gov.uk/id/local-authority/00HY,Wiltshire Council,08/05/2013,5106304810,1698.16,Adiemus Care Limited - Ravenscroft ,132154,HA1 ,Community Services,OP West Locality,Adult Care Nursing Placements- Spot Purchase,Third Party Payments,REVENUE
http://statistics.data.gov.uk/id/local-authority/00HY,Wiltshire Council,08/05/2013,5106304811,439.16,Adiemus Care Limited - Ravenscroft ,132154,HA1 ,Community Services,OP West FNC,Adult Care Funded Nursing Care - Loal Auth Clients,Third Party Payments,REVENUE
http://statistics.data.gov.uk/id/local-authority/00HY,Wiltshire Council,08/05/2013,5106304860,1505.80,Adiemus Care Limited - Ravenscroft ,132154,HA1 ,Community Services,MH OP West Locality,Adult Care Nursing Placements- Spot Purchase,Third Party Payments,REVENUE
http://statistics.data.gov.uk/id/local-authority/00HY,Wiltshire Council,08/05/2013,5106304861,439.16,Adiemus Care Limited - Ravenscroft ,132154,HA1 ,Community Services,MH OA West FNC,Adult Care Funded Nursing Care - Loal Auth Clients,Third Party Payments,REVENUE
http://statistics.data.gov.uk/id/local-authority/00HY,Wiltshire Council,08/05/2013,5106305173,1931.52,Adiemus Care Limited - Ravenscroft ,132154,HA1 ,Community Services,OP West Locality,Adult Residential Placements - Spot Purchase,Third Party Payments,REVENUE
http://statistics.data.gov.uk/id/local-authority/00HY,Wiltshire Council,08/05/2013,5106305291,2449.24,Adiemus Care Limited - Ravenscroft ,132154,HA1 ,Community Services,OP West Locality,Adult Residential Placements - Spot Purchase,Third Party Payments,REVENUE
http://statistics.data.gov.uk/id/local-authority/00HY,Wiltshire Council,08/05/2013,5106305738,2060.84,Adiemus Care Limited - Ravenscroft ,132154,HA1 ,Community Services,OP West Locality,Adult Care Nursing Placements- Spot Purchase,Third Party Payments,REVENUE
http://statistics.data.gov.uk/id/local-authority/00HY,Wiltshire Council,08/05/2013,5106305739,439.16,Adiemus Care Limited - Ravenscroft ,132154,HA1 ,Community Services,OP West FNC,Adult Care Funded Nursing Care - Loal Auth Clients,Third Party Payments,REVENUE
http://statistics.data.gov.uk/id/local-authority/00HY,Wiltshire Council,08/05/2013,5106305759,2060.84,Adiemus Care Limited - Ravenscroft ,132154,HA1 ,Community Services,OP West Locality,Adult Care Nursing Placements- Spot Purchase,Third Party Payments,REVENUE
http://statistics.data.gov.uk/id/local-authority/00HY,Wiltshire Council,08/05/2013,5106305760,439.16,Adiemus Care Limited - Ravenscroft ,132154,HA1 ,Community Services,OP West FNC,Adult Care Funded Nursing Care - Loal Auth Clients,Third Party Payments,REVENUE
http://statistics.data.gov.uk/id/local-authority/00HY,Wiltshire Council,08/05/2013,5106305774,2060.84,Adiemus Care Limited - Ravenscroft ,132154,HA1 ,Community Services,OP West Locality,Adult Care Nursing Placements- Spot Purchase,Third Party Payments,REVENUE
http://statistics.data.gov.uk/id/local-authority/00HY,Wiltshire Council,08/05/2013,5106305775,439.16,Adiemus Care Limited - Ravenscroft ,132154,HA1 ,Community Services,OP West FNC,Adult Care Funded Nursing Care - Loal Auth Clients,Third Party Payments,REVENUE
http://statistics.data.gov.uk/id/local-authority/00HY,Wiltshire Council,08/05/2013,5106305798,2060.84,Adiemus Care Limited - Ravenscroft ,132154,HA1 ,Community Services,OP West Locality,Adult Care Nursing Placements- Spot Purchase,Third Party Payments,REVENUE
http://statistics.data.gov.uk/id/local-authority/00HY,Wiltshire Council,08/05/2013,5106305799,439.16,Adiemus Care Limited - Ravenscroft ,132154,HA1 ,Community Services,OP West FNC,Adult Care Funded Nursing Care - Loal Auth Clients,Third Party Payments,REVENUE
http://statistics.data.gov.uk/id/local-authority/00HY,Wiltshire Council,08/05/2013,5106305822,2060.84,Adiemus Care Limited - Ravenscroft ,132154,HA1 ,Community Services,OP West Locality,Adult Care Nursing Placements- Spot Purchase,Third Party Payments,REVENUE
http://statistics.data.gov.uk/id/local-authority/00HY,Wiltshire Council,08/05/2013,5106305823,439.16,Adiemus Care Limited - Ravenscroft ,132154,HA1 ,Community Services,OP West FNC,Adult Care Funded Nursing Care - Loal Auth Clients,Third Party Payments,REVENUE
http://statistics.data.gov.uk/id/local-authority/00HY,Wiltshire Council,08/05/2013,5106306067,2014.04,Adiemus Care Limited - Ravenscroft ,132154,HA1 ,Community Services,MH OP West Locality,Adult Residential Placements - Spot Purchase,Third Party Payments,REVENUE
http://statistics.data.gov.uk/id/local-authority/00HY,Wiltshire Council,08/05/2013,5106306130,2046.08,Adiemus Care Limited - Ravenscroft ,132154,HA1 ,Community Services,MH AOWA West,Adult Care Nursing Placements- Spot Purchase,Third Party Payments,REVENUE
http://statistics.data.gov.uk/id/local-authority/00HY,Wiltshire Council,08/05/2013,5106306131,439.16,Adiemus Care Limited - Ravenscroft ,132154,HA1 ,Community Services,MH AOWA West FNC,Adult Care Funded Nursing Care - Loal Auth Clients,Third Party Payments,REVENUE
http://statistics.data.gov.uk/id/local-authority/00HY,Wiltshire Council,08/05/2013,5106306458,2407.56,Adiemus Care Limited - Ravenscroft ,132154,HA1 ,Community Services,Home Loans,Adult Care - Home Loan Costs,Capital charges and Expenditure,REVENUE
http://statistics.data.gov.uk/id/local-authority/00HY,Wiltshire Council,13/05/2013,1901046302,1778.67,Adrains Engineering Psv ,100848,SN15,Neighbourhood & Planning,Public Transport,Transport Contracts,Third Party Payments,REVENUE
http://statistics.data.gov.uk/id/local-authority/00HY,Wiltshire Council,13/05/2013,1901046302,3553.49,Adrains Engineering Psv ,100848,SN15,Neighbourhood & Planning,Mainstream Primary,Transport Contracts,Third Party Payments,REVENUE
http://statistics.data.gov.uk/id/local-authority/00HY,Wiltshire Council,13/05/2013,1901046303,1587.76,Adrains Engineering Psv ,100848,SN15,Neighbourhood & Planning,Mainstream Primary,Transport Contracts,Third Party Payments,REVENUE
http://statistics.data.gov.uk/id/local-authority/00HY,Wiltshire Council,13/05/2013,1901046303,2671.74,Adrains Engineering Psv ,100848,SN15,Neighbourhood & Planning,Public Transport,Transport Contracts,Third Party Payments,REVENUE
http://statistics.data.gov.uk/id/local-authority/00HY,Wiltshire Council,13/05/2013,1901046304,835.31,Adrains Engineering Psv ,100848,SN15,Neighbourhood & Planning,Public Transport,Transport Contracts,Third Party Payments,REVENUE
http://statistics.data.gov.uk/id/local-authority/00HY,Wiltshire Council,13/05/2013,1901046304,835.31,Adrains Engineering Psv ,100848,SN15,Neighbourhood & Planning,Mainstream Primary,Transport Contracts,Third Party Payments,REVENUE
http://statistics.data.gov.uk/id/local-authority/00HY,Wiltshire Council,13/05/2013,1901046304,2505.92,Adrains Engineering Psv ,100848,SN15,Neighbourhood & Planning,Mainstream Secondary,Transport Contracts,Third Party Payments,REVENUE
http://statistics.data.gov.uk/id/local-authority/00HY,Wiltshire Council,13/05/2013,1901046305,1216.74,Adrains Engineering Psv ,100848,SN15,Neighbourhood & Planning,Mainstream Secondary,Transport Contracts,Third Party Payments,REVENUE
http://statistics.data.gov.uk/id/local-authority/00HY,Wiltshire Council,13/05/2013,1901046305,4990.49,Adrains Engineering Psv ,100848,SN15,Neighbourhood & Planning,Mainstream Primary,Transport Contracts,Third Party Payments,REVENUE
http://statistics.data.gov.uk/id/local-authority/00HY,Wiltshire Council,13/05/2013,1901046305,9384.07,Adrains Engineering Psv ,100848,SN15,Neighbourhood & Planning,Public Transport,Transport Contracts,Third Party Payments,REVENUE
http://statistics.data.gov.uk/id/local-authority/00HY,Wiltshire Council,13/05/2013,1901046308,547.23,Adrains Engineering Psv ,100848,SN15,Neighbourhood & Planning,Public Transport,Transport Contracts,Third Party Payments,REVENUE
http://statistics.data.gov.uk/id/local-authority/00HY,Wiltshire Council,13/05/2013,1901046310,2850.50,Adrains Engineering Psv ,100848,SN15,Neighbourhood & Planning,Mainstream Secondary,Transport Contracts,Third Party Payments,REVENUE
http://statistics.data.gov.uk/id/local-authority/00HY,Wiltshire Council,13/05/2013,1901046312,2563.78,Adrains Engineering Psv ,100848,SN15,Neighbourhood & Planning,Mainstream Secondary,Transport Contracts,Third Party Payments,REVENUE
http://statistics.data.gov.uk/id/local-authority/00HY,Wiltshire Council,13/05/2013,1901046313,2312.42,Adrains Engineering Psv ,100848,SN15,Neighbourhood & Planning,Mainstream Secondary,Transport Contracts,Third Party Payments,REVENUE
http://statistics.data.gov.uk/id/local-authority/00HY,Wiltshire Council,24/05/2013,5106312865,2750.81,ADT Fire & Security PLC ,128196,BS32,Resources,WTP Office,Premises Related Other Maintenance Costs,Premises Related,REVENUE
http://statistics.data.gov.uk/id/local-authority/00HY,Wiltshire Council,16/05/2013,5106310842,14614.33,Advanced Childcare ,134811,SK8 ,Children & Education,External Placements,Adult / Child Care Agency Placement,Third Party Payments,REVENUE
http://statistics.data.gov.uk/id/local-authority/00HY,Wiltshire Council,23/05/2013,5106312802,14326.34,Advanced Childcare ,134811,SK8 ,Children & Education,External Placements,Adult / Child Care Agency Placement,Third Party Payments,REVENUE
http://statistics.data.gov.uk/id/local-authority/00HY,Wiltshire Council,23/05/2013,5106312803,2657.01,Advanced Childcare ,134811,SK8 ,Children & Education,External Placements,Adult / Child Care Agency Placement,Third Party Payments,REVENUE
http://statistics.data.gov.uk/id/local-authority/00HY,Wiltshire Council,03/05/2013,5106295654,3121.54,Advanced Fire Systems Ltd ,110062,BS7 ,Neighbourhood & Planning,Housg Rprs Contracts,Premises Related Other Maintenance Costs,Premises Related,REVENUE
http://statistics.data.gov.uk/id/local-authority/00HY,Wiltshire Council,10/05/2013,5106296193,304.00,Advanced Fire Systems Ltd ,110062,BS7 ,Neighbourhood & Planning,SH Nadder Close,Premises Related Other Maintenance Costs,Premises Related,REVENUE
http://statistics.data.gov.uk/id/local-authority/00HY,Wiltshire Council,09/05/2013,1901045404,3590.00,Affleck Mechanical Services Limited ,133542,SN3 ,Wiltshire Council,Wiltshire Council,Payments to Contractors - Other,Third Party Payments,CAPITAL
http://statistics.data.gov.uk/id/local-authority/00HY,Wiltshire Council,02/05/2013,5106296189,1549.94,AginCare Live In Care Services Ltd ,110071,DT4 ,Community Services,PI South Locality,Adult Domiciliary Care - Live in Care,Third Party Payments,REVENUE
http://statistics.data.gov.uk/id/local-authority/00HY,Wiltshire Council,02/05/2013,5106296306,607.38,AginCare Live In Care Services Ltd ,110071,DT4 ,Community Services,OP South Locality,Adult Domiciliary care - Live in contribution,Income,REVENUE
http://statistics.data.gov.uk/id/local-authority/00HY,Wiltshire Council,02/05/2013,5106296308,669.34,AginCare Live In Care Services Ltd ,110071,DT4 ,Community Services,OP South Locality,Adult Domiciliary care - Live in contribution,Income,REVENUE
http://statistics.data.gov.uk/id/local-authority/00HY,Wiltshire Council,02/05/2013,5106296309,1355.58,AginCare Live In Care Services Ltd ,110071,DT4 ,Community Services,OP South Locality,Adult Domiciliary care - Live in contribution,Income,REVENUE
http://statistics.data.gov.uk/id/local-authority/00HY,Wiltshire Council,02/05/2013,5106296359,1100.00,AginCare Live In Care Services Ltd ,110071,DT4 ,Community Services,PI West Locality,Adult Domiciliary Care - Live in Care,Third Party Payments,REVENUE
http://statistics.data.gov.uk/id/local-authority/00HY,Wiltshire Council,02/05/2013,5106296372,1660.65,AginCare Live In Care Services Ltd ,110071,DT4 ,Community Services,PI West Locality,Adult Domiciliary Care - Live in Care,Third Party Payments,REVENUE
http://statistics.data.gov.uk/id/local-authority/00HY,Wiltshire Council,16/05/2013,5106306722,1549.94,AginCare Live In Care Services Ltd ,110071,DT4 ,Community Services,PI South Locality,Adult Domiciliary Care - Live in Care,Third Party Payments,REVENUE
http://statistics.data.gov.uk/id/local-authority/00HY,Wiltshire Council,16/05/2013,5106306723,607.38,AginCare Live In Care Services Ltd ,110071,DT4 ,Community Services,OP South Locality,Adult Domiciliary care - Live in contribution,Income,REVENUE
http://statistics.data.gov.uk/id/local-authority/00HY,Wiltshire Council,16/05/2013,5106306724,740.00,AginCare Live In Care Services Ltd ,110071,DT4 ,Community Services,OP South Locality,Adult Domiciliary care - Live in contribution,Income,REVENUE
http://statistics.data.gov.uk/id/local-authority/00HY,Wiltshire Council,16/05/2013,5106306725,675.70,AginCare Live In Care Services Ltd ,110071,DT4 ,Community Services,OP South Locality,Adult Domiciliary care - Live in contribution,Income,REVENUE
http://statistics.data.gov.uk/id/local-authority/00HY,Wiltshire Council,16/05/2013,5106306727,1355.58,AginCare Live In Care Services Ltd ,110071,DT4 ,Community Services,OP South Locality,Adult Domiciliary care - Live in contribution,Income,REVENUE
http://statistics.data.gov.uk/id/local-authority/00HY,Wiltshire Council,16/05/2013,5106306728,669.34,AginCare Live In Care Services Ltd ,110071,DT4 ,Community Services,OP South Locality,Adult Domiciliary care - Live in contribution,Income,REVENUE
http://statistics.data.gov.uk/id/local-authority/00HY,Wiltshire Council,16/05/2013,5106306729,1400.00,AginCare Live In Care Services Ltd ,110071,DT4 ,Community Services,PI West Locality,Adult Domiciliary Care - Live in Care,Third Party Payments,REVENUE
http://statistics.data.gov.uk/id/local-authority/00HY,Wiltshire Council,16/05/2013,5106306730,1549.94,AginCare Live In Care Services Ltd ,110071,DT4 ,Community Services,PI West Locality,Adult Domiciliary Care - Live in Care,Third Party Payments,REVENUE
http://statistics.data.gov.uk/id/local-authority/00HY,Wiltshire Council,08/05/2013,5106306732,467.12,AginCare Live In Care Services Ltd ,110071,DT4 ,Community Services,OP South Locality,Adult Domiciliary care - Live in contribution,Income,REVENUE
http://statistics.data.gov.uk/id/local-authority/00HY,Wiltshire Council,24/05/2013,5106310392,675.70,AginCare Live In Care Services Ltd ,110071,DT4 ,Community Services,OP South Locality,Adult Domiciliary care - Live in contribution,Income,REVENUE
http://statistics.data.gov.uk/id/local-authority/00HY,Wiltshire Council,15/05/2013,5106310394,607.38,AginCare Live In Care Services Ltd ,110071,DT4 ,Community Services,OP South Locality,Adult Domiciliary care - Live in contribution,Income,REVENUE
http://statistics.data.gov.uk/id/local-authority/00HY,Wiltshire Council,15/05/2013,5106310395,740.00,AginCare Live In Care Services Ltd ,110071,DT4 ,Community Services,OP South Locality,Adult Domiciliary care - Live in contribution,Income,REVENUE
http://statistics.data.gov.uk/id/local-authority/00HY,Wiltshire Council,15/05/2013,5106310396,669.34,AginCare Live In Care Services Ltd ,110071,DT4 ,Community Services,OP South Locality,Adult Domiciliary care - Live in contribution,Income,REVENUE
http://statistics.data.gov.uk/id/local-authority/00HY,Wiltshire Council,15/05/2013,5106310397,1355.58,AginCare Live In Care Services Ltd ,110071,DT4 ,Community Services,OP South Locality,Adult Domiciliary care - Live in contribution,Income,REVENUE
http://statistics.data.gov.uk/id/local-authority/00HY,Wiltshire Council,15/05/2013,5106310398,1549.94,AginCare Live In Care Services Ltd ,110071,DT4 ,Community Services,PI South Locality,Adult Domiciliary Care - Live in Care,Third Party Payments,REVENUE
http://statistics.data.gov.uk/id/local-authority/00HY,Wiltshire Council,15/05/2013,5106310399,1549.94,AginCare Live In Care Services Ltd ,110071,DT4 ,Community Services,PI West Locality,Adult Domiciliary Care - Live in Care,Third Party Payments,REVENUE
http://statistics.data.gov.uk/id/local-authority/00HY,Wiltshire Council,15/05/2013,5106310400,1400.00,AginCare Live In Care Services Ltd ,110071,DT4 ,Community Services,PI West Locality,Adult Domiciliary Care - Live in Care,Third Party Payments,REVENUE
http://statistics.data.gov.uk/id/local-authority/00HY,Wiltshire Council,17/05/2013,5106311335,1549.94,AginCare Live In Care Services Ltd ,110071,DT4 ,Community Services,PI South Locality,Adult Domiciliary Care - Live in Care,Third Party Payments,REVENUE
http://statistics.data.gov.uk/id/local-authority/00HY,Wiltshire Council,17/05/2013,5106311336,1549.94,AginCare Live In Care Services Ltd ,110071,DT4 ,Community Services,PI West Locality,Adult Domiciliary Care - Live in Care,Third Party Payments,REVENUE
http://statistics.data.gov.uk/id/local-authority/00HY,Wiltshire Council,17/05/2013,5106311337,1400.00,AginCare Live In Care Services Ltd ,110071,DT4 ,Community Services,PI West Locality,Adult Domiciliary Care - Live in Care,Third Party Payments,REVENUE
http://statistics.data.gov.uk/id/local-authority/00HY,Wiltshire Council,20/05/2013,5106311340,1355.58,AginCare Live In Care Services Ltd ,110071,DT4 ,Community Services,OP South Locality,Adult Domiciliary care - Live in contribution,Income,REVENUE
http://statistics.data.gov.uk/id/local-authority/00HY,Wiltshire Council,20/05/2013,5106311354,740.00,AginCare Live In Care Services Ltd ,110071,DT4 ,Community Services,OP South Locality,Adult Domiciliary care - Live in contribution,Income,REVENUE
http://statistics.data.gov.uk/id/local-authority/00HY,Wiltshire Council,20/05/2013,5106311355,607.38,AginCare Live In Care Services Ltd ,110071,DT4 ,Community Services,OP South Locality,Adult Domiciliary care - Live in contribution,Income,REVENUE
http://statistics.data.gov.uk/id/local-authority/00HY,Wiltshire Council,20/05/2013,5106311357,669.34,AginCare Live In Care Services Ltd ,110071,DT4 ,Community Services,OP South Locality,Adult Domiciliary care - Live in contribution,Income,REVENUE
http://statistics.data.gov.uk/id/local-authority/00HY,Wiltshire Council,31/05/2013,5106316088,669.34,AginCare Live In Care Services Ltd ,110071,DT4 ,Community Services,OP South Locality,Adult Domiciliary care - Live in contribution,Income,REVENUE
http://statistics.data.gov.uk/id/local-authority/00HY,Wiltshire Council,31/05/2013,5106316089,1355.58,AginCare Live In Care Services Ltd ,110071,DT4 ,Community Services,OP South Locality,Adult Domiciliary care - Live in contribution,Income,REVENUE
http://statistics.data.gov.uk/id/local-authority/00HY,Wiltshire Council,31/05/2013,5106316120,1400.00,AginCare Live In Care Services Ltd ,110071,DT4 ,Community Services,PI West Locality,Adult Domiciliary Care - Live in Care,Third Party Payments,REVENUE
http://statistics.data.gov.uk/id/local-authority/00HY,Wiltshire Council,31/05/2013,5106316121,740.00,AginCare Live In Care Services Ltd ,110071,DT4 ,Community Services,OP South Locality,Adult Domiciliary care - Live in contribution,Income,REVENUE
http://statistics.data.gov.uk/id/local-authority/00HY,Wiltshire Council,31/05/2013,5106316122,607.38,AginCare Live In Care Services Ltd ,110071,DT4 ,Community Services,OP South Locality,Adult Domiciliary care - Live in contribution,Income,REVENUE
http://statistics.data.gov.uk/id/local-authority/00HY,Wiltshire Council,31/05/2013,5106316123,1549.94,AginCare Live In Care Services Ltd ,110071,DT4 ,Community Services,PI West Locality,Adult Domiciliary Care - Live in Care,Third Party Payments,REVENUE
http://statistics.data.gov.uk/id/local-authority/00HY,Wiltshire Council,31/05/2013,5106316124,1549.94,AginCare Live In Care Services Ltd ,110071,DT4 ,Community Services,PI South Locality,Adult Domiciliary Care - Live in Care,Third Party Payments,REVENUE
http://statistics.data.gov.uk/id/local-authority/00HY,Wiltshire Council,31/05/2013,5106316160,287.94,AginCare Live In Care Services Ltd ,110071,DT4 ,Community Services,OP South Locality,Adult Domiciliary Care - Live in Care,Third Party Payments,REVENUE
http://statistics.data.gov.uk/id/local-authority/00HY,Wiltshire Council,01/05/2013,5106302064,454.33,Agincare Ltd ,110069,DT4 ,Community Services,PI South Locality,Adult Domiciliary Care - Spot Contribution,Income,REVENUE
http://statistics.data.gov.uk/id/local-authority/00HY,Wiltshire Council,02/05/2013,5106302219,454.33,Agincare Ltd ,110069,DT4 ,Community Services,PI South Locality,Adult Domiciliary Care - Block Contribution,Income,REVENUE
http://statistics.data.gov.uk/id/local-authority/00HY,Wiltshire Council,07/05/2013,5106303934,546.40,Agincare Ltd ,110069,DT4 ,Community Services,MH AOWA West,Adult Domiciliary Care - Live in Care,Third Party Payments,REVENUE
http://statistics.data.gov.uk/id/local-authority/00HY,Wiltshire Council,13/05/2013,5106309373,1113.90,Agincare Ltd ,110069,DT4 ,Community Services,MH AOWA North,Adult Domiciliary Care - Spot,Third Party Payments,REVENUE
http://statistics.data.gov.uk/id/local-authority/00HY,Wiltshire Council,13/05/2013,5106309373,2168.82,Agincare Ltd ,110069,DT4 ,Community Services,OP North Locality,Adult Domiciliary Care - Spot Contribution,Income,REVENUE
http://statistics.data.gov.uk/id/local-authority/00HY,Wiltshire Council,13/05/2013,5106309374,293.20,Agincare Ltd ,110069,DT4 ,Community Services,MH AOWA West,Adult Domiciliary Care - Block,Third Party Payments,REVENUE
http://statistics.data.gov.uk/id/local-authority/00HY,Wiltshire Council,13/05/2013,5106309374,1113.90,Agincare Ltd ,110069,DT4 ,Community Services,MH AOWA North,Adult Domiciliary Care - Block,Third Party Payments,REVENUE
http://statistics.data.gov.uk/id/local-authority/00HY,Wiltshire Council,13/05/2013,5106309374,2168.84,Agincare Ltd ,110069,DT4 ,Community Services,OP North Locality,Adult Domiciliary Care - Spot Contribution,Income,REVENUE
http://statistics.data.gov.uk/id/local-authority/00HY,Wiltshire Council,10/05/2013,5106299999,790.00,Aid Training  and  Operations Ltd ,110075,BA12,Children & Education,CanonsHouse,Staff Training Course Costs,Employee Related,REVENUE
http://statistics.data.gov.uk/id/local-authority/00HY,Wiltshire Council,21/05/2013,5106302353,1920.00,Aid Training  and  Operations Ltd ,110075,BA12,Children & Education,ExtPDTCourse,Consultants� Fees,Supplies and Services,REVENUE
http://statistics.data.gov.uk/id/local-authority/00HY,Wiltshire Council,15/05/2013,1901055531,1020.68,Airport Connections pewsey  Ltd ,100937,.,Neighbourhood & Planning,Mainstream Primary,Transport Contracts,Third Party Payments,REVENUE
http://statistics.data.gov.uk/id/local-authority/00HY,Wiltshire Council,07/05/2013,1901044542,1824.48,Akcess Ltd ,101402,SN2 ,Children & Education,SENTransport,Transport Contracts,Third Party Payments,REVENUE
http://statistics.data.gov.uk/id/local-authority/00HY,Wiltshire Council,07/05/2013,1901044544,1696.80,Akcess Ltd ,101402,SN2 ,Children & Education,SENTransport,Transport Contracts,Third Party Payments,REVENUE
http://statistics.data.gov.uk/id/local-authority/00HY,Wiltshire Council,07/05/2013,1901044546,2041.87,Akcess Ltd ,101402,SN2 ,Children & Education,SENTransport,Transport Contracts,Third Party Payments,REVENUE
http://statistics.data.gov.uk/id/local-authority/00HY,Wiltshire Council,07/05/2013,1901044552,1686.91,Akcess Ltd ,101402,SN2 ,Children & Education,SENTransport,Transport Contracts,Third Party Payments,REVENUE
http://statistics.data.gov.uk/id/local-authority/00HY,Wiltshire Council,07/05/2013,1901044557,275.64,Akcess Ltd ,101402,SN2 ,Neighbourhood & Planning,Mainstream 16+ Sec,Transport Contracts,Third Party Payments,REVENUE
http://statistics.data.gov.uk/id/local-authority/00HY,Wiltshire Council,07/05/2013,1901044557,1010.63,Akcess Ltd ,101402,SN2 ,Neighbourhood & Planning,Mainstream Secondary,Transport Contracts,Third Party Payments,REVENUE
http://statistics.data.gov.uk/id/local-authority/00HY,Wiltshire Council,07/05/2013,1901044558,1293.60,Akcess Ltd ,101402,SN2 ,Neighbourhood & Planning,Mainstream Primary,Transport Contracts,Third Party Payments,REVENUE
http://statistics.data.gov.uk/id/local-authority/00HY,Wiltshire Council,07/05/2013,1901044559,799.36,Akcess Ltd ,101402,SN2 ,Children & Education,WestChildrenw/Dis,Transport Contracts,Third Party Payments,REVENUE
http://statistics.data.gov.uk/id/local-authority/00HY,Wiltshire Council,07/05/2013,1901044559,1598.72,Akcess Ltd ,101402,SN2 ,Children & Education,SENTransport,Transport Contracts,Third Party Payments,REVENUE
http://statistics.data.gov.uk/id/local-authority/00HY,Wiltshire Council,07/05/2013,1901044562,684.59,Akcess Ltd ,101402,SN2 ,Neighbourhood & Planning,Mainstream Primary,Transport Contracts,Third Party Payments,REVENUE
http://statistics.data.gov.uk/id/local-authority/00HY,Wiltshire Council,07/05/2013,1901044563,1009.13,Akcess Ltd ,101402,SN2 ,Neighbourhood & Planning,Mainstream Primary,Transport Contracts,Third Party Payments,REVENUE
http://statistics.data.gov.uk/id/local-authority/00HY,Wiltshire Council,07/05/2013,1901044564,1009.13,Akcess Ltd ,101402,SN2 ,Neighbourhood & Planning,Mainstream Primary,Transport Contracts,Third Party Payments,REVENUE
http://statistics.data.gov.uk/id/local-authority/00HY,Wiltshire Council,07/05/2013,1901044566,514.03,Akcess Ltd ,101402,SN2 ,Children & Education,SENTransport,Transport Contracts,Third Party Payments,REVENUE
http://statistics.data.gov.uk/id/local-authority/00HY,Wiltshire Council,07/05/2013,1901044566,1028.05,Akcess Ltd ,101402,SN2 ,Neighbourhood & Planning,Mainstream Secondary,Transport Contracts,Third Party Payments,REVENUE
http://statistics.data.gov.uk/id/local-authority/00HY,Wiltshire Council,07/05/2013,1901044567,1103.84,Akcess Ltd ,101402,SN2 ,Neighbourhood & Planning,Mainstream Secondary,Transport Contracts,Third Party Payments,REVENUE
http://statistics.data.gov.uk/id/local-authority/00HY,Wiltshire Council,16/05/2013,1901056685,1100.80,Akcess Ltd ,101402,SN2 ,Neighbourhood & Planning,Mainstream Secondary,Transport Contracts,Third Party Payments,REVENUE
http://statistics.data.gov.uk/id/local-authority/00HY,Wiltshire Council,21/05/2013,1901057276,336.86,Akcess Ltd ,101402,SN2 ,Children & Education,SENTransport,Transport Contracts,Third Party Payments,REVENUE
http://statistics.data.gov.uk/id/local-authority/00HY,Wiltshire Council,21/05/2013,1901057276,505.27,Akcess Ltd ,101402,SN2 ,Neighbourhood & Planning,Mainstream Primary,Transport Contracts,Third Party Payments,REVENUE
http://statistics.data.gov.uk/id/local-authority/00HY,Wiltshire Council,22/05/2013,1901057561,639.36,Akcess Ltd ,101402,SN2 ,Community Services,PI North Locality,Transport Contracts,Third Party Payments,REVENUE
http://statistics.data.gov.uk/id/local-authority/00HY,Wiltshire Council,30/05/2013,1901062287,598.84,Akcess Ltd ,101402,SN2 ,Children & Education,SENTransport,Transport Contracts,Third Party Payments,REVENUE
http://statistics.data.gov.uk/id/local-authority/00HY,Wiltshire Council,30/05/2013,1901062287,898.28,Akcess Ltd ,101402,SN2 ,Neighbourhood & Planning,Mainstream Primary,Transport Contracts,Third Party Payments,REVENUE
http://statistics.data.gov.uk/id/local-authority/00HY,Wiltshire Council,30/05/2013,1901062288,600.44,Akcess Ltd ,101402,SN2 ,Children & Education,SENTransport,Transport Contracts,Third Party Payments,REVENUE
http://statistics.data.gov.uk/id/local-authority/00HY,Wiltshire Council,30/05/2013,1901062288,900.68,Akcess Ltd ,101402,SN2 ,Neighbourhood & Planning,Mainstream Primary,Transport Contracts,Third Party Payments,REVENUE
http://statistics.data.gov.uk/id/local-authority/00HY,Wiltshire Council,07/05/2013,1901044332,1300.27,Alabare Christian Care Centre ,100837,SP1 ,Community Services,MH Commissioned Cont,Payments to Contractors - Other,Third Party Payments,REVENUE
http://statistics.data.gov.uk/id/local-authority/00HY,Wiltshire Council,07/05/2013,1901044333,1794.61,Alabare Christian Care Centre ,100837,SP1 ,Neighbourhood & Planning,HousingStrategy,Payments to Contractors - Other,Third Party Payments,REVENUE
http://statistics.data.gov.uk/id/local-authority/00HY,Wiltshire Council,07/05/2013,1901044334,1231.62,Alabare Christian Care Centre ,100837,SP1 ,Neighbourhood & Planning,HousingStrategy,Payments to Contractors - Other,Third Party Payments,REVENUE
http://statistics.data.gov.uk/id/local-authority/00HY,Wiltshire Council,07/05/2013,1901044335,737.97,Alabare Christian Care Centre ,100837,SP1 ,Neighbourhood & Planning,HousingStrategy,Payments to Contractors - Other,Third Party Payments,REVENUE
http://statistics.data.gov.uk/id/local-authority/00HY,Wiltshire Council,07/05/2013,1901044336,2322.47,Alabare Christian Care Centre ,100837,SP1 ,Neighbourhood & Planning,HousingStrategy,Payments to Contractors - Other,Third Party Payments,REVENUE
http://statistics.data.gov.uk/id/local-authority/00HY,Wiltshire Council,07/05/2013,1901044337,4750.53,Alabare Christian Care Centre ,100837,SP1 ,Neighbourhood & Planning,HousingStrategy,Payments to Contractors - Other,Third Party Payments,REVENUE
http://statistics.data.gov.uk/id/local-authority/00HY,Wiltshire Council,07/05/2013,1901044338,11506.85,Alabare Christian Care Centre ,100837,SP1 ,Neighbourhood & Planning,HousingStrategy,Payments to Contractors - Other,Third Party Payments,REVENUE
http://statistics.data.gov.uk/id/local-authority/00HY,Wiltshire Council,07/05/2013,1901044339,1403.84,Alabare Christian Care Centre ,100837,SP1 ,Community Services,Disabilities Comm Ct,Payments to Contractors - Other,Third Party Payments,REVENUE
http://statistics.data.gov.uk/id/local-authority/00HY,Wiltshire Council,07/05/2013,1901044340,1952.33,Alabare Christian Care Centre ,100837,SP1 ,Neighbourhood & Planning,HousingStrategy,Payments to Contractors - Other,Third Party Payments,REVENUE
http://statistics.data.gov.uk/id/local-authority/00HY,Wiltshire Council,07/05/2013,1901044341,15390.03,Alabare Christian Care Centre ,100837,SP1 ,Neighbourhood & Planning,HousingStrategy,Payments to Contractors - Other,Third Party Payments,REVENUE
http://statistics.data.gov.uk/id/local-authority/00HY,Wiltshire Council,07/05/2013,1901044432,2600.55,Alabare Christian Care Centre ,100837,SP1 ,Community Services,MH Commissioned Cont,Payments to Contractors - Other,Third Party Payments,REVENUE
http://statistics.data.gov.uk/id/local-authority/00HY,Wiltshire Council,07/05/2013,1901044433,3589.22,Alabare Christian Care Centre ,100837,SP1 ,Neighbourhood & Planning,HousingStrategy,Payments to Contractors - Other,Third Party Payments,REVENUE
http://statistics.data.gov.uk/id/local-authority/00HY,Wiltshire Council,07/05/2013,1901044434,2463.23,Alabare Christian Care Centre ,100837,SP1 ,Neighbourhood & Planning,HousingStrategy,Payments to Contractors - Other,Third Party Payments,REVENUE
http://statistics.data.gov.uk/id/local-authority/00HY,Wiltshire Council,07/05/2013,1901044435,1475.95,Alabare Christian Care Centre ,100837,SP1 ,Neighbourhood & Planning,HousingStrategy,Payments to Contractors - Other,Third Party Payments,REVENUE
http://statistics.data.gov.uk/id/local-authority/00HY,Wiltshire Council,07/05/2013,1901044436,4644.93,Alabare Christian Care Centre ,100837,SP1 ,Neighbourhood & Planning,HousingStrategy,Payments to Contractors - Other,Third Party Payments,REVENUE
http://statistics.data.gov.uk/id/local-authority/00HY,Wiltshire Council,07/05/2013,1901044437,9501.05,Alabare Christian Care Centre ,100837,SP1 ,Neighbourhood & Planning,HousingStrategy,Payments to Contractors - Other,Third Party Payments,REVENUE
http://statistics.data.gov.uk/id/local-authority/00HY,Wiltshire Council,07/05/2013,1901044438,23013.70,Alabare Christian Care Centre ,100837,SP1 ,Neighbourhood & Planning,HousingStrategy,Payments to Contractors - Other,Third Party Payments,REVENUE
http://statistics.data.gov.uk/id/local-authority/00HY,Wiltshire Council,07/05/2013,1901044439,2807.67,Alabare Christian Care Centre ,100837,SP1 ,Community Services,Disabilities Comm Ct,Payments to Contractors - Other,Third Party Payments,REVENUE
http://statistics.data.gov.uk/id/local-authority/00HY,Wiltshire Council,07/05/2013,1901044440,3904.66,Alabare Christian Care Centre ,100837,SP1 ,Neighbourhood & Planning,HousingStrategy,Payments to Contractors - Other,Third Party Payments,REVENUE
http://statistics.data.gov.uk/id/local-authority/00HY,Wiltshire Council,07/05/2013,1901044441,30780.05,Alabare Christian Care Centre ,100837,SP1 ,Neighbourhood & Planning,HousingStrategy,Payments to Contractors - Other,Third Party Payments,REVENUE
http://statistics.data.gov.uk/id/local-authority/00HY,Wiltshire Council,14/05/2013,1901046540,2600.55,Alabare Christian Care Centre ,100837,SP1 ,Community Services,MH Commissioned Cont,Payments to Contractors - Other,Third Party Payments,REVENUE
http://statistics.data.gov.uk/id/local-authority/00HY,Wiltshire Council,14/05/2013,1901046541,3589.22,Alabare Christian Care Centre ,100837,SP1 ,Neighbourhood & Planning,HousingStrategy,Payments to Contractors - Other,Third Party Payments,REVENUE
http://statistics.data.gov.uk/id/local-authority/00HY,Wiltshire Council,14/05/2013,1901046542,2463.23,Alabare Christian Care Centre ,100837,SP1 ,Neighbourhood & Planning,HousingStrategy,Payments to Contractors - Other,Third Party Payments,REVENUE
http://statistics.data.gov.uk/id/local-authority/00HY,Wiltshire Council,14/05/2013,1901046543,1475.95,Alabare Christian Care Centre ,100837,SP1 ,Neighbourhood & Planning,HousingStrategy,Payments to Contractors - Other,Third Party Payments,REVENUE
http://statistics.data.gov.uk/id/local-authority/00HY,Wiltshire Council,14/05/2013,1901046544,9501.05,Alabare Christian Care Centre ,100837,SP1 ,Neighbourhood & Planning,HousingStrategy,Payments to Contractors - Other,Third Party Payments,REVENUE
http://statistics.data.gov.uk/id/local-authority/00HY,Wiltshire Council,14/05/2013,1901046545,25122.52,Alabare Christian Care Centre ,100837,SP1 ,Neighbourhood & Planning,HousingStrategy,Payments to Contractors - Other,Third Party Payments,REVENUE
http://statistics.data.gov.uk/id/local-authority/00HY,Wiltshire Council,14/05/2013,1901046546,3163.23,Alabare Christian Care Centre ,100837,SP1 ,Neighbourhood & Planning,HousingStrategy,Payments to Contractors - Other,Third Party Payments,REVENUE
http://statistics.data.gov.uk/id/local-authority/00HY,Wiltshire Council,14/05/2013,1901046547,2807.67,Alabare Christian Care Centre ,100837,SP1 ,Community Services,Disabilities Comm Ct,Payments to Contractors - Other,Third Party Payments,REVENUE
http://statistics.data.gov.uk/id/local-authority/00HY,Wiltshire Council,14/05/2013,1901046548,3904.66,Alabare Christian Care Centre ,100837,SP1 ,Neighbourhood & Planning,HousingStrategy,Payments to Contractors - Other,Third Party Payments,REVENUE
http://statistics.data.gov.uk/id/local-authority/00HY,Wiltshire Council,14/05/2013,1901046549,30780.05,Alabare Christian Care Centre ,100837,SP1 ,Neighbourhood & Planning,HousingStrategy,Payments to Contractors - Other,Third Party Payments,REVENUE
http://statistics.data.gov.uk/id/local-authority/00HY,Wiltshire Council,08/05/2013,5106303642,975.88,Alabare Christian Care Centre ,100837,SP1 ,Community Services,CTPLD County CIC U65,Supported Living - Without SP payments,Third Party Payments,REVENUE
http://statistics.data.gov.uk/id/local-authority/00HY,Wiltshire Council,08/05/2013,5106303644,3057.28,Alabare Christian Care Centre ,100837,SP1 ,Community Services,CTPLD County CIC U65,Supported Living - Without SP payments,Third Party Payments,REVENUE
http://statistics.data.gov.uk/id/local-authority/00HY,Wiltshire Council,08/05/2013,5106303646,2780.92,Alabare Christian Care Centre ,100837,SP1 ,Community Services,CTPLD County CIC U65,Supported Living - Without SP payments,Third Party Payments,REVENUE
http://statistics.data.gov.uk/id/local-authority/00HY,Wiltshire Council,08/05/2013,5106303698,1586.76,Alabare Christian Care Centre ,100837,SP1 ,Community Services,CTPLD County CIC U65,Supported Living - Without SP payments,Third Party Payments,REVENUE
http://statistics.data.gov.uk/id/local-authority/00HY,Wiltshire Council,08/05/2013,5106303699,1602.48,Alabare Christian Care Centre ,100837,SP1 ,Community Services,CTPLD County CIC U65,Supported Living - Without SP payments,Third Party Payments,REVENUE
http://statistics.data.gov.uk/id/local-authority/00HY,Wiltshire Council,08/05/2013,5106303700,1658.24,Alabare Christian Care Centre ,100837,SP1 ,Community Services,CTPLD County CIC U65,Supported Living - Without SP payments,Third Party Payments,REVENUE
http://statistics.data.gov.uk/id/local-authority/00HY,Wiltshire Council,08/05/2013,5106303701,3057.28,Alabare Christian Care Centre ,100837,SP1 ,Community Services,CTPLD County CIC U65,Supported Living - Without SP payments,Third Party Payments,REVENUE
http://statistics.data.gov.uk/id/local-authority/00HY,Wiltshire Council,08/05/2013,5106303702,1751.44,Alabare Christian Care Centre ,100837,SP1 ,Community Services,CTPLD County CIC U65,Supported Living - Without SP payments,Third Party Payments,REVENUE
http://statistics.data.gov.uk/id/local-authority/00HY,Wiltshire Council,08/05/2013,5106303741,2744.84,Alabare Christian Care Centre ,100837,SP1 ,Community Services,CTPLD County CIC U65,Supported Living - Without SP payments,Third Party Payments,REVENUE
http://statistics.data.gov.uk/id/local-authority/00HY,Wiltshire Council,08/05/2013,5106303743,2431.00,Alabare Christian Care Centre ,100837,SP1 ,Community Services,CTPLD County CIC U65,Supported Living - Without SP payments,Third Party Payments,REVENUE
http://statistics.data.gov.uk/id/local-authority/00HY,Wiltshire Council,08/05/2013,5106303745,1556.96,Alabare Christian Care Centre ,100837,SP1 ,Community Services,CTPLD County CIC U65,Supported Living - Without SP payments,Third Party Payments,REVENUE
http://statistics.data.gov.uk/id/local-authority/00HY,Wiltshire Council,08/05/2013,5106303747,715.00,Alabare Christian Care Centre ,100837,SP1 ,Community Services,CTPLD County CIC U65,Supported Living - Without SP payments,Third Party Payments,REVENUE
http://statistics.data.gov.uk/id/local-authority/00HY,Wiltshire Council,08/05/2013,5106303749,2109.48,Alabare Christian Care Centre ,100837,SP1 ,Community Services,CTPLD County S75 U65,Supported Living - Without SP payments,Third Party Payments,REVENUE
http://statistics.data.gov.uk/id/local-authority/00HY,Wiltshire Council,08/05/2013,5106303751,2214.08,Alabare Christian Care Centre ,100837,SP1 ,Community Services,CTPLD County CIC U65,Supported Living - Without SP payments,Third Party Payments,REVENUE
http://statistics.data.gov.uk/id/local-authority/00HY,Wiltshire Council,08/05/2013,5106303753,1751.44,Alabare Christian Care Centre ,100837,SP1 ,Community Services,CTPLD County CIC U65,Supported Living - Without SP payments,Third Party Payments,REVENUE
http://statistics.data.gov.uk/id/local-authority/00HY,Wiltshire Council,08/05/2013,5106303755,930.88,Alabare Christian Care Centre ,100837,SP1 ,Community Services,CTPLD County CIC U65,Supported Living - Without SP payments,Third Party Payments,REVENUE
http://statistics.data.gov.uk/id/local-authority/00HY,Wiltshire Council,08/05/2013,5106303757,583.00,Alabare Christian Care Centre ,100837,SP1 ,Community Services,CTPLD County CIC U65,Supported Living - Without SP payments,Third Party Payments,REVENUE
http://statistics.data.gov.uk/id/local-authority/00HY,Wiltshire Council,08/05/2013,5106303759,3057.28,Alabare Christian Care Centre ,100837,SP1 ,Community Services,CTPLD County CIC U65,Supported Living - Without SP payments,Third Party Payments,REVENUE
http://statistics.data.gov.uk/id/local-authority/00HY,Wiltshire Council,08/05/2013,5106303761,1560.00,Alabare Christian Care Centre ,100837,SP1 ,Community Services,CTPLD County CIC U65,Supported Living - Without SP payments,Third Party Payments,REVENUE
http://statistics.data.gov.uk/id/local-authority/00HY,Wiltshire Council,08/05/2013,5106303763,1887.44,Alabare Christian Care Centre ,100837,SP1 ,Community Services,CTPLD County CIC U65,Supported Living - Without SP payments,Third Party Payments,REVENUE
http://statistics.data.gov.uk/id/local-authority/00HY,Wiltshire Council,03/05/2013,5106303862,1209.27,Alabare Christian Care Centre ,100837,SP1 ,Children & Education,Ref & Assess Devizes,Other Social & Welfare Costs,Third Party Payments,REVENUE
http://statistics.data.gov.uk/id/local-authority/00HY,Wiltshire Council,03/05/2013,5106303863,8881.40,Alabare Christian Care Centre ,100837,SP1 ,Children & Education,Ref & Assess Devizes,Other Social & Welfare Costs,Third Party Payments,REVENUE
http://statistics.data.gov.uk/id/local-authority/00HY,Wiltshire Council,09/05/2013,5106307659,418.60,Alabare Christian Care Centre ,100837,SP1 ,Community Services,CTPLD County CIC U65,Adult Day Care - Spot,Third Party Payments,REVENUE
http://statistics.data.gov.uk/id/local-authority/00HY,Wiltshire Council,09/05/2013,5106307660,1419.00,Alabare Christian Care Centre ,100837,SP1 ,Community Services,CTPLD County CIC U65,Adult Domiciliary Care - Spot,Third Party Payments,REVENUE
http://statistics.data.gov.uk/id/local-authority/00HY,Wiltshire Council,09/05/2013,5106307661,352.00,Alabare Christian Care Centre ,100837,SP1 ,Community Services,CTPLD County CIC U65,Adult Day Care - Spot,Third Party Payments,REVENUE
http://statistics.data.gov.uk/id/local-authority/00HY,Wiltshire Council,09/05/2013,5106307665,473.20,Alabare Christian Care Centre ,100837,SP1 ,Community Services,CTPLD County CIC U65,Adult Day Care - Spot,Third Party Payments,REVENUE
http://statistics.data.gov.uk/id/local-authority/00HY,Wiltshire Council,13/05/2013,5106307673,288.00,Alabare Christian Care Centre ,100837,SP1 ,Community Services,MH AOWA South,Adult Day Care - Spot,Third Party Payments,REVENUE
http://statistics.data.gov.uk/id/local-authority/00HY,Wiltshire Council,13/05/2013,5106307674,416.00,Alabare Christian Care Centre ,100837,SP1 ,Community Services,MH AOWA South,Adult Day Care - Spot,Third Party Payments,REVENUE
http://statistics.data.gov.uk/id/local-authority/00HY,Wiltshire Council,10/05/2013,5106307882,257.60,Alabare Christian Care Centre ,100837,SP1 ,Community Services,CTPLD County CIC U65,Adult Day Care - Spot,Third Party Payments,REVENUE
http://statistics.data.gov.uk/id/local-authority/00HY,Wiltshire Council,10/05/2013,5106308011,256.00,Alabare Christian Care Centre ,100837,SP1 ,Community Services,MH AOWA South,Adult Day Care - Spot,Third Party Payments,REVENUE
http://statistics.data.gov.uk/id/local-authority/00HY,Wiltshire Council,15/05/2013,5106310366,2674.12,Alabare Christian Care Centre ,100837,SP1 ,Community Services,CTPLD County CIC U65,Supported Living - Without SP payments,Third Party Payments,REVENUE
http://statistics.data.gov.uk/id/local-authority/00HY,Wiltshire Council,15/05/2013,5106310367,2727.40,Alabare Christian Care Centre ,100837,SP1 ,Community Services,CTPLD County CIC U65,Supported Living - Without SP payments,Third Party Payments,REVENUE
http://statistics.data.gov.uk/id/local-authority/00HY,Wiltshire Council,15/05/2013,5106310372,640.88,Alabare Christian Care Centre ,100837,SP1 ,Community Services,MH AOWA South,Adult Domiciliary Care - Spot,Third Party Payments,REVENUE
http://statistics.data.gov.uk/id/local-authority/00HY,Wiltshire Council,24/05/2013,5106313071,24598.90,Alabare Christian Care Centre ,100837,SP1 ,Children & Education,Towpath Road,Adult / Child Care Agency Placement,Third Party Payments,REVENUE
http://statistics.data.gov.uk/id/local-authority/00HY,Wiltshire Council,24/05/2013,5106313072,18595.68,Alabare Christian Care Centre ,100837,SP1 ,Children & Education,Towpath Road,Adult / Child Care Agency Placement,Third Party Payments,REVENUE
http://statistics.data.gov.uk/id/local-authority/00HY,Wiltshire Council,24/05/2013,5106313073,728.70,Alabare Christian Care Centre ,100837,SP1 ,Children & Education,Towpath Road,Adult / Child Care Agency Placement,Third Party Payments,REVENUE
http://statistics.data.gov.uk/id/local-authority/00HY,Wiltshire Council,24/05/2013,5106312957,411.60,Alchemize Consulting Ltd ,113390,LE7 ,Resources,Corporate Directors,Staff Training Course Costs,Employee Related,REVENUE
http://statistics.data.gov.uk/id/local-authority/00HY,Wiltshire Council,09/05/2013,1901045360,13735.74,Aldbourne Nursing Home ,110090,SN8 ,Community Services,FNC,Adult Care Funded Nursing Care - Out of County Cli,Third Party Payments,REVENUE
http://statistics.data.gov.uk/id/local-authority/00HY,Wiltshire Council,23/05/2013,1901058806,382.86,Aldbourne Nursing Home ,110090,SN8 ,Community Services,STARR Scheme,Adult Nursing Placements - transitional beds,Third Party Payments,REVENUE
http://statistics.data.gov.uk/id/local-authority/00HY,Wiltshire Council,08/05/2013,5106304821,2040.84,Aldbourne Nursing Home ,110090,SN8 ,Community Services,OP East Locality,Adult Care Nursing Placements- Spot Purchase,Third Party Payments,REVENUE
http://statistics.data.gov.uk/id/local-authority/00HY,Wiltshire Council,08/05/2013,5106304822,439.16,Aldbourne Nursing Home ,110090,SN8 ,Community Services,OP East FNC,Adult Care Funded Nursing Care - Loal Auth Clients,Third Party Payments,REVENUE
http://statistics.data.gov.uk/id/local-authority/00HY,Wiltshire Council,08/05/2013,5106305378,2324.84,Aldbourne Nursing Home ,110090,SN8 ,Community Services,MH OP East Locality,Adult Care Nursing Placements- Spot Purchase,Third Party Payments,REVENUE
http://statistics.data.gov.uk/id/local-authority/00HY,Wiltshire Council,08/05/2013,5106305379,439.16,Aldbourne Nursing Home ,110090,SN8 ,Community Services,MH OA East FNC,Adult Care Funded Nursing Care - Loal Auth Clients,Third Party Payments,REVENUE
http://statistics.data.gov.uk/id/local-authority/00HY,Wiltshire Council,08/05/2013,5106305786,2040.84,Aldbourne Nursing Home ,110090,SN8 ,Community Services,OP East Locality,Adult Care Nursing Placements- Spot Purchase,Third Party Payments,REVENUE
http://statistics.data.gov.uk/id/local-authority/00HY,Wiltshire Council,08/05/2013,5106305787,439.16,Aldbourne Nursing Home ,110090,SN8 ,Community Services,OP East FNC,Adult Care Funded Nursing Care - Loal Auth Clients,Third Party Payments,REVENUE
http://statistics.data.gov.uk/id/local-authority/00HY,Wiltshire Council,08/05/2013,5106305804,2040.84,Aldbourne Nursing Home ,110090,SN8 ,Community Services,OP West Locality,Adult Care Nursing Placements- Spot Purchase,Third Party Payments,REVENUE
http://statistics.data.gov.uk/id/local-authority/00HY,Wiltshire Council,08/05/2013,5106305805,439.16,Aldbourne Nursing Home ,110090,SN8 ,Community Services,OP West FNC,Adult Care Funded Nursing Care - Loal Auth Clients,Third Party Payments,REVENUE
http://statistics.data.gov.uk/id/local-authority/00HY,Wiltshire Council,24/05/2013,5106313027,823.14,Aldbourne Nursing Home ,110090,SN8 ,Community Services,Home Loans,Adult Care - Home Loan Costs,Capital charges and Expenditure,REVENUE
http://statistics.data.gov.uk/id/local-authority/00HY,Wiltshire Council,24/05/2013,5106313028,2560.84,Aldbourne Nursing Home ,110090,SN8 ,Community Services,Home Loans,Adult Care - Home Loan Costs,Capital charges and Expenditure,REVENUE
http://statistics.data.gov.uk/id/local-authority/00HY,Wiltshire Council,17/05/2013,5106302005,750.00,Alert Training UK ,126098,SP1 ,Children & Education,EOTAS Service,Educational Fees,Supplies and Services,REVENUE
http://statistics.data.gov.uk/id/local-authority/00HY,Wiltshire Council,08/05/2013,5106303152,6169.08,Alexandra Homes (Bristol) Ltd ,131787,BS15,Community Services,MH AOWA West,Adult Residential Placements - Spot Purchase,Third Party Payments,REVENUE
http://statistics.data.gov.uk/id/local-authority/00HY,Wiltshire Council,08/05/2013,5106302952,3513.16,Alliance Home Care ,110986,SN15,Community Services,CTPLD County CIC U65,Adult Residential Placements - Spot Purchase,Third Party Payments,REVENUE
http://statistics.data.gov.uk/id/local-authority/00HY,Wiltshire Council,08/05/2013,5106303032,3419.72,Alliance Home Care ,110986,SN15,Community Services,PI North Locality,Adult Residential Placements - Spot Purchase,Third Party Payments,REVENUE
http://statistics.data.gov.uk/id/local-authority/00HY,Wiltshire Council,08/05/2013,5106305711,3749.52,Alliance Home Care ,110986,SN15,Community Services,MH OP East Locality,Adult Residential Placements - Spot Purchase,Third Party Payments,REVENUE
http://statistics.data.gov.uk/id/local-authority/00HY,Wiltshire Council,08/05/2013,5106306165,260.80,Alliance Home Care ,110986,SN15,Community Services,MH AOWA North,Adult Residential Placements - Spot Purchase,Third Party Payments,REVENUE
http://statistics.data.gov.uk/id/local-authority/00HY,Wiltshire Council,08/05/2013,5106306177,3991.80,Alliance Home Care ,110986,SN15,Community Services,MH PCT Section 256,Adult Residential Placements - Spot Purchase,Third Party Payments,REVENUE
http://statistics.data.gov.uk/id/local-authority/00HY,Wiltshire Council,28/05/2013,5106314149,1564.80,Alliance Home Care ,110986,SN15,Community Services,MH AOWA North,Adult Residential Placements - Spot Purchase,Third Party Payments,REVENUE
http://statistics.data.gov.uk/id/local-authority/00HY,Wiltshire Council,09/05/2013,1901045225,776.50,ALLIANCE PBC GROUP ,136021,SP9 ,Neighbourhood & Planning,Sexual Health Commun,Public Health Commissioning,Supplies and Services,REVENUE
http://statistics.data.gov.uk/id/local-authority/00HY,Wiltshire Council,09/05/2013,1901045226,887.00,ALLIANCE PBC GROUP ,136021,SP9 ,Neighbourhood & Planning,Sexual Health Commun,Public Health Commissioning,Supplies and Services,REVENUE
http://statistics.data.gov.uk/id/local-authority/00HY,Wiltshire Council,09/05/2013,1901045227,366.67,ALLIANCE PBC GROUP ,136021,SP9 ,Neighbourhood & Planning,Sexual Health Commun,Public Health Commissioning,Supplies and Services,REVENUE
http://statistics.data.gov.uk/id/local-authority/00HY,Wiltshire Council,01/05/2013,5106301992,2919.84,Allied Care Group ,134663,GU21,Community Services,MH AOWA North,Supported Living - Without SP payments,Third Party Payments,REVENUE
http://statistics.data.gov.uk/id/local-authority/00HY,Wiltshire Council,01/05/2013,5106301993,2919.84,Allied Care Group ,134663,GU21,Community Services,MH AOWA North,Supported Living - Without SP payments,Third Party Payments,REVENUE
http://statistics.data.gov.uk/id/local-authority/00HY,Wiltshire Council,01/05/2013,5106301994,2607.00,Allied Care Group ,134663,GU21,Community Services,MH AOWA North,Supported Living - Without SP payments,Third Party Payments,REVENUE
http://statistics.data.gov.uk/id/local-authority/00HY,Wiltshire Council,07/05/2013,5106303994,2287.04,Allied Care Group ,134663,GU21,Community Services,MH AOWA North,Adult Domiciliary Care - Spot,Third Party Payments,REVENUE
http://statistics.data.gov.uk/id/local-authority/00HY,Wiltshire Council,08/05/2013,5106306628,2287.04,Allied Care Group ,134663,GU21,Community Services,MH AOWA North,Supported Living - Without SP payments,Third Party Payments,REVENUE
http://statistics.data.gov.uk/id/local-authority/00HY,Wiltshire Council,08/05/2013,5106306629,2532.08,Allied Care Group ,134663,GU21,Community Services,MH AOWA North,Supported Living - Without SP payments,Third Party Payments,REVENUE
http://statistics.data.gov.uk/id/local-authority/00HY,Wiltshire Council,23/05/2013,5106312757,2919.84,Allied Care Group ,134663,GU21,Community Services,MH AOWA North,Supported Living - Without SP payments,Third Party Payments,REVENUE
http://statistics.data.gov.uk/id/local-authority/00HY,Wiltshire Council,29/05/2013,5106314253,2919.84,Allied Care Group ,134663,GU21,Community Services,MH AOWA North,Supported Living - Without SP payments,Third Party Payments,REVENUE
http://statistics.data.gov.uk/id/local-authority/00HY,Wiltshire Council,29/05/2013,5106314254,2919.84,Allied Care Group ,134663,GU21,Community Services,MH AOWA North,Supported Living - Without SP payments,Third Party Payments,REVENUE
http://statistics.data.gov.uk/id/local-authority/00HY,Wiltshire Council,29/05/2013,5106314173,349.32,Allied Health Care Allied Health Care,123001,SN4 ,Community Services,Wilts Suppd Living,Agency Staff,Employee Related,REVENUE
http://statistics.data.gov.uk/id/local-authority/00HY,Wiltshire Council,09/05/2013,5106307557,1707.16,Allied Healthcare  UK  Ltd Allied Healthcare  UK  Ltd,110113,ST18,Community Services,PI South Locality,Adult Domiciliary Care - Spot Contribution,Income,REVENUE
http://statistics.data.gov.uk/id/local-authority/00HY,Wiltshire Council,07/05/2013,5106303992,2919.84,Allied Healthcare Group Allied Healthcare Group,113066,SP2 ,Community Services,MH AOWA North,Adult Domiciliary Care - Spot,Third Party Payments,REVENUE
http://statistics.data.gov.uk/id/local-authority/00HY,Wiltshire Council,07/05/2013,5106303993,2919.84,Allied Healthcare Group Allied Healthcare Group,113066,SP2 ,Community Services,MH AOWA North,Supported Living - Without SP payments,Third Party Payments,REVENUE
http://statistics.data.gov.uk/id/local-authority/00HY,Wiltshire Council,10/05/2013,5106306715,3597.19,Allied Healthcare Group Allied Healthcare Group,113066,SP2 ,Community Services,CTPLD County CIC U65,Adult Day Care - Spot,Third Party Payments,REVENUE
http://statistics.data.gov.uk/id/local-authority/00HY,Wiltshire Council,10/05/2013,5106306716,2162.78,Allied Healthcare Group Allied Healthcare Group,113066,SP2 ,Community Services,CTPLD County CIC U65,Adult Domiciliary Care - Spot,Third Party Payments,REVENUE
http://statistics.data.gov.uk/id/local-authority/00HY,Wiltshire Council,09/05/2013,5106307549,1047.86,Allied Healthcare Group Allied Healthcare Group,113066,SP2 ,Community Services,MH AOWA South,Adult Domiciliary Care - Spot,Third Party Payments,REVENUE
http://statistics.data.gov.uk/id/local-authority/00HY,Wiltshire Council,09/05/2013,5106307553,890.03,Allied Healthcare Group Allied Healthcare Group,113066,SP2 ,Community Services,MH AOWA South,Adult Domiciliary Care - Mileage,Third Party Payments,REVENUE
http://statistics.data.gov.uk/id/local-authority/00HY,Wiltshire Council,09/05/2013,5106307558,261.12,Allied Healthcare Group Allied Healthcare Group,113066,SP2 ,Community Services,MH AOWA West,Carers Voucher Schemes,Third Party Payments,REVENUE
http://statistics.data.gov.uk/id/local-authority/00HY,Wiltshire Council,09/05/2013,5106307559,285.60,Allied Healthcare Group Allied Healthcare Group,113066,SP2 ,Community Services,MH AOWA West,Carers Voucher Schemes,Third Party Payments,REVENUE
http://statistics.data.gov.uk/id/local-authority/00HY,Wiltshire Council,10/05/2013,5106307819,484.97,Allied Healthcare Group Allied Healthcare Group,113066,SP2 ,Community Services,PI South Locality,Adult Domiciliary Care - Block Contribution,Income,REVENUE
http://statistics.data.gov.uk/id/local-authority/00HY,Wiltshire Council,10/05/2013,5106307886,4711.84,Allied Healthcare Group Allied Healthcare Group,113066,SP2 ,Community Services,PI South Locality,Adult Domiciliary care - Live in contribution,Income,REVENUE
http://statistics.data.gov.uk/id/local-authority/00HY,Wiltshire Council,10/05/2013,5106308008,261.12,Allied Healthcare Group Allied Healthcare Group,113066,SP2 ,Community Services,MH AOWA West,Carers Voucher Schemes,Third Party Payments,REVENUE
http://statistics.data.gov.uk/id/local-authority/00HY,Wiltshire Council,13/05/2013,5106309362,318.01,Allied Healthcare Group Allied Healthcare Group,113066,SP2 ,Community Services,PI South Locality,Adult Domiciliary Care - Spot,Third Party Payments,REVENUE
http://statistics.data.gov.uk/id/local-authority/00HY,Wiltshire Council,08/05/2013,5106295899,680.00,ALLSPARES  AUTO  LTD ,110116,CF33,Neighbourhood & Planning,Fleet Operations,Vehicle Oil & Consumables,Transport Related,REVENUE
http://statistics.data.gov.uk/id/local-authority/00HY,Wiltshire Council,01/05/2013,5106296531,347.90,ALLSPARES  AUTO  LTD ,110116,CF33,Neighbourhood & Planning,Fleet Operations,Vehicle Parts,Transport Related,REVENUE
http://statistics.data.gov.uk/id/local-authority/00HY,Wiltshire Council,02/05/2013,5106296542,259.24,ALLSPARES  AUTO  LTD ,110116,CF33,Neighbourhood & Planning,Fleet Operations,Vehicle Parts,Transport Related,REVENUE
http://statistics.data.gov.uk/id/local-authority/00HY,Wiltshire Council,02/05/2013,5106296722,1213.73,ALLSPARES  AUTO  LTD ,110116,CF33,Neighbourhood & Planning,Fleet Operations,Vehicle Parts,Transport Related,REVENUE
http://statistics.data.gov.uk/id/local-authority/00HY,Wiltshire Council,13/05/2013,5106302362,340.00,ALLSPARES  AUTO  LTD ,110116,CF33,Neighbourhood & Planning,Fleet Operations,Vehicle Oil & Consumables,Transport Related,REVENUE
http://statistics.data.gov.uk/id/local-authority/00HY,Wiltshire Council,23/05/2013,5106306637,650.00,ALLSPARES  AUTO  LTD ,110116,CF33,Neighbourhood & Planning,Fleet Operations,Vehicle Parts,Transport Related,REVENUE
http://statistics.data.gov.uk/id/local-authority/00HY,Wiltshire Council,29/05/2013,5106310164,563.49,ALLSPARES  AUTO  LTD ,110116,CF33,Neighbourhood & Planning,Fleet Operations,Vehicle Parts,Transport Related,REVENUE
http://statistics.data.gov.uk/id/local-authority/00HY,Wiltshire Council,17/05/2013,5106311266,976.47,ALLSPARES  AUTO  LTD ,110116,CF33,Neighbourhood & Planning,Fleet Operations,Vehicle Parts,Transport Related,REVENUE
http://statistics.data.gov.uk/id/local-authority/00HY,Wiltshire Council,17/05/2013,5106311267,1236.36,ALLSPARES  AUTO  LTD ,110116,CF33,Neighbourhood & Planning,Fleet Operations,Vehicle Parts,Transport Related,REVENUE
http://statistics.data.gov.uk/id/local-authority/00HY,Wiltshire Council,01/05/2013,5106302057,451.02,Allstar Business Solutions Limited ,132643,SN5 ,Neighbourhood & Planning,Fleet Operations,Vehicle Fuel,Transport Related,REVENUE
http://statistics.data.gov.uk/id/local-authority/00HY,Wiltshire Council,01/05/2013,5106302058,1533.90,Allstar Business Solutions Limited ,132643,SN5 ,Neighbourhood & Planning,Fleet Operations,Vehicle Fuel,Transport Related,REVENUE
http://statistics.data.gov.uk/id/local-authority/00HY,Wiltshire Council,14/05/2013,5106310231,1043.46,Allstar Business Solutions Limited ,132643,SN5 ,Neighbourhood & Planning,Fleet Operations,Vehicle Fuel,Transport Related,REVENUE
http://statistics.data.gov.uk/id/local-authority/00HY,Wiltshire Council,14/05/2013,5106310232,357.01,Allstar Business Solutions Limited ,132643,SN5 ,Neighbourhood & Planning,Fleet Operations,Vehicle Fuel,Transport Related,REVENUE
http://statistics.data.gov.uk/id/local-authority/00HY,Wiltshire Council,17/05/2013,5106311061,345.52,Allstar Business Solutions Limited ,132643,SN5 ,Neighbourhood & Planning,Fleet Operations,Vehicle Fuel,Transport Related,REVENUE
http://statistics.data.gov.uk/id/local-authority/00HY,Wiltshire Council,17/05/2013,5106311062,738.17,Allstar Business Solutions Limited ,132643,SN5 ,Neighbourhood & Planning,Fleet Operations,Vehicle Fuel,Transport Related,REVENUE
http://statistics.data.gov.uk/id/local-authority/00HY,Wiltshire Council,24/05/2013,5106312873,490.96,Allstar Business Solutions Limited ,132643,SN5 ,Neighbourhood & Planning,Fleet Operations,Vehicle Fuel,Transport Related,REVENUE
http://statistics.data.gov.uk/id/local-authority/00HY,Wiltshire Council,24/05/2013,5106312874,1298.22,Allstar Business Solutions Limited ,132643,SN5 ,Neighbourhood & Planning,Fleet Operations,Vehicle Fuel,Transport Related,REVENUE
http://statistics.data.gov.uk/id/local-authority/00HY,Wiltshire Council,31/05/2013,5106316362,1317.49,Allstar Business Solutions Limited ,132643,SN5 ,Neighbourhood & Planning,Fleet Operations,Vehicle Fuel,Transport Related,REVENUE
http://statistics.data.gov.uk/id/local-authority/00HY,Wiltshire Council,31/05/2013,5106316363,339.28,Allstar Business Solutions Limited ,132643,SN5 ,Neighbourhood & Planning,Fleet Operations,Vehicle Fuel,Transport Related,REVENUE
http://statistics.data.gov.uk/id/local-authority/00HY,Wiltshire Council,01/05/2013,1901043220,588.60,Alpha Taxis ,100124,BA14,Children & Education,EOTAS Service,Transport Contracts,Third Party Payments,REVENUE
http://statistics.data.gov.uk/id/local-authority/00HY,Wiltshire Council,01/05/2013,1901043220,2478.45,Alpha Taxis ,100124,BA14,Children & Education,Ref & Assess Devizes,Transport Contracts,Third Party Payments,REVENUE
http://statistics.data.gov.uk/id/local-authority/00HY,Wiltshire Council,01/05/2013,1901043220,3054.40,Alpha Taxis ,100124,BA14,Children & Education,Community Team North,Transport Contracts,Third Party Payments,REVENUE
http://statistics.data.gov.uk/id/local-authority/00HY,Wiltshire Council,09/05/2013,1901045709,738.05,Alpha Taxis ,100124,BA14,Community Services,CTPLD County CIC U65,Transport Contracts,Third Party Payments,REVENUE
http://statistics.data.gov.uk/id/local-authority/00HY,Wiltshire Council,09/05/2013,1901045711,1151.00,Alpha Taxis ,100124,BA14,Community Services,CTPLD County CIC U65,Transport Contracts,Third Party Payments,REVENUE
http://statistics.data.gov.uk/id/local-authority/00HY,Wiltshire Council,09/05/2013,1901045712,498.00,Alpha Taxis ,100124,BA14,Children & Education,SENTransport,Transport Contracts,Third Party Payments,REVENUE
http://statistics.data.gov.uk/id/local-authority/00HY,Wiltshire Council,09/05/2013,1901045715,407.63,Alpha Taxis ,100124,BA14,Neighbourhood & Planning,Mainstream Primary,Transport Contracts,Third Party Payments,REVENUE
http://statistics.data.gov.uk/id/local-authority/00HY,Wiltshire Council,09/05/2013,1901045715,543.52,Alpha Taxis ,100124,BA14,Neighbourhood & Planning,Mainstream Secondary,Transport Contracts,Third Party Payments,REVENUE
http://statistics.data.gov.uk/id/local-authority/00HY,Wiltshire Council,09/05/2013,1901045716,1464.00,Alpha Taxis ,100124,BA14,Children & Education,Community Team West,Transport Contracts,Third Party Payments,REVENUE
http://statistics.data.gov.uk/id/local-authority/00HY,Wiltshire Council,09/05/2013,1901045717,565.02,Alpha Taxis ,100124,BA14,Children & Education,Community Team East,Transport Contracts,Third Party Payments,REVENUE
http://statistics.data.gov.uk/id/local-authority/00HY,Wiltshire Council,09/05/2013,1901045718,412.50,Alpha Taxis ,100124,BA14,Children & Education,Ref & Assess Devizes,Transport Contracts,Third Party Payments,REVENUE
http://statistics.data.gov.uk/id/local-authority/00HY,Wiltshire Council,09/05/2013,1901045719,471.80,Alpha Taxis ,100124,BA14,Neighbourhood & Planning,Mainstream 16+ FE,Transport Contracts,Third Party Payments,REVENUE
http://statistics.data.gov.uk/id/local-authority/00HY,Wiltshire Council,09/05/2013,1901045720,270.00,Alpha Taxis ,100124,BA14,Children & Education,EOTAS Service,Transport Contracts,Third Party Payments,REVENUE
http://statistics.data.gov.uk/id/local-authority/00HY,Wiltshire Council,09/05/2013,1901045723,613.60,Alpha Taxis ,100124,BA14,Children & Education,Ref & Assess Devizes,Transport Contracts,Third Party Payments,REVENUE
http://statistics.data.gov.uk/id/local-authority/00HY,Wiltshire Council,09/05/2013,1901045725,474.30,Alpha Taxis ,100124,BA14,Children & Education,SENTransport,Transport Contracts,Third Party Payments,REVENUE
http://statistics.data.gov.uk/id/local-authority/00HY,Wiltshire Council,09/05/2013,1901045727,281.98,Alpha Taxis ,100124,BA14,Community Services,CTPLD County CIC U65,Transport Contracts,Third Party Payments,REVENUE
http://statistics.data.gov.uk/id/local-authority/00HY,Wiltshire Council,09/05/2013,1901045727,281.99,Alpha Taxis ,100124,BA14,Community Services,PI East Locality,Transport Contracts,Third Party Payments,REVENUE
http://statistics.data.gov.uk/id/local-authority/00HY,Wiltshire Council,09/05/2013,1901045732,273.70,Alpha Taxis ,100124,BA14,Neighbourhood & Planning,Mainstream Primary,Transport Contracts,Third Party Payments,REVENUE
http://statistics.data.gov.uk/id/local-authority/00HY,Wiltshire Council,09/05/2013,1901045733,345.84,Alpha Taxis ,100124,BA14,Neighbourhood & Planning,Mainstream Primary,Transport Contracts,Third Party Payments,REVENUE
http://statistics.data.gov.uk/id/local-authority/00HY,Wiltshire Council,09/05/2013,1901045735,450.00,Alpha Taxis ,100124,BA14,Children & Education,EOTAS Service,Transport Contracts,Third Party Payments,REVENUE
http://statistics.data.gov.uk/id/local-authority/00HY,Wiltshire Council,09/05/2013,1901045736,755.46,Alpha Taxis ,100124,BA14,Children & Education,SENTransport,Transport Contracts,Third Party Payments,REVENUE
http://statistics.data.gov.uk/id/local-authority/00HY,Wiltshire Council,09/05/2013,1901045738,401.99,Alpha Taxis ,100124,BA14,Neighbourhood & Planning,Mainstream Secondary,Transport Contracts,Third Party Payments,REVENUE
http://statistics.data.gov.uk/id/local-authority/00HY,Wiltshire Council,21/05/2013,1901057279,266.60,Alpha Taxis ,100124,BA14,Children & Education,SENTransport,Transport Contracts,Third Party Payments,REVENUE
http://statistics.data.gov.uk/id/local-authority/00HY,Wiltshire Council,21/05/2013,1901057279,299.50,Alpha Taxis ,100124,BA14,Children & Education,VoiceInfluenceTeam,Transport Contracts,Third Party Payments,REVENUE
http://statistics.data.gov.uk/id/local-authority/00HY,Wiltshire Council,21/05/2013,1901057279,413.30,Alpha Taxis ,100124,BA14,Children & Education,LAC & 16+ Team 1,Transport Contracts,Third Party Payments,REVENUE
http://statistics.data.gov.uk/id/local-authority/00HY,Wiltshire Council,21/05/2013,1901057279,414.14,Alpha Taxis ,100124,BA14,Children & Education,LAC & 16+ Team 2,Transport Contracts,Third Party Payments,REVENUE
http://statistics.data.gov.uk/id/local-authority/00HY,Wiltshire Council,21/05/2013,1901057279,493.94,Alpha Taxis ,100124,BA14,Children & Education,Community Team East,Transport Contracts,Third Party Payments,REVENUE
http://statistics.data.gov.uk/id/local-authority/00HY,Wiltshire Council,21/05/2013,1901057279,582.80,Alpha Taxis ,100124,BA14,Children & Education,EOTAS Service,Transport Contracts,Third Party Payments,REVENUE
http://statistics.data.gov.uk/id/local-authority/00HY,Wiltshire Council,21/05/2013,1901057279,2423.17,Alpha Taxis ,100124,BA14,Children & Education,Ref & Assess Devizes,Transport Contracts,Third Party Payments,REVENUE
http://statistics.data.gov.uk/id/local-authority/00HY,Wiltshire Council,28/05/2013,5106311815,6609.75,Alzheimer's Society ,110125,SP1 ,Community Services,Social Inclusion,Grants Paid to individuals for Tangible Benefits,Supplies and Services,REVENUE
http://statistics.data.gov.uk/id/local-authority/00HY,Wiltshire Council,28/05/2013,5106311815,7277.00,Alzheimer's Society ,110125,SP1 ,Community Services,Carers General,Grants Paid to individuals for Tangible Benefits,Supplies and Services,REVENUE
http://statistics.data.gov.uk/id/local-authority/00HY,Wiltshire Council,28/05/2013,5106311815,7693.50,Alzheimer's Society ,110125,SP1 ,Community Services,MH Dementia Strategy,Grants Paid to individuals for Tangible Benefits,Supplies and Services,REVENUE
http://statistics.data.gov.uk/id/local-authority/00HY,Wiltshire Council,28/05/2013,5106311815,15629.75,Alzheimer's Society ,110125,SP1 ,Community Services,MH Commissioned Cont,Grants Paid to individuals for Tangible Benefits,Supplies and Services,REVENUE
http://statistics.data.gov.uk/id/local-authority/00HY,Wiltshire Council,28/05/2013,5106311823,4906.75,Alzheimer's Society ,110125,SP1 ,Community Services,Social Inclusion,Grants Paid to individuals for Tangible Benefits,Supplies and Services,REVENUE
http://statistics.data.gov.uk/id/local-authority/00HY,Wiltshire Council,28/05/2013,5106311823,5871.00,Alzheimer's Society ,110125,SP1 ,Community Services,Carers General,Grants Paid to individuals for Tangible Benefits,Supplies and Services,REVENUE
http://statistics.data.gov.uk/id/local-authority/00HY,Wiltshire Council,28/05/2013,5106311823,7169.75,Alzheimer's Society ,110125,SP1 ,Community Services,MH Commissioned Cont,Grants Paid to individuals for Tangible Benefits,Supplies and Services,REVENUE
http://statistics.data.gov.uk/id/local-authority/00HY,Wiltshire Council,28/05/2013,5106311823,7693.50,Alzheimer's Society ,110125,SP1 ,Community Services,MH Dementia Strategy,Grants Paid to individuals for Tangible Benefits,Supplies and Services,REVENUE
http://statistics.data.gov.uk/id/local-authority/00HY,Wiltshire Council,22/05/2013,1901057539,1852.29,Alzheimers Support ,110127,BA14,Community Services,MH OP West Locality,Adult Domiciliary Care - Spot,Third Party Payments,REVENUE
http://statistics.data.gov.uk/id/local-authority/00HY,Wiltshire Council,24/05/2013,5106312893,293.10,Alzheimers Support ,113451,BA14,Community Services,MH OP East Locality,Adult Domiciliary Care - Mileage,Third Party Payments,REVENUE
http://statistics.data.gov.uk/id/local-authority/00HY,Wiltshire Council,29/05/2013,5106314247,2788.00,Amaze ,127994,M15 ,Resources,Infrastructure,Hardware Maintenance,Supplies and Services,REVENUE
http://statistics.data.gov.uk/id/local-authority/00HY,Wiltshire Council,21/05/2013,5106311778,3146.50,Amicus Foster Care Limited ,126050,BS2 ,Children & Education,External Placements,Adult / Child Care Agency Placement,Third Party Payments,REVENUE
http://statistics.data.gov.uk/id/local-authority/00HY,Wiltshire Council,21/05/2013,5106311779,3146.50,Amicus Foster Care Limited ,126050,BS2 ,Children & Education,External Placements,Adult / Child Care Agency Placement,Third Party Payments,REVENUE
http://statistics.data.gov.uk/id/local-authority/00HY,Wiltshire Council,21/05/2013,5106311780,3146.50,Amicus Foster Care Limited ,126050,BS2 ,Children & Education,External Placements,Adult / Child Care Agency Placement,Third Party Payments,REVENUE
http://statistics.data.gov.uk/id/local-authority/00HY,Wiltshire Council,09/05/2013,1901045358,10733.70,AMS Care Wiltshire ,130764,SN4 ,Community Services,FNC,Adult Care Funded Nursing Care - Out of County Cli,Third Party Payments,REVENUE
http://statistics.data.gov.uk/id/local-authority/00HY,Wiltshire Council,08/05/2013,5106304044,2304.00,AMS Care Wiltshire ,130764,SN4 ,Community Services,OP North Locality,Adult Care Nursing Placements- Block Contract,Third Party Payments,REVENUE
http://statistics.data.gov.uk/id/local-authority/00HY,Wiltshire Council,08/05/2013,5106304045,439.16,AMS Care Wiltshire ,130764,SN4 ,Community Services,OP North FNC,Adult Care Funded Nursing Care - Loal Auth Clients,Third Party Payments,REVENUE
http://statistics.data.gov.uk/id/local-authority/00HY,Wiltshire Council,08/05/2013,5106304050,2304.00,AMS Care Wiltshire ,130764,SN4 ,Community Services,OP East Locality,Adult Care Nursing Placements- Block Contract,Third Party Payments,REVENUE
http://statistics.data.gov.uk/id/local-authority/00HY,Wiltshire Council,08/05/2013,5106304051,439.16,AMS Care Wiltshire ,130764,SN4 ,Community Services,OP East FNC,Adult Care Funded Nursing Care - Loal Auth Clients,Third Party Payments,REVENUE
http://statistics.data.gov.uk/id/local-authority/00HY,Wiltshire Council,08/05/2013,5106304053,2304.00,AMS Care Wiltshire ,130764,SN4 ,Community Services,OP North Locality,Adult Care Nursing Placements- Block Contract,Third Party Payments,REVENUE
http://statistics.data.gov.uk/id/local-authority/00HY,Wiltshire Council,08/05/2013,5106304054,439.16,AMS Care Wiltshire ,130764,SN4 ,Community Services,OP North FNC,Adult Care Funded Nursing Care - Loal Auth Clients,Third Party Payments,REVENUE
http://statistics.data.gov.uk/id/local-authority/00HY,Wiltshire Council,08/05/2013,5106304075,2304.00,AMS Care Wiltshire ,130764,SN4 ,Community Services,MH OP West Locality,Adult Care Nursing Placements- Block Contract,Third Party Payments,REVENUE
http://statistics.data.gov.uk/id/local-authority/00HY,Wiltshire Council,08/05/2013,5106304076,439.16,AMS Care Wiltshire ,130764,SN4 ,Community Services,MH OA West FNC,Adult Care Funded Nursing Care - Loal Auth Clients,Third Party Payments,REVENUE
http://statistics.data.gov.uk/id/local-authority/00HY,Wiltshire Council,08/05/2013,5106304087,2304.00,AMS Care Wiltshire ,130764,SN4 ,Community Services,OP North Locality,Adult Care Nursing Placements- Block Contract,Third Party Payments,REVENUE
http://statistics.data.gov.uk/id/local-authority/00HY,Wiltshire Council,08/05/2013,5106304088,439.16,AMS Care Wiltshire ,130764,SN4 ,Community Services,OP North FNC,Adult Care Funded Nursing Care - Loal Auth Clients,Third Party Payments,REVENUE
http://statistics.data.gov.uk/id/local-authority/00HY,Wiltshire Council,08/05/2013,5106304093,2304.00,AMS Care Wiltshire ,130764,SN4 ,Community Services,OP North Locality,Adult Care Nursing Placements- Block Contract,Third Party Payments,REVENUE
http://statistics.data.gov.uk/id/local-authority/00HY,Wiltshire Council,08/05/2013,5106304094,439.16,AMS Care Wiltshire ,130764,SN4 ,Community Services,OP North FNC,Adult Care Funded Nursing Care - Loal Auth Clients,Third Party Payments,REVENUE
http://statistics.data.gov.uk/id/local-authority/00HY,Wiltshire Council,08/05/2013,5106304119,2304.00,AMS Care Wiltshire ,130764,SN4 ,Community Services,OP North Locality,Adult Care Nursing Placements- Block Contract,Third Party Payments,REVENUE
http://statistics.data.gov.uk/id/local-authority/00HY,Wiltshire Council,08/05/2013,5106304120,439.16,AMS Care Wiltshire ,130764,SN4 ,Community Services,OP North FNC,Adult Care Funded Nursing Care - Loal Auth Clients,Third Party Payments,REVENUE
http://statistics.data.gov.uk/id/local-authority/00HY,Wiltshire Council,08/05/2013,5106304131,2304.00,AMS Care Wiltshire ,130764,SN4 ,Community Services,OP North Locality,Adult Care Nursing Placements- Block Contract,Third Party Payments,REVENUE
http://statistics.data.gov.uk/id/local-authority/00HY,Wiltshire Council,08/05/2013,5106304132,439.16,AMS Care Wiltshire ,130764,SN4 ,Community Services,OP South FNC,Adult Care Funded Nursing Care - Loal Auth Clients,Third Party Payments,REVENUE
http://statistics.data.gov.uk/id/local-authority/00HY,Wiltshire Council,08/05/2013,5106304166,2304.00,AMS Care Wiltshire ,130764,SN4 ,Community Services,OP North Locality,Adult Care Nursing Placements- Block Contract,Third Party Payments,REVENUE
http://statistics.data.gov.uk/id/local-authority/00HY,Wiltshire Council,08/05/2013,5106304167,439.16,AMS Care Wiltshire ,130764,SN4 ,Community Services,OP North FNC,Adult Care Funded Nursing Care - Loal Auth Clients,Third Party Payments,REVENUE
http://statistics.data.gov.uk/id/local-authority/00HY,Wiltshire Council,08/05/2013,5106304169,2304.00,AMS Care Wiltshire ,130764,SN4 ,Community Services,OP North Locality,Adult Care Nursing Placements- Block Contract,Third Party Payments,REVENUE
http://statistics.data.gov.uk/id/local-authority/00HY,Wiltshire Council,08/05/2013,5106304170,439.16,AMS Care Wiltshire ,130764,SN4 ,Community Services,OP North FNC,Adult Care Funded Nursing Care - Loal Auth Clients,Third Party Payments,REVENUE
http://statistics.data.gov.uk/id/local-authority/00HY,Wiltshire Council,08/05/2013,5106304175,740.61,AMS Care Wiltshire ,130764,SN4 ,Community Services,OP East Locality,Adult Care Nursing Placements- Block Contract,Third Party Payments,REVENUE
http://statistics.data.gov.uk/id/local-authority/00HY,Wiltshire Council,08/05/2013,5106304193,2304.00,AMS Care Wiltshire ,130764,SN4 ,Community Services,OP North Locality,Adult Care Nursing Placements- Block Contract,Third Party Payments,REVENUE
http://statistics.data.gov.uk/id/local-authority/00HY,Wiltshire Council,08/05/2013,5106304194,439.16,AMS Care Wiltshire ,130764,SN4 ,Community Services,OP North FNC,Adult Care Funded Nursing Care - Loal Auth Clients,Third Party Payments,REVENUE
http://statistics.data.gov.uk/id/local-authority/00HY,Wiltshire Council,08/05/2013,5106304199,2304.00,AMS Care Wiltshire ,130764,SN4 ,Community Services,OP North Locality,Adult Care Nursing Placements- Block Contract,Third Party Payments,REVENUE
http://statistics.data.gov.uk/id/local-authority/00HY,Wiltshire Council,08/05/2013,5106304200,439.16,AMS Care Wiltshire ,130764,SN4 ,Community Services,OP North FNC,Adult Care Funded Nursing Care - Loal Auth Clients,Third Party Payments,REVENUE
http://statistics.data.gov.uk/id/local-authority/00HY,Wiltshire Council,08/05/2013,5106304238,2304.00,AMS Care Wiltshire ,130764,SN4 ,Community Services,OP North Locality,Adult Care Nursing Placements- Block Contract,Third Party Payments,REVENUE
http://statistics.data.gov.uk/id/local-authority/00HY,Wiltshire Council,08/05/2013,5106304239,439.16,AMS Care Wiltshire ,130764,SN4 ,Community Services,OP North FNC,Adult Care Funded Nursing Care - Loal Auth Clients,Third Party Payments,REVENUE
http://statistics.data.gov.uk/id/local-authority/00HY,Wiltshire Council,08/05/2013,5106304244,2304.00,AMS Care Wiltshire ,130764,SN4 ,Community Services,OP North Locality,Adult Care Nursing Placements- Block Contract,Third Party Payments,REVENUE
http://statistics.data.gov.uk/id/local-authority/00HY,Wiltshire Council,08/05/2013,5106304245,439.16,AMS Care Wiltshire ,130764,SN4 ,Community Services,OP North FNC,Adult Care Funded Nursing Care - Loal Auth Clients,Third Party Payments,REVENUE
http://statistics.data.gov.uk/id/local-authority/00HY,Wiltshire Council,08/05/2013,5106304292,2304.00,AMS Care Wiltshire ,130764,SN4 ,Community Services,OP North Locality,Adult Care Nursing Placements- Block Contract,Third Party Payments,REVENUE
http://statistics.data.gov.uk/id/local-authority/00HY,Wiltshire Council,08/05/2013,5106304293,439.16,AMS Care Wiltshire ,130764,SN4 ,Community Services,OP North FNC,Adult Care Funded Nursing Care - Loal Auth Clients,Third Party Payments,REVENUE
http://statistics.data.gov.uk/id/local-authority/00HY,Wiltshire Council,08/05/2013,5106304310,2304.00,AMS Care Wiltshire ,130764,SN4 ,Community Services,OP North Locality,Adult Care Nursing Placements- Block Contract,Third Party Payments,REVENUE
http://statistics.data.gov.uk/id/local-authority/00HY,Wiltshire Council,08/05/2013,5106304311,439.16,AMS Care Wiltshire ,130764,SN4 ,Community Services,OP North FNC,Adult Care Funded Nursing Care - Loal Auth Clients,Third Party Payments,REVENUE
http://statistics.data.gov.uk/id/local-authority/00HY,Wiltshire Council,08/05/2013,5106304364,2304.00,AMS Care Wiltshire ,130764,SN4 ,Community Services,OP North Locality,Adult Care Nursing Placements- Block Contract,Third Party Payments,REVENUE
http://statistics.data.gov.uk/id/local-authority/00HY,Wiltshire Council,08/05/2013,5106304365,439.16,AMS Care Wiltshire ,130764,SN4 ,Community Services,OP North FNC,Adult Care Funded Nursing Care - Loal Auth Clients,Third Party Payments,REVENUE
http://statistics.data.gov.uk/id/local-authority/00HY,Wiltshire Council,08/05/2013,5106304442,2308.36,AMS Care Wiltshire ,130764,SN4 ,Community Services,OP North Locality,Adult Care Nursing Placements- Block Contract,Third Party Payments,REVENUE
http://statistics.data.gov.uk/id/local-authority/00HY,Wiltshire Council,08/05/2013,5106304444,439.16,AMS Care Wiltshire ,130764,SN4 ,Community Services,OP North FNC,Adult Care Funded Nursing Care - Loal Auth Clients,Third Party Payments,REVENUE
http://statistics.data.gov.uk/id/local-authority/00HY,Wiltshire Council,08/05/2013,5106304503,2304.00,AMS Care Wiltshire ,130764,SN4 ,Community Services,MH OP North Locality,Adult Care Nursing Placements- Block Contract,Third Party Payments,REVENUE
http://statistics.data.gov.uk/id/local-authority/00HY,Wiltshire Council,08/05/2013,5106304504,439.16,AMS Care Wiltshire ,130764,SN4 ,Community Services,MH OA North FNC,Adult Care Funded Nursing Care - Loal Auth Clients,Third Party Payments,REVENUE
http://statistics.data.gov.uk/id/local-authority/00HY,Wiltshire Council,08/05/2013,5106304512,2304.00,AMS Care Wiltshire ,130764,SN4 ,Community Services,OP North Locality,Adult Care Nursing Placements- Block Contract,Third Party Payments,REVENUE
http://statistics.data.gov.uk/id/local-authority/00HY,Wiltshire Council,08/05/2013,5106304513,439.16,AMS Care Wiltshire ,130764,SN4 ,Community Services,OP North FNC,Adult Care Funded Nursing Care - Loal Auth Clients,Third Party Payments,REVENUE
http://statistics.data.gov.uk/id/local-authority/00HY,Wiltshire Council,08/05/2013,5106304518,2304.00,AMS Care Wiltshire ,130764,SN4 ,Community Services,OP North Locality,Adult Care Nursing Placements- Block Contract,Third Party Payments,REVENUE
http://statistics.data.gov.uk/id/local-authority/00HY,Wiltshire Council,08/05/2013,5106304519,439.16,AMS Care Wiltshire ,130764,SN4 ,Community Services,OP North FNC,Adult Care Funded Nursing Care - Loal Auth Clients,Third Party Payments,REVENUE
http://statistics.data.gov.uk/id/local-authority/00HY,Wiltshire Council,08/05/2013,5106304539,2304.00,AMS Care Wiltshire ,130764,SN4 ,Community Services,OP North Locality,Adult Care Nursing Placements- Block Contract,Third Party Payments,REVENUE
http://statistics.data.gov.uk/id/local-authority/00HY,Wiltshire Council,08/05/2013,5106304540,439.16,AMS Care Wiltshire ,130764,SN4 ,Community Services,OP North FNC,Adult Care Funded Nursing Care - Loal Auth Clients,Third Party Payments,REVENUE
http://statistics.data.gov.uk/id/local-authority/00HY,Wiltshire Council,08/05/2013,5106304542,2304.00,AMS Care Wiltshire ,130764,SN4 ,Community Services,MH OP North Locality,Adult Care Nursing Placements- Block Contract,Third Party Payments,REVENUE
http://statistics.data.gov.uk/id/local-authority/00HY,Wiltshire Council,08/05/2013,5106304543,439.16,AMS Care Wiltshire ,130764,SN4 ,Community Services,MH OA North FNC,Adult Care Funded Nursing Care - Loal Auth Clients,Third Party Payments,REVENUE
http://statistics.data.gov.uk/id/local-authority/00HY,Wiltshire Council,08/05/2013,5106304545,2304.00,AMS Care Wiltshire ,130764,SN4 ,Community Services,OP North Locality,Adult Care Nursing Placements- Block Contract,Third Party Payments,REVENUE
http://statistics.data.gov.uk/id/local-authority/00HY,Wiltshire Council,08/05/2013,5106304546,439.16,AMS Care Wiltshire ,130764,SN4 ,Community Services,OP North FNC,Adult Care Funded Nursing Care - Loal Auth Clients,Third Party Payments,REVENUE
http://statistics.data.gov.uk/id/local-authority/00HY,Wiltshire Council,08/05/2013,5106304563,2304.00,AMS Care Wiltshire ,130764,SN4 ,Community Services,MH OP North Locality,Adult Care Nursing Placements- Block Contract,Third Party Payments,REVENUE
http://statistics.data.gov.uk/id/local-authority/00HY,Wiltshire Council,08/05/2013,5106304564,439.16,AMS Care Wiltshire ,130764,SN4 ,Community Services,MH OA North FNC,Adult Care Funded Nursing Care - Loal Auth Clients,Third Party Payments,REVENUE
http://statistics.data.gov.uk/id/local-authority/00HY,Wiltshire Council,08/05/2013,5106305351,2743.16,AMS Care Wiltshire ,130764,SN4 ,Community Services,OP North Locality,Adult Care Nursing Placements- Spot Purchase,Third Party Payments,REVENUE
http://statistics.data.gov.uk/id/local-authority/00HY,Wiltshire Council,08/05/2013,5106305880,2760.84,AMS Care Wiltshire ,130764,SN4 ,Community Services,Home Loans,Adult Care - Home Loan Costs,Capital charges and Expenditure,REVENUE
http://statistics.data.gov.uk/id/local-authority/00HY,Wiltshire Council,08/05/2013,5106305901,2264.84,AMS Care Wiltshire ,130764,SN4 ,Community Services,Home Loans,Adult Care - Home Loan Costs,Capital charges and Expenditure,REVENUE
http://statistics.data.gov.uk/id/local-authority/00HY,Wiltshire Council,08/05/2013,5106305943,2711.64,AMS Care Wiltshire ,130764,SN4 ,Community Services,Home Loans,Adult Care - Home Loan Costs,Capital charges and Expenditure,REVENUE
http://statistics.data.gov.uk/id/local-authority/00HY,Wiltshire Council,08/05/2013,5106306383,3360.84,AMS Care Wiltshire ,130764,SN4 ,Community Services,Home Loans,Adult Care - Home Loan Costs,Capital charges and Expenditure,REVENUE
http://statistics.data.gov.uk/id/local-authority/00HY,Wiltshire Council,08/05/2013,5106306437,2506.00,AMS Care Wiltshire ,130764,SN4 ,Community Services,PI North Locality,Adult Care Nursing Placements- Block Contract,Third Party Payments,REVENUE
http://statistics.data.gov.uk/id/local-authority/00HY,Wiltshire Council,08/05/2013,5106306438,439.16,AMS Care Wiltshire ,130764,SN4 ,Community Services,PI North FNC,Adult Care Funded Nursing Care - Loal Auth Clients,Third Party Payments,REVENUE
http://statistics.data.gov.uk/id/local-authority/00HY,Wiltshire Council,08/05/2013,5106306446,2506.00,AMS Care Wiltshire ,130764,SN4 ,Community Services,OP North Locality,Adult Care Nursing Placements- Block Contract,Third Party Payments,REVENUE
http://statistics.data.gov.uk/id/local-authority/00HY,Wiltshire Council,08/05/2013,5106306447,439.16,AMS Care Wiltshire ,130764,SN4 ,Community Services,OP North FNC,Adult Care Funded Nursing Care - Loal Auth Clients,Third Party Payments,REVENUE
http://statistics.data.gov.uk/id/local-authority/00HY,Wiltshire Council,08/05/2013,5106306449,2304.00,AMS Care Wiltshire ,130764,SN4 ,Community Services,OP South Locality,Adult Care Nursing Placements- Block Contract,Third Party Payments,REVENUE
http://statistics.data.gov.uk/id/local-authority/00HY,Wiltshire Council,08/05/2013,5106306450,439.16,AMS Care Wiltshire ,130764,SN4 ,Community Services,OP South FNC,Adult Care Funded Nursing Care - Loal Auth Clients,Third Party Payments,REVENUE
http://statistics.data.gov.uk/id/local-authority/00HY,Wiltshire Council,08/05/2013,5106306517,987.48,AMS Care Wiltshire ,130764,SN4 ,Community Services,OP North Locality,Adult Care Nursing Placements- Block Contract,Third Party Payments,REVENUE
http://statistics.data.gov.uk/id/local-authority/00HY,Wiltshire Council,07/05/2013,1901044356,284.58,Anchor Trust - Finance Income Only ,101153,BD1 ,Community Services,OPPI Commissioned Ct,Payments to Contractors - Other,Third Party Payments,REVENUE
http://statistics.data.gov.uk/id/local-authority/00HY,Wiltshire Council,07/05/2013,1901044456,569.16,Anchor Trust - Finance Income Only ,101153,BD1 ,Community Services,OPPI Commissioned Ct,Payments to Contractors - Other,Third Party Payments,REVENUE
http://statistics.data.gov.uk/id/local-authority/00HY,Wiltshire Council,07/05/2013,1901044457,292.60,Anchor Trust - Finance Income Only ,101153,BD1 ,Community Services,OPPI Commissioned Ct,Payments to Contractors - Other,Third Party Payments,REVENUE
http://statistics.data.gov.uk/id/local-authority/00HY,Wiltshire Council,14/05/2013,1901046564,569.16,Anchor Trust - Finance Income Only ,101153,BD1 ,Community Services,OPPI Commissioned Ct,Payments to Contractors - Other,Third Party Payments,REVENUE
http://statistics.data.gov.uk/id/local-authority/00HY,Wiltshire Council,14/05/2013,1901046565,292.60,Anchor Trust - Finance Income Only ,101153,BD1 ,Community Services,OPPI Commissioned Ct,Payments to Contractors - Other,Third Party Payments,REVENUE
http://statistics.data.gov.uk/id/local-authority/00HY,Wiltshire Council,23/05/2013,5106312658,5600.00,Andover   District Mencap ,113490,SP10,Children & Education,External Placements,Adult / Child Care Agency Placement,Third Party Payments,REVENUE
http://statistics.data.gov.uk/id/local-authority/00HY,Wiltshire Council,23/05/2013,5106312659,12800.00,Andover   District Mencap ,113490,SP10,Children & Education,External Placements,Adult / Child Care Agency Placement,Third Party Payments,REVENUE
http://statistics.data.gov.uk/id/local-authority/00HY,Wiltshire Council,08/05/2013,5106305532,3264.96,Andover Nursing Home ,110142,SP10,Community Services,OP East Locality,Adult Care Nursing Placements- Spot Purchase,Third Party Payments,REVENUE
http://statistics.data.gov.uk/id/local-authority/00HY,Wiltshire Council,16/05/2013,5106307969,1180.00,Andrew Townsend Architects ,133345,SN7 ,Wiltshire Council,Wiltshire Council,Highways - Other Materials,Supplies and Services,CAPITAL
http://statistics.data.gov.uk/id/local-authority/00HY,Wiltshire Council,09/05/2013,1901045689,566.49,Andy Taxis Limited ,100874,SP4 ,Neighbourhood & Planning,Mainstream Secondary,Transport Contracts,Third Party Payments,REVENUE
http://statistics.data.gov.uk/id/local-authority/00HY,Wiltshire Council,09/05/2013,1901045689,793.03,Andy Taxis Limited ,100874,SP4 ,Neighbourhood & Planning,Mainstream Primary,Transport Contracts,Third Party Payments,REVENUE
http://statistics.data.gov.uk/id/local-authority/00HY,Wiltshire Council,02/05/2013,1901043907,3995.93,Andybus  and  Coach Ltd ,100132,SN16,Neighbourhood & Planning,Mainstream Primary,Transport Contracts,Third Party Payments,REVENUE
http://statistics.data.gov.uk/id/local-authority/00HY,Wiltshire Council,02/05/2013,1901043907,5070.01,Andybus  and  Coach Ltd ,100132,SN16,Neighbourhood & Planning,Mainstream 16+ Sec,Transport Contracts,Third Party Payments,REVENUE
http://statistics.data.gov.uk/id/local-authority/00HY,Wiltshire Council,02/05/2013,1901043907,19817.70,Andybus  and  Coach Ltd ,100132,SN16,Neighbourhood & Planning,Mainstream Secondary,Transport Contracts,Third Party Payments,REVENUE
http://statistics.data.gov.uk/id/local-authority/00HY,Wiltshire Council,02/05/2013,1901043907,41967.11,Andybus  and  Coach Ltd ,100132,SN16,Neighbourhood & Planning,Public Transport,Transport Contracts,Third Party Payments,REVENUE
http://statistics.data.gov.uk/id/local-authority/00HY,Wiltshire Council,02/05/2013,1901043912,268.26,Andybus  and  Coach Ltd ,100132,SN16,Neighbourhood & Planning,Mainstream Secondary,Transport Contracts,Third Party Payments,REVENUE
http://statistics.data.gov.uk/id/local-authority/00HY,Wiltshire Council,29/05/2013,1901061437,7457.50,Andybus  and  Coach Ltd ,100132,SN16,Neighbourhood & Planning,Concessionary Fares,Compensation for Concessionary fares,Third Party Payments,REVENUE
http://statistics.data.gov.uk/id/local-authority/00HY,Wiltshire Council,02/05/2013,5106296385,870.46,Andyvan ,110149,SP2 ,Neighbourhood & Planning,City Hall,Vending costs,Supplies and Services,REVENUE
http://statistics.data.gov.uk/id/local-authority/00HY,Wiltshire Council,16/05/2013,5106310455,387.55,ANGEL HOTEL CHIPPENHAM ,110150,SN15,Children & Education,EYLearnDevTm,Premises Rental / Hire Charges,Premises Related,REVENUE
http://statistics.data.gov.uk/id/local-authority/00HY,Wiltshire Council,16/05/2013,5106310631,367.92,ANGEL HOTEL CHIPPENHAM ,110150,SN15,Children & Education,EYLearnDevTm,Premises Rental / Hire Charges,Premises Related,REVENUE
http://statistics.data.gov.uk/id/local-authority/00HY,Wiltshire Council,17/05/2013,5106311071,800.00,Angelbeck Training Services ,113518,BS9 ,Community Services,DCS Orgnl Dev,Internal Training Costs,Employee Related,REVENUE
http://statistics.data.gov.uk/id/local-authority/00HY,Wiltshire Council,30/05/2013,5106309252,346.30,Antalis Limited ,122876,LE67,Resources,DesignPrintTrowbridg,Materials & Consumables (Non-Educational),Supplies and Services,REVENUE
http://statistics.data.gov.uk/id/local-authority/00HY,Wiltshire Council,31/05/2013,5106311701,346.30,Antalis Limited ,122876,LE67,Resources,DesignPrintTrowbridg,Materials & Consumables (Non-Educational),Supplies and Services,REVENUE
http://statistics.data.gov.uk/id/local-authority/00HY,Wiltshire Council,14/05/2013,5106309383,570.00,Anthony Brookes Surveys Ltd ,131975,BS35,Wiltshire Council,Wiltshire Council,Buildings Minor Alterations,Premises Related,CAPITAL
http://statistics.data.gov.uk/id/local-authority/00HY,Wiltshire Council,17/05/2013,1901056745,254.70,Anthony Chubb ,135249,BS3 ,Health & Wellbeing,Director Public Prot,Transport - Mileage & Fuel,Transport Related,REVENUE
http://statistics.data.gov.uk/id/local-authority/00HY,Wiltshire Council,17/05/2013,1901056700,1562.72,Aon Limited ,113554,LE1 ,Neighbourhood & Planning,Admin Hsg Management,Tenants� Contents Insurance,Premises Related,REVENUE
http://statistics.data.gov.uk/id/local-authority/00HY,Wiltshire Council,29/05/2013,1901060535,2574.35,Aon Limited ,113554,LE1 ,Neighbourhood & Planning,Admin Hsg Management,Tenants� Contents Insurance,Premises Related,REVENUE
http://statistics.data.gov.uk/id/local-authority/00HY,Wiltshire Council,23/05/2013,5106310133,390.00,APA Consultants Ltd ,113361,SN10,Neighbourhood & Planning,DevConCent,Other Professional Fees,Supplies and Services,REVENUE
http://statistics.data.gov.uk/id/local-authority/00HY,Wiltshire Council,22/05/2013,5106310220,600.00,APA Consultants Ltd ,113361,SN10,Neighbourhood & Planning,DevConCent,Other Professional Fees,Supplies and Services,REVENUE
http://statistics.data.gov.uk/id/local-authority/00HY,Wiltshire Council,15/05/2013,5106310349,390.00,APA Consultants Ltd ,113361,SN10,Neighbourhood & Planning,DevConCent,Other Professional Fees,Supplies and Services,REVENUE
http://statistics.data.gov.uk/id/local-authority/00HY,Wiltshire Council,09/05/2013,5106307561,282.99,Apex Radio Systems Ltd ,134594,NE15,Neighbourhood & Planning,Off Street Parking,Equipment Purchase,Supplies and Services,REVENUE
http://statistics.data.gov.uk/id/local-authority/00HY,Wiltshire Council,13/05/2013,1901046330,1369.36,APL Travel Limited ,100596,SN4 ,Neighbourhood & Planning,Mainstream Secondary,Transport Contracts,Third Party Payments,REVENUE
http://statistics.data.gov.uk/id/local-authority/00HY,Wiltshire Council,13/05/2013,1901046330,6494.45,APL Travel Limited ,100596,SN4 ,Neighbourhood & Planning,Public Transport,Transport Contracts,Third Party Payments,REVENUE
http://statistics.data.gov.uk/id/local-authority/00HY,Wiltshire Council,13/05/2013,1901046332,1589.34,APL Travel Limited ,100596,SN4 ,Neighbourhood & Planning,Mainstream Secondary,Transport Contracts,Third Party Payments,REVENUE
http://statistics.data.gov.uk/id/local-authority/00HY,Wiltshire Council,13/05/2013,1901046332,4059.95,APL Travel Limited ,100596,SN4 ,Neighbourhood & Planning,Public Transport,Transport Contracts,Third Party Payments,REVENUE
http://statistics.data.gov.uk/id/local-authority/00HY,Wiltshire Council,13/05/2013,1901046333,1446.18,APL Travel Limited ,100596,SN4 ,Neighbourhood & Planning,Mainstream Secondary,Transport Contracts,Third Party Payments,REVENUE
http://statistics.data.gov.uk/id/local-authority/00HY,Wiltshire Council,13/05/2013,1901046333,2711.12,APL Travel Limited ,100596,SN4 ,Neighbourhood & Planning,Mainstream 16+ FE,Transport Contracts,Third Party Payments,REVENUE
http://statistics.data.gov.uk/id/local-authority/00HY,Wiltshire Council,13/05/2013,1901046333,4709.93,APL Travel Limited ,100596,SN4 ,Neighbourhood & Planning,Public Transport,Transport Contracts,Third Party Payments,REVENUE
http://statistics.data.gov.uk/id/local-authority/00HY,Wiltshire Council,13/05/2013,1901046334,5723.11,APL Travel Limited ,100596,SN4 ,Neighbourhood & Planning,Mainstream Secondary,Transport Contracts,Third Party Payments,REVENUE
http://statistics.data.gov.uk/id/local-authority/00HY,Wiltshire Council,13/05/2013,1901046338,2755.35,APL Travel Limited ,100596,SN4 ,Neighbourhood & Planning,Mainstream Secondary,Transport Contracts,Third Party Payments,REVENUE
http://statistics.data.gov.uk/id/local-authority/00HY,Wiltshire Council,29/05/2013,1901061438,4505.07,APL Travel Limited ,100596,SN4 ,Neighbourhood & Planning,Concessionary Fares,Compensation for Concessionary fares,Third Party Payments,REVENUE
http://statistics.data.gov.uk/id/local-authority/00HY,Wiltshire Council,10/05/2013,5106307963,2100.00,Apricot Learning Online ,135069,GL%$,Children & Education,EOTAS Service,Educational Fees,Supplies and Services,REVENUE
http://statistics.data.gov.uk/id/local-authority/00HY,Wiltshire Council,08/05/2013,5106302906,2626.00,Arbory Residential Home ,113587,SP11,Community Services,MH OP East Locality,Adult Residential Placements - Spot Purchase,Third Party Payments,REVENUE
http://statistics.data.gov.uk/id/local-authority/00HY,Wiltshire Council,08/05/2013,5106303623,2094.92,Arch Care Services Ltd ,110169,BS21,Community Services,MH AOWA West,Adult Residential Placements - Spot Purchase,Third Party Payments,REVENUE
http://statistics.data.gov.uk/id/local-authority/00HY,Wiltshire Council,17/05/2013,5106311129,425.00,Archives and Records Association ,121179,TA1 ,Community Services,Her Archive Consvn,Staff Training Course Costs,Employee Related,REVENUE
http://statistics.data.gov.uk/id/local-authority/00HY,Wiltshire Council,02/05/2013,5106302317,282.56,Arco Ltd ,113593,HU1 ,Neighbourhood & Planning,Highways Supprt Team,Clothing and Uniform Purchase,Supplies and Services,REVENUE
http://statistics.data.gov.uk/id/local-authority/00HY,Wiltshire Council,13/05/2013,1901046291,405.96,Arrow Private Hire ,100574,SN8 ,Neighbourhood & Planning,Mainstream Primary,Transport Contracts,Third Party Payments,REVENUE
http://statistics.data.gov.uk/id/local-authority/00HY,Wiltshire Council,13/05/2013,1901046295,343.06,Arrow Private Hire ,100574,SN8 ,Neighbourhood & Planning,Mainstream 16+ Sec,Transport Contracts,Third Party Payments,REVENUE
http://statistics.data.gov.uk/id/local-authority/00HY,Wiltshire Council,13/05/2013,1901046296,486.37,Arrow Private Hire ,100574,SN8 ,Children & Education,SENTransport,Transport Contracts,Third Party Payments,REVENUE
http://statistics.data.gov.uk/id/local-authority/00HY,Wiltshire Council,13/05/2013,1901046296,486.37,Arrow Private Hire ,100574,SN8 ,Neighbourhood & Planning,SEN Rechargable Exp,Transport Contracts,Third Party Payments,REVENUE
http://statistics.data.gov.uk/id/local-authority/00HY,Wiltshire Council,13/05/2013,1901046297,781.15,Arrow Private Hire ,100574,SN8 ,Neighbourhood & Planning,Mainstream Secondary,Transport Contracts,Third Party Payments,REVENUE
http://statistics.data.gov.uk/id/local-authority/00HY,Wiltshire Council,13/05/2013,1901046298,952.18,Arrow Private Hire ,100574,SN8 ,Neighbourhood & Planning,Mainstream Secondary,Transport Contracts,Third Party Payments,REVENUE
http://statistics.data.gov.uk/id/local-authority/00HY,Wiltshire Council,31/05/2013,5106309253,265.00,Arrow Radiators (Melksham) Ltd ,125428,SN12,Neighbourhood & Planning,Fleet Operations,Vehicle 3rd Party Repairs,Transport Related,REVENUE
http://statistics.data.gov.uk/id/local-authority/00HY,Wiltshire Council,13/05/2013,5106298712,347.00,Arthur Ibbett Ltd ,113610,PE19,Neighbourhood & Planning,Fleet Operations,Vehicle Parts,Transport Related,REVENUE
http://statistics.data.gov.uk/id/local-authority/00HY,Wiltshire Council,20/05/2013,5106311497,1075.00,Arthur Williams Consulting Ltd ,129581,BA14,Wiltshire Council,Wiltshire Council,Buildings Minor Alterations,Premises Related,CAPITAL
http://statistics.data.gov.uk/id/local-authority/00HY,Wiltshire Council,20/05/2013,5106311498,960.00,Arthur Williams Consulting Ltd ,129581,BA14,Wiltshire Council,Wiltshire Council,Buildings Minor Alterations,Premises Related,CAPITAL
http://statistics.data.gov.uk/id/local-authority/00HY,Wiltshire Council,20/05/2013,5106311499,665.00,Arthur Williams Consulting Ltd ,129581,BA14,Wiltshire Council,Wiltshire Council,Buildings Minor Alterations,Premises Related,CAPITAL
http://statistics.data.gov.uk/id/local-authority/00HY,Wiltshire Council,24/05/2013,5106313081,464.57,Artifax Software Ltd ,110180,KT18,Resources,Applications SuppLOB,ICT - Support arrangements,Supplies and Services,REVENUE
http://statistics.data.gov.uk/id/local-authority/00HY,Wiltshire Council,08/05/2013,5106305459,2065.64,Ashbourne Court Care Home ,133906,SP10,Community Services,OP East Locality,Adult Care Nursing Placements- Spot Purchase,Third Party Payments,REVENUE
http://statistics.data.gov.uk/id/local-authority/00HY,Wiltshire Council,08/05/2013,5106305460,439.16,Ashbourne Court Care Home ,133906,SP10,Community Services,OP East FNC,Adult Care Funded Nursing Care - Loal Auth Clients,Third Party Payments,REVENUE
http://statistics.data.gov.uk/id/local-authority/00HY,Wiltshire Council,20/05/2013,5106311421,3750.00,Ashfords ,133080,TA1 ,Children & Education,HQ Social Care,Legal Fees,Supplies and Services,REVENUE
http://statistics.data.gov.uk/id/local-authority/00HY,Wiltshire Council,23/05/2013,5106312591,1485.35,Ashfords ,133080,TA1 ,Children & Education,HQ Social Care,Legal Fees,Supplies and Services,REVENUE
http://statistics.data.gov.uk/id/local-authority/00HY,Wiltshire Council,01/05/2013,1901042129,820.00,Ashfords Solicitors ,113641,EX1 ,Wiltshire Council,Wiltshire Council,Legal Fees,Supplies and Services,CAPITAL
http://statistics.data.gov.uk/id/local-authority/00HY,Wiltshire Council,28/05/2013,1901060475,865.12,Ashton Cabs ,101384,BA14,Children & Education,SENTransport,Transport Contracts,Third Party Payments,REVENUE
http://statistics.data.gov.uk/id/local-authority/00HY,Wiltshire Council,08/05/2013,5106305655,2590.84,Ashton House ,135013,RH16,Community Services,MH OP West Locality,Adult Care Nursing Placements- Spot Purchase,Third Party Payments,REVENUE
http://statistics.data.gov.uk/id/local-authority/00HY,Wiltshire Council,01/05/2013,5106302081,10000.00,Ask ,110189,BA14,Children & Education,Family&Parenting Sup,Educational Fees,Supplies and Services,REVENUE
http://statistics.data.gov.uk/id/local-authority/00HY,Wiltshire Council,08/05/2013,5106305710,3907.08,Aspects and Milestones Trust ,131150,BS23,Community Services,CTPLD County CIC U65,Adult Residential Placements - Spot Purchase,Third Party Payments,REVENUE
http://statistics.data.gov.uk/id/local-authority/00HY,Wiltshire Council,16/05/2013,1901056658,1430.24,Aspire Taxis ,101274,SP2 ,Children & Education,SENTransport,Transport Contracts,Third Party Payments,REVENUE
http://statistics.data.gov.uk/id/local-authority/00HY,Wiltshire Council,16/05/2013,1901056659,260.08,Aspire Taxis ,101274,SP2 ,Neighbourhood & Planning,Mainstream Secondary,Transport Contracts,Third Party Payments,REVENUE
http://statistics.data.gov.uk/id/local-authority/00HY,Wiltshire Council,16/05/2013,1901056661,520.63,Aspire Taxis ,101274,SP2 ,Children & Education,SENTransport,Transport Contracts,Third Party Payments,REVENUE
http://statistics.data.gov.uk/id/local-authority/00HY,Wiltshire Council,16/05/2013,1901056663,312.00,Aspire Taxis ,101274,SP2 ,Community Services,CTPLD County CIC U65,Transport Contracts,Third Party Payments,REVENUE
http://statistics.data.gov.uk/id/local-authority/00HY,Wiltshire Council,16/05/2013,1901056665,470.79,Aspire Taxis ,101274,SP2 ,Children & Education,SENTransport,Transport Contracts,Third Party Payments,REVENUE
http://statistics.data.gov.uk/id/local-authority/00HY,Wiltshire Council,16/05/2013,1901056670,759.90,Aspire Taxis ,101274,SP2 ,Neighbourhood & Planning,Mainstream Primary,Transport Contracts,Third Party Payments,REVENUE
http://statistics.data.gov.uk/id/local-authority/00HY,Wiltshire Council,22/05/2013,1901057562,849.83,Aspire Taxis ,101274,SP2 ,Neighbourhood & Planning,Mainstream Primary,Transport Contracts,Third Party Payments,REVENUE
http://statistics.data.gov.uk/id/local-authority/00HY,Wiltshire Council,23/05/2013,1901058866,487.17,Aspire Taxis ,101274,SP2 ,Community Services,PI South Locality,Transport Contracts,Third Party Payments,REVENUE
http://statistics.data.gov.uk/id/local-authority/00HY,Wiltshire Council,13/05/2013,1901042155,272.00,Aster Living ,112275,SN10,Wiltshire Council,Wiltshire Council,Other Professional Fees,Supplies and Services,CAPITAL
http://statistics.data.gov.uk/id/local-authority/00HY,Wiltshire Council,13/05/2013,1901042159,1077.00,Aster Living ,112275,SN10,Wiltshire Council,Wiltshire Council,Other Professional Fees,Supplies and Services,CAPITAL
http://statistics.data.gov.uk/id/local-authority/00HY,Wiltshire Council,13/05/2013,1901042164,500.00,Aster Living ,112275,SN10,Wiltshire Council,Wiltshire Council,Other Professional Fees,Supplies and Services,CAPITAL
http://statistics.data.gov.uk/id/local-authority/00HY,Wiltshire Council,02/05/2013,1901043267,5729.44,Aster Living ,112275,SN10,Community Services,PI East Locality,Adult Domiciliary Care - Spot Contribution,Income,REVENUE
http://statistics.data.gov.uk/id/local-authority/00HY,Wiltshire Council,02/05/2013,1901043380,500.00,Aster Living ,112275,SN10,Wiltshire Council,Wiltshire Council,Other Professional Fees,Supplies and Services,CAPITAL
http://statistics.data.gov.uk/id/local-authority/00HY,Wiltshire Council,02/05/2013,1901043600,650.00,Aster Living ,112275,SN10,Wiltshire Council,Wiltshire Council,Other Professional Fees,Supplies and Services,CAPITAL
http://statistics.data.gov.uk/id/local-authority/00HY,Wiltshire Council,02/05/2013,1901043601,500.00,Aster Living ,112275,SN10,Wiltshire Council,Wiltshire Council,Other Professional Fees,Supplies and Services,CAPITAL
http://statistics.data.gov.uk/id/local-authority/00HY,Wiltshire Council,02/05/2013,1901043604,500.00,Aster Living ,112275,SN10,Wiltshire Council,Wiltshire Council,Other Professional Fees,Supplies and Services,CAPITAL
http://statistics.data.gov.uk/id/local-authority/00HY,Wiltshire Council,02/05/2013,1901043868,650.00,Aster Living ,112275,SN10,Wiltshire Council,Wiltshire Council,Other Professional Fees,Supplies and Services,CAPITAL
http://statistics.data.gov.uk/id/local-authority/00HY,Wiltshire Council,02/05/2013,1901043886,1444.00,Aster Living ,112275,SN10,Wiltshire Council,Wiltshire Council,Other Professional Fees,Supplies and Services,CAPITAL
http://statistics.data.gov.uk/id/local-authority/00HY,Wiltshire Council,02/05/2013,1901043887,500.00,Aster Living ,112275,SN10,Wiltshire Council,Wiltshire Council,Other Professional Fees,Supplies and Services,CAPITAL
http://statistics.data.gov.uk/id/local-authority/00HY,Wiltshire Council,13/05/2013,1901043888,500.00,Aster Living ,112275,SN10,Wiltshire Council,Wiltshire Council,Other Professional Fees,Supplies and Services,CAPITAL
http://statistics.data.gov.uk/id/local-authority/00HY,Wiltshire Council,13/05/2013,1901043891,650.00,Aster Living ,112275,SN10,Wiltshire Council,Wiltshire Council,Other Professional Fees,Supplies and Services,CAPITAL
http://statistics.data.gov.uk/id/local-authority/00HY,Wiltshire Council,31/05/2013,1901059130,500.00,Aster Living ,112275,SN10,Wiltshire Council,Wiltshire Council,Other Professional Fees,Supplies and Services,CAPITAL
http://statistics.data.gov.uk/id/local-authority/00HY,Wiltshire Council,31/05/2013,1901060526,1020.20,Aster Living ,112275,SN10,Wiltshire Council,Wiltshire Council,Other Professional Fees,Supplies and Services,CAPITAL
http://statistics.data.gov.uk/id/local-authority/00HY,Wiltshire Council,08/05/2013,5106305538,2017.16,Astley House Care Centre ,133956,GL50,Community Services,MH OP North Locality,Adult Care Nursing Placements- Spot Purchase,Third Party Payments,REVENUE
http://statistics.data.gov.uk/id/local-authority/00HY,Wiltshire Council,08/05/2013,5106302978,2087.12,Aston House Care Home ,132321,DL3 ,Community Services,MH OP North Locality,Adult Residential Placements - Spot Purchase,Third Party Payments,REVENUE
http://statistics.data.gov.uk/id/local-authority/00HY,Wiltshire Council,21/05/2013,1901057078,213070.62,Atkins ,110197,KT18,Neighbourhood & Planning,Mouchel Contract,Highways Term - Consultant,Third Party Payments,REVENUE
http://statistics.data.gov.uk/id/local-authority/00HY,Wiltshire Council,30/05/2013,5106315807,11605.31,Ats Euromaster Ltd ,113709,B6 5,Neighbourhood & Planning,Fleet Operations,Vehicle 3rd Party Repairs,Transport Related,REVENUE
http://statistics.data.gov.uk/id/local-authority/00HY,Wiltshire Council,30/05/2013,5106315808,19921.69,Ats Euromaster Ltd ,113709,B6 5,Neighbourhood & Planning,Fleet Operations,Vehicle 3rd Party Repairs,Transport Related,REVENUE
http://statistics.data.gov.uk/id/local-authority/00HY,Wiltshire Council,17/05/2013,1901056751,3432.85,AudioGO Limited ,101157,BA2 ,Community Services,Lib General,Books,Supplies and Services,REVENUE
http://statistics.data.gov.uk/id/local-authority/00HY,Wiltshire Council,07/05/2013,5106298334,3063.30,Audley Care White Horse ,121958,SN8 ,Community Services,OP East Locality,Adult Domiciliary Care - Spot Contribution,Income,REVENUE
http://statistics.data.gov.uk/id/local-authority/00HY,Wiltshire Council,22/05/2013,5106312509,4281.48,Autism Care Wiltshire ,136507,SN25,Community Services,CTPLD County CIC U65,Adult Residential Placements - Spot Purchase,Third Party Payments,REVENUE
http://statistics.data.gov.uk/id/local-authority/00HY,Wiltshire Council,08/05/2013,5106303507,5882.68,Autism Specialised care Homes ,110205,BS10,Community Services,CTPLD County CIC U65,Adult Residential Placements - Spot Purchase,Third Party Payments,REVENUE
http://statistics.data.gov.uk/id/local-authority/00HY,Wiltshire Council,08/05/2013,5106303375,6086.08,Autism Wessex ,112911,BH23,Community Services,CTPLD County CIC U65,Adult Residential Placements - Spot Purchase,Third Party Payments,REVENUE
http://statistics.data.gov.uk/id/local-authority/00HY,Wiltshire Council,08/05/2013,5106302896,7180.12,Autism West Midlands ,110206,WR9 ,Community Services,CTPLD County CIC U65,Adult Residential Placements - Spot Purchase,Third Party Payments,REVENUE
http://statistics.data.gov.uk/id/local-authority/00HY,Wiltshire Council,01/05/2013,1901042168,744.00,Autodata Ltd ,113724,SL6 ,Neighbourhood & Planning,Fleet Gen Management,Professional Subscriptions/Memberships,Employee Related,REVENUE
http://statistics.data.gov.uk/id/local-authority/00HY,Wiltshire Council,10/05/2013,5106297289,250.14,Automotive Leasing Ltd ,113729,SL1 ,Neighbourhood & Planning,Fleet Operations,Commercial Leased Vehicles,Transport Related,REVENUE
http://statistics.data.gov.uk/id/local-authority/00HY,Wiltshire Council,10/05/2013,5106297300,266.49,Automotive Leasing Ltd ,113729,SL1 ,Neighbourhood & Planning,Fleet Operations,Commercial Leased Vehicles,Transport Related,REVENUE
http://statistics.data.gov.uk/id/local-authority/00HY,Wiltshire Council,08/05/2013,5106302773,2024.48,Avenue Care (Fareham) Ltd ,110691,SN10,Community Services,CTPLD County CIC U65,Adult Residential Placements - Spot Purchase,Third Party Payments,REVENUE
http://statistics.data.gov.uk/id/local-authority/00HY,Wiltshire Council,08/05/2013,5106305078,1952.60,Avenue Care (Fareham) Ltd ,110691,SN10,Community Services,MH OP East Locality,Adult Residential Placements - Spot Purchase,Third Party Payments,REVENUE
http://statistics.data.gov.uk/id/local-authority/00HY,Wiltshire Council,08/05/2013,5106306124,2101.40,Avenue Care (Fareham) Ltd ,110691,SN10,Community Services,MH OP West Locality,Adult Residential Placements - Spot Purchase,Third Party Payments,REVENUE
http://statistics.data.gov.uk/id/local-authority/00HY,Wiltshire Council,08/05/2013,5106302964,1923.04,"Avenue House, Dorchester ",133778,DT1 ,Community Services,OP East Locality,Adult Residential Placements - Spot Purchase,Third Party Payments,REVENUE
http://statistics.data.gov.uk/id/local-authority/00HY,Wiltshire Council,09/05/2013,1901045205,665.17,Avenue Surgery ,110214,BA12,Neighbourhood & Planning,Sexual Health Commun,Public Health Commissioning,Supplies and Services,REVENUE
http://statistics.data.gov.uk/id/local-authority/00HY,Wiltshire Council,09/05/2013,1901045206,267.29,Avenue Surgery ,110214,BA12,Neighbourhood & Planning,Sexual Health Commun,Public Health Commissioning,Supplies and Services,REVENUE
http://statistics.data.gov.uk/id/local-authority/00HY,Wiltshire Council,09/05/2013,1901045207,366.67,Avenue Surgery ,110214,BA12,Neighbourhood & Planning,Sexual Health Commun,Public Health Commissioning,Supplies and Services,REVENUE
http://statistics.data.gov.uk/id/local-authority/00HY,Wiltshire Council,20/05/2013,1901056974,3192.00,Avenue Surgery ,110214,BA12,Community Services,STARR Scheme,Other Professional Fees,Supplies and Services,REVENUE
http://statistics.data.gov.uk/id/local-authority/00HY,Wiltshire Council,13/05/2013,1901046376,1375.00,Avery Healthcare Cepen Lodge ,126733,SN14,Community Services,STARR Scheme,Adult Nursing Placements - transitional beds,Third Party Payments,REVENUE
http://statistics.data.gov.uk/id/local-authority/00HY,Wiltshire Council,08/05/2013,5106302443,357.16,Avery Healthcare Cepen Lodge ,126733,SN14,Community Services,OP West Locality,Adult Residential Placements - Spot Purchase,Third Party Payments,REVENUE
http://statistics.data.gov.uk/id/local-authority/00HY,Wiltshire Council,08/05/2013,5106304677,2187.08,Avery Healthcare Cepen Lodge ,126733,SN14,Community Services,OP North Locality,Adult Residential Placements - Spot Purchase,Third Party Payments,REVENUE
http://statistics.data.gov.uk/id/local-authority/00HY,Wiltshire Council,08/05/2013,5106304679,2187.08,Avery Healthcare Cepen Lodge ,126733,SN14,Community Services,OP North Locality,Adult Residential Placements - Spot Purchase,Third Party Payments,REVENUE
http://statistics.data.gov.uk/id/local-authority/00HY,Wiltshire Council,08/05/2013,5106304701,2325.84,Avery Healthcare Cepen Lodge ,126733,SN14,Community Services,OP West Locality,Adult Residential Placements - Spot Purchase,Third Party Payments,REVENUE
http://statistics.data.gov.uk/id/local-authority/00HY,Wiltshire Council,08/05/2013,5106304711,2081.00,Avery Healthcare Cepen Lodge ,126733,SN14,Community Services,MH OP North Locality,Adult Residential Placements - Spot Purchase,Third Party Payments,REVENUE
http://statistics.data.gov.uk/id/local-authority/00HY,Wiltshire Council,08/05/2013,5106304781,1928.68,Avery Healthcare Cepen Lodge ,126733,SN14,Community Services,OP North Locality,Adult Residential Placements - Spot Purchase,Third Party Payments,REVENUE
http://statistics.data.gov.uk/id/local-authority/00HY,Wiltshire Council,08/05/2013,5106304988,2081.00,Avery Healthcare Cepen Lodge ,126733,SN14,Community Services,MH OP West Locality,Adult Residential Placements - Spot Purchase,Third Party Payments,REVENUE
http://statistics.data.gov.uk/id/local-authority/00HY,Wiltshire Council,08/05/2013,5106304998,2173.48,Avery Healthcare Cepen Lodge ,126733,SN14,Community Services,MH OP North Locality,Adult Residential Placements - Spot Purchase,Third Party Payments,REVENUE
http://statistics.data.gov.uk/id/local-authority/00HY,Wiltshire Council,08/05/2013,5106305163,3434.00,Avery Healthcare Cepen Lodge ,126733,SN14,Community Services,OP North Locality,Adult Residential Placements - Spot Purchase,Third Party Payments,REVENUE
http://statistics.data.gov.uk/id/local-authority/00HY,Wiltshire Council,08/05/2013,5106305194,2187.08,Avery Healthcare Cepen Lodge ,126733,SN14,Community Services,MH OP North Locality,Adult Residential Placements - Spot Purchase,Third Party Payments,REVENUE
http://statistics.data.gov.uk/id/local-authority/00HY,Wiltshire Council,08/05/2013,5106305211,2081.00,Avery Healthcare Cepen Lodge ,126733,SN14,Community Services,OP North Locality,Adult Residential Placements - Spot Purchase,Third Party Payments,REVENUE
http://statistics.data.gov.uk/id/local-authority/00HY,Wiltshire Council,08/05/2013,5106305215,2187.08,Avery Healthcare Cepen Lodge ,126733,SN14,Community Services,OP North Locality,Adult Residential Placements - Spot Purchase,Third Party Payments,REVENUE
http://statistics.data.gov.uk/id/local-authority/00HY,Wiltshire Council,08/05/2013,5106305219,2187.08,Avery Healthcare Cepen Lodge ,126733,SN14,Community Services,OP North Locality,Adult Residential Placements - Spot Purchase,Third Party Payments,REVENUE
http://statistics.data.gov.uk/id/local-authority/00HY,Wiltshire Council,08/05/2013,5106305221,2187.08,Avery Healthcare Cepen Lodge ,126733,SN14,Community Services,OP North Locality,Adult Residential Placements - Spot Purchase,Third Party Payments,REVENUE
http://statistics.data.gov.uk/id/local-authority/00HY,Wiltshire Council,08/05/2013,5106305336,2089.16,Avery Healthcare Cepen Lodge ,126733,SN14,Community Services,OP West Locality,Adult Care Nursing Placements- Spot Purchase,Third Party Payments,REVENUE
http://statistics.data.gov.uk/id/local-authority/00HY,Wiltshire Council,08/05/2013,5106305903,3100.00,Avery Healthcare Cepen Lodge ,126733,SN14,Community Services,Home Loans,Adult Care - Home Loan Costs,Capital charges and Expenditure,REVENUE
http://statistics.data.gov.uk/id/local-authority/00HY,Wiltshire Council,08/05/2013,5106306088,2081.00,Avery Healthcare Cepen Lodge ,126733,SN14,Community Services,OP West Locality,Adult Residential Placements - Spot Purchase,Third Party Payments,REVENUE
http://statistics.data.gov.uk/id/local-authority/00HY,Wiltshire Council,08/05/2013,5106306372,2187.08,Avery Healthcare Cepen Lodge ,126733,SN14,Community Services,OP North Locality,Adult Residential Placements - Spot Purchase,Third Party Payments,REVENUE
http://statistics.data.gov.uk/id/local-authority/00HY,Wiltshire Council,08/05/2013,5106306548,2500.00,Avery Healthcare Cepen Lodge ,126733,SN14,Community Services,OP West Locality,Adult Residential Placements - Spot Purchase,Third Party Payments,REVENUE
http://statistics.data.gov.uk/id/local-authority/00HY,Wiltshire Council,08/05/2013,5106306770,743.20,Avery Healthcare Cepen Lodge ,126733,SN14,Community Services,OP North Locality,Adult Residential Placements - Spot Purchase,Third Party Payments,REVENUE
http://statistics.data.gov.uk/id/local-authority/00HY,Wiltshire Council,14/05/2013,5106310198,3978.75,Avery Healthcare Cepen Lodge ,126733,SN14,Community Services,OP North Locality,Adult Residential Respite contribution - Spot,Income,REVENUE
http://statistics.data.gov.uk/id/local-authority/00HY,Wiltshire Council,08/05/2013,5106305658,1919.64,Avery Healthcare Group - Acorn Lodg ,131308,CV10,Community Services,OP West Locality,Adult Residential Placements - Spot Purchase,Third Party Payments,REVENUE
http://statistics.data.gov.uk/id/local-authority/00HY,Wiltshire Council,09/05/2013,1901045363,15223.67,Avery Healthcare Ltd- Langford Sali ,112676,NN4 ,Community Services,FNC,Adult Care Funded Nursing Care - Out of County Cli,Third Party Payments,REVENUE
http://statistics.data.gov.uk/id/local-authority/00HY,Wiltshire Council,08/05/2013,5106302689,2621.16,Avery Healthcare Ltd- Langford Sali ,112676,NN4 ,Community Services,OP South Locality,Adult Care Nursing Placements- Spot Purchase,Third Party Payments,REVENUE
http://statistics.data.gov.uk/id/local-authority/00HY,Wiltshire Council,08/05/2013,5106302690,439.16,Avery Healthcare Ltd- Langford Sali ,112676,NN4 ,Community Services,OP South FNC,Adult Care Funded Nursing Care - Loal Auth Clients,Third Party Payments,REVENUE
http://statistics.data.gov.uk/id/local-authority/00HY,Wiltshire Council,08/05/2013,5106302695,2460.76,Avery Healthcare Ltd- Langford Sali ,112676,NN4 ,Community Services,MH OP South Locality,Adult Care Nursing Placements- Spot Purchase,Third Party Payments,REVENUE
http://statistics.data.gov.uk/id/local-authority/00HY,Wiltshire Council,08/05/2013,5106302696,439.16,Avery Healthcare Ltd- Langford Sali ,112676,NN4 ,Community Services,MH OA South FNC,Adult Care Funded Nursing Care - Loal Auth Clients,Third Party Payments,REVENUE
http://statistics.data.gov.uk/id/local-authority/00HY,Wiltshire Council,08/05/2013,5106304833,2621.16,Avery Healthcare Ltd- Langford Sali ,112676,NN4 ,Community Services,OP South Locality,Adult Care Nursing Placements- Spot Purchase,Third Party Payments,REVENUE
http://statistics.data.gov.uk/id/local-authority/00HY,Wiltshire Council,08/05/2013,5106304834,439.16,Avery Healthcare Ltd- Langford Sali ,112676,NN4 ,Community Services,OP South FNC,Adult Care Funded Nursing Care - Loal Auth Clients,Third Party Payments,REVENUE
http://statistics.data.gov.uk/id/local-authority/00HY,Wiltshire Council,08/05/2013,5106304875,2417.52,Avery Healthcare Ltd- Langford Sali ,112676,NN4 ,Community Services,MH OP South Locality,Adult Care Nursing Placements- Spot Purchase,Third Party Payments,REVENUE
http://statistics.data.gov.uk/id/local-authority/00HY,Wiltshire Council,08/05/2013,5106304876,439.16,Avery Healthcare Ltd- Langford Sali ,112676,NN4 ,Community Services,MH OA South FNC,Adult Care Funded Nursing Care - Loal Auth Clients,Third Party Payments,REVENUE
http://statistics.data.gov.uk/id/local-authority/00HY,Wiltshire Council,08/05/2013,5106305382,2315.20,Avery Healthcare Ltd- Langford Sali ,112676,NN4 ,Community Services,OP South Locality,Adult Care Nursing Placements- Spot Purchase,Third Party Payments,REVENUE
http://statistics.data.gov.uk/id/local-authority/00HY,Wiltshire Council,08/05/2013,5106305383,439.16,Avery Healthcare Ltd- Langford Sali ,112676,NN4 ,Community Services,OP South FNC,Adult Care Funded Nursing Care - Loal Auth Clients,Third Party Payments,REVENUE
http://statistics.data.gov.uk/id/local-authority/00HY,Wiltshire Council,03/05/2013,5106302488,1800.00,Avery Weigh-tronix ,127898,B66 ,Neighbourhood & Planning,Winter Maintenance,Equipment Maintenance,Supplies and Services,REVENUE
http://statistics.data.gov.uk/id/local-authority/00HY,Wiltshire Council,10/05/2013,5106309212,3220.00,Avery Weigh-tronix ,127898,B66 ,Neighbourhood & Planning,Winter Maintenance,Equipment Maintenance,Supplies and Services,REVENUE
http://statistics.data.gov.uk/id/local-authority/00HY,Wiltshire Council,20/05/2013,1901056980,10836.19,Avon and W Wilts MHC NHS Trust ,110216,BA1 ,Community Services,MH Management Fee,Contribution to Approved Social Workers,Supplies and Services,REVENUE
http://statistics.data.gov.uk/id/local-authority/00HY,Wiltshire Council,09/05/2013,1901045342,5348.40,Avon Care Homes Ltd - Sutton Veny H ,112612,BA5 ,Community Services,FNC,Adult Care Funded Nursing Care - Out of County Cli,Third Party Payments,REVENUE
http://statistics.data.gov.uk/id/local-authority/00HY,Wiltshire Council,13/05/2013,1901046344,1871.43,Avon Care Homes Ltd - Sutton Veny H ,112612,BA5 ,Community Services,STARR Scheme,Adult Nursing Placements - transitional beds,Third Party Payments,REVENUE
http://statistics.data.gov.uk/id/local-authority/00HY,Wiltshire Council,13/05/2013,1901046345,1871.43,Avon Care Homes Ltd - Sutton Veny H ,112612,BA5 ,Community Services,STARR Scheme,Adult Nursing Placements - transitional beds,Third Party Payments,REVENUE
http://statistics.data.gov.uk/id/local-authority/00HY,Wiltshire Council,13/05/2013,1901046346,428.58,Avon Care Homes Ltd - Sutton Veny H ,112612,BA5 ,Community Services,STARR Scheme,Adult Nursing Placements - transitional beds,Third Party Payments,REVENUE
http://statistics.data.gov.uk/id/local-authority/00HY,Wiltshire Council,13/05/2013,1901046373,771.43,Avon Care Homes Ltd - Sutton Veny H ,112612,BA5 ,Community Services,STARR Scheme,Adult Nursing Placements - transitional beds,Third Party Payments,REVENUE
http://statistics.data.gov.uk/id/local-authority/00HY,Wiltshire Council,08/05/2013,5106304768,1624.56,Avon Care Homes Ltd - Sutton Veny H ,112612,BA5 ,Community Services,OP West Locality,Adult Care Nursing Placements- Spot Purchase,Third Party Payments,REVENUE
http://statistics.data.gov.uk/id/local-authority/00HY,Wiltshire Council,08/05/2013,5106304769,439.16,Avon Care Homes Ltd - Sutton Veny H ,112612,BA5 ,Community Services,OP West FNC,Adult Care Funded Nursing Care - Loal Auth Clients,Third Party Payments,REVENUE
http://statistics.data.gov.uk/id/local-authority/00HY,Wiltshire Council,08/05/2013,5106304845,2041.96,Avon Care Homes Ltd - Sutton Veny H ,112612,BA5 ,Community Services,OP West Locality,Adult Care Nursing Placements- Spot Purchase,Third Party Payments,REVENUE
http://statistics.data.gov.uk/id/local-authority/00HY,Wiltshire Council,08/05/2013,5106304846,439.16,Avon Care Homes Ltd - Sutton Veny H ,112612,BA5 ,Community Services,OP West FNC,Adult Care Funded Nursing Care - Loal Auth Clients,Third Party Payments,REVENUE
http://statistics.data.gov.uk/id/local-authority/00HY,Wiltshire Council,08/05/2013,5106305091,2009.08,Avon Care Homes Ltd - Sutton Veny H ,112612,BA5 ,Community Services,OP South Locality,Adult Care Nursing Placements- Spot Purchase,Third Party Payments,REVENUE
http://statistics.data.gov.uk/id/local-authority/00HY,Wiltshire Council,08/05/2013,5106305092,439.16,Avon Care Homes Ltd - Sutton Veny H ,112612,BA5 ,Community Services,OP West FNC,Adult Care Funded Nursing Care - Loal Auth Clients,Third Party Payments,REVENUE
http://statistics.data.gov.uk/id/local-authority/00HY,Wiltshire Council,08/05/2013,5106305455,2243.72,Avon Care Homes Ltd - Sutton Veny H ,112612,BA5 ,Community Services,OP West Locality,Adult Care Nursing Placements- Spot Purchase,Third Party Payments,REVENUE
http://statistics.data.gov.uk/id/local-authority/00HY,Wiltshire Council,08/05/2013,5106305456,439.16,Avon Care Homes Ltd - Sutton Veny H ,112612,BA5 ,Community Services,OP West FNC,Adult Care Funded Nursing Care - Loal Auth Clients,Third Party Payments,REVENUE
http://statistics.data.gov.uk/id/local-authority/00HY,Wiltshire Council,08/05/2013,5106305520,3346.32,Avon Care Homes Ltd - Sutton Veny H ,112612,BA5 ,Community Services,OP West Locality,Adult Care Nursing Placements- Spot Purchase,Third Party Payments,REVENUE
http://statistics.data.gov.uk/id/local-authority/00HY,Wiltshire Council,08/05/2013,5106305907,2960.84,Avon Care Homes Ltd - Sutton Veny H ,112612,BA5 ,Community Services,Home Loans,Adult Care - Home Loan Costs,Capital charges and Expenditure,REVENUE
http://statistics.data.gov.uk/id/local-authority/00HY,Wiltshire Council,22/05/2013,5106312474,5506.80,Avon Care Homes Ltd - Sutton Veny H ,112612,BA5 ,Community Services,Home Loans,Adult Care - Home Loan Costs,Capital charges and Expenditure,REVENUE
http://statistics.data.gov.uk/id/local-authority/00HY,Wiltshire Council,22/05/2013,5106312475,1480.42,Avon Care Homes Ltd - Sutton Veny H ,112612,BA5 ,Community Services,Home Loans,Adult Care - Home Loan Costs,Capital charges and Expenditure,REVENUE
http://statistics.data.gov.uk/id/local-authority/00HY,Wiltshire Council,22/05/2013,5106312476,2960.84,Avon Care Homes Ltd - Sutton Veny H ,112612,BA5 ,Community Services,Home Loans,Adult Care - Home Loan Costs,Capital charges and Expenditure,REVENUE
http://statistics.data.gov.uk/id/local-authority/00HY,Wiltshire Council,22/05/2013,5106312477,2960.84,Avon Care Homes Ltd - Sutton Veny H ,112612,BA5 ,Community Services,Home Loans,Adult Care - Home Loan Costs,Capital charges and Expenditure,REVENUE
http://statistics.data.gov.uk/id/local-authority/00HY,Wiltshire Council,09/05/2013,1901045208,337.33,Avon Valley Practice ,131697,SN6 ,Neighbourhood & Planning,Sexual Health Commun,Public Health Commissioning,Supplies and Services,REVENUE
http://statistics.data.gov.uk/id/local-authority/00HY,Wiltshire Council,09/05/2013,1901045209,270.70,Avon Valley Practice ,131697,SN6 ,Neighbourhood & Planning,Sexual Health Commun,Public Health Commissioning,Supplies and Services,REVENUE
http://statistics.data.gov.uk/id/local-authority/00HY,Wiltshire Council,02/05/2013,1901043272,1500.00,Avoncare Homes Ltd - Wells Nursing ,114326,BA5 ,Community Services,STARR Scheme,Other Professional Fees,Supplies and Services,REVENUE
http://statistics.data.gov.uk/id/local-authority/00HY,Wiltshire Council,09/05/2013,1901045327,1337.10,Avoncare Homes Ltd - Wells Nursing ,114326,BA5 ,Community Services,FNC,Adult Care Funded Nursing Care - Out of County Cli,Third Party Payments,REVENUE
http://statistics.data.gov.uk/id/local-authority/00HY,Wiltshire Council,13/05/2013,1901046374,4000.00,Avoncare Homes Ltd - Wells Nursing ,114326,BA5 ,Community Services,STARR Scheme,Adult Nursing Placements - transitional beds,Third Party Payments,REVENUE
http://statistics.data.gov.uk/id/local-authority/00HY,Wiltshire Council,16/05/2013,1901055820,777.14,Avoncare Homes Ltd - Wells Nursing ,114326,BA5 ,Community Services,STARR Scheme,Adult Nursing Placements - transitional beds,Third Party Payments,REVENUE
http://statistics.data.gov.uk/id/local-authority/00HY,Wiltshire Council,16/05/2013,1901055824,625.00,Avoncare Homes Ltd - Wells Nursing ,114326,BA5 ,Community Services,STARR Scheme,Adult Nursing Placements - transitional beds,Third Party Payments,REVENUE
http://statistics.data.gov.uk/id/local-authority/00HY,Wiltshire Council,16/05/2013,1901055841,500.00,Avoncare Homes Ltd - Wells Nursing ,114326,BA5 ,Community Services,STARR Scheme,Adult Nursing Placements - transitional beds,Third Party Payments,REVENUE
http://statistics.data.gov.uk/id/local-authority/00HY,Wiltshire Council,01/05/2013,5106302171,4242.81,Avoncare Homes Ltd - Wells Nursing ,114326,BA5 ,Community Services,OP North Locality,Adult Residential Placements - 12 Week,Third Party Payments,REVENUE
http://statistics.data.gov.uk/id/local-authority/00HY,Wiltshire Council,01/05/2013,5106302174,900.00,Avoncare Homes Ltd - Wells Nursing ,114326,BA5 ,Community Services,OP North Locality,Adult Residential Placements - 12 Week,Third Party Payments,REVENUE
http://statistics.data.gov.uk/id/local-authority/00HY,Wiltshire Council,01/05/2013,5106302177,5657.08,Avoncare Homes Ltd - Wells Nursing ,114326,BA5 ,Community Services,OP North Locality,Adult Residential Placements - 12 Week,Third Party Payments,REVENUE
http://statistics.data.gov.uk/id/local-authority/00HY,Wiltshire Council,08/05/2013,5106304659,2106.04,Avoncare Homes Ltd - Wells Nursing ,114326,BA5 ,Community Services,OP North Locality,Adult Care Nursing Placements- Spot Purchase,Third Party Payments,REVENUE
http://statistics.data.gov.uk/id/local-authority/00HY,Wiltshire Council,08/05/2013,5106304660,439.16,Avoncare Homes Ltd - Wells Nursing ,114326,BA5 ,Community Services,OP North FNC,Adult Care Funded Nursing Care - Loal Auth Clients,Third Party Payments,REVENUE
http://statistics.data.gov.uk/id/local-authority/00HY,Wiltshire Council,08/05/2013,5106305312,2085.84,Avoncare Homes Ltd - Wells Nursing ,114326,BA5 ,Community Services,OP North Locality,Adult Care Nursing Placements- Spot Purchase,Third Party Payments,REVENUE
http://statistics.data.gov.uk/id/local-authority/00HY,Wiltshire Council,09/05/2013,1901045340,4457.00,Avonpark Village (Care Homes) Limit ,110227,BA2 ,Community Services,FNC,Adult Care Funded Nursing Care - Out of County Cli,Third Party Payments,REVENUE
http://statistics.data.gov.uk/id/local-authority/00HY,Wiltshire Council,08/05/2013,5106304695,2040.20,Avonpark Village (Care Homes) Limit ,110227,BA2 ,Community Services,MH OP West Locality,Adult Residential Placements - Spot Purchase,Third Party Payments,REVENUE
http://statistics.data.gov.uk/id/local-authority/00HY,Wiltshire Council,08/05/2013,5106304766,1991.24,Avonpark Village (Care Homes) Limit ,110227,BA2 ,Community Services,MH OP West Locality,Adult Residential Placements - Spot Purchase,Third Party Payments,REVENUE
http://statistics.data.gov.uk/id/local-authority/00HY,Wiltshire Council,08/05/2013,5106304964,1991.24,Avonpark Village (Care Homes) Limit ,110227,BA2 ,Community Services,MH OP West Locality,Adult Residential Placements - Spot Purchase,Third Party Payments,REVENUE
http://statistics.data.gov.uk/id/local-authority/00HY,Wiltshire Council,08/05/2013,5106304966,1991.24,Avonpark Village (Care Homes) Limit ,110227,BA2 ,Community Services,MH OP West Locality,Adult Residential Placements - Spot Purchase,Third Party Payments,REVENUE
http://statistics.data.gov.uk/id/local-authority/00HY,Wiltshire Council,08/05/2013,5106304976,1991.24,Avonpark Village (Care Homes) Limit ,110227,BA2 ,Community Services,OP West Locality,Adult Residential Placements - Spot Purchase,Third Party Payments,REVENUE
http://statistics.data.gov.uk/id/local-authority/00HY,Wiltshire Council,08/05/2013,5106304978,1991.24,Avonpark Village (Care Homes) Limit ,110227,BA2 ,Community Services,MH OP West Locality,Adult Residential Placements - Spot Purchase,Third Party Payments,REVENUE
http://statistics.data.gov.uk/id/local-authority/00HY,Wiltshire Council,08/05/2013,5106305050,1991.24,Avonpark Village (Care Homes) Limit ,110227,BA2 ,Community Services,MH OP West Locality,Adult Residential Placements - Spot Purchase,Third Party Payments,REVENUE
http://statistics.data.gov.uk/id/local-authority/00HY,Wiltshire Council,08/05/2013,5106305052,1991.24,Avonpark Village (Care Homes) Limit ,110227,BA2 ,Community Services,OP West Locality,Adult Residential Placements - Spot Purchase,Third Party Payments,REVENUE
http://statistics.data.gov.uk/id/local-authority/00HY,Wiltshire Council,08/05/2013,5106305062,1991.24,Avonpark Village (Care Homes) Limit ,110227,BA2 ,Community Services,OP West Locality,Adult Residential Placements - Spot Purchase,Third Party Payments,REVENUE
http://statistics.data.gov.uk/id/local-authority/00HY,Wiltshire Council,08/05/2013,5106305064,1897.40,Avonpark Village (Care Homes) Limit ,110227,BA2 ,Community Services,OP West Locality,Adult Residential Placements - Spot Purchase,Third Party Payments,REVENUE
http://statistics.data.gov.uk/id/local-authority/00HY,Wiltshire Council,08/05/2013,5106305070,1917.80,Avonpark Village (Care Homes) Limit ,110227,BA2 ,Community Services,OP West Locality,Adult Residential Placements - Spot Purchase,Third Party Payments,REVENUE
http://statistics.data.gov.uk/id/local-authority/00HY,Wiltshire Council,08/05/2013,5106305227,1958.60,Avonpark Village (Care Homes) Limit ,110227,BA2 ,Community Services,MH OP West Locality,Adult Residential Placements - Spot Purchase,Third Party Payments,REVENUE
http://statistics.data.gov.uk/id/local-authority/00HY,Wiltshire Council,08/05/2013,5106305253,1991.24,Avonpark Village (Care Homes) Limit ,110227,BA2 ,Community Services,OP West Locality,Adult Residential Placements - Spot Purchase,Third Party Payments,REVENUE
http://statistics.data.gov.uk/id/local-authority/00HY,Wiltshire Council,08/05/2013,5106305257,1991.24,Avonpark Village (Care Homes) Limit ,110227,BA2 ,Community Services,MH OP West Locality,Adult Residential Placements - Spot Purchase,Third Party Payments,REVENUE
http://statistics.data.gov.uk/id/local-authority/00HY,Wiltshire Council,08/05/2013,5106305358,2213.08,Avonpark Village (Care Homes) Limit ,110227,BA2 ,Community Services,OP East Locality,Adult Care Nursing Placements- Spot Purchase,Third Party Payments,REVENUE
http://statistics.data.gov.uk/id/local-authority/00HY,Wiltshire Council,08/05/2013,5106305359,439.16,Avonpark Village (Care Homes) Limit ,110227,BA2 ,Community Services,OP East FNC,Adult Care Funded Nursing Care - Loal Auth Clients,Third Party Payments,REVENUE
http://statistics.data.gov.uk/id/local-authority/00HY,Wiltshire Council,08/05/2013,5106305364,2519.12,Avonpark Village (Care Homes) Limit ,110227,BA2 ,Community Services,OP West Locality,Adult Care Nursing Placements- Spot Purchase,Third Party Payments,REVENUE
http://statistics.data.gov.uk/id/local-authority/00HY,Wiltshire Council,08/05/2013,5106305365,439.16,Avonpark Village (Care Homes) Limit ,110227,BA2 ,Community Services,OP West FNC,Adult Care Funded Nursing Care - Loal Auth Clients,Third Party Payments,REVENUE
http://statistics.data.gov.uk/id/local-authority/00HY,Wiltshire Council,08/05/2013,5106305367,2213.08,Avonpark Village (Care Homes) Limit ,110227,BA2 ,Community Services,OP West Locality,Adult Care Nursing Placements- Spot Purchase,Third Party Payments,REVENUE
http://statistics.data.gov.uk/id/local-authority/00HY,Wiltshire Council,08/05/2013,5106305368,439.16,Avonpark Village (Care Homes) Limit ,110227,BA2 ,Community Services,OP West FNC,Adult Care Funded Nursing Care - Loal Auth Clients,Third Party Payments,REVENUE
http://statistics.data.gov.uk/id/local-authority/00HY,Wiltshire Council,08/05/2013,5106305370,2213.08,Avonpark Village (Care Homes) Limit ,110227,BA2 ,Community Services,OP West Locality,Adult Care Nursing Placements- Spot Purchase,Third Party Payments,REVENUE
http://statistics.data.gov.uk/id/local-authority/00HY,Wiltshire Council,08/05/2013,5106305371,439.16,Avonpark Village (Care Homes) Limit ,110227,BA2 ,Community Services,OP West FNC,Adult Care Funded Nursing Care - Loal Auth Clients,Third Party Payments,REVENUE
http://statistics.data.gov.uk/id/local-authority/00HY,Wiltshire Council,08/05/2013,5106306058,1527.12,Avonpark Village (Care Homes) Limit ,110227,BA2 ,Community Services,MH OP West Locality,Adult Residential Placements - Spot Purchase,Third Party Payments,REVENUE
http://statistics.data.gov.uk/id/local-authority/00HY,Wiltshire Council,08/05/2013,5106306059,1018.08,Avonpark Village (Care Homes) Limit ,110227,BA2 ,Community Services,Section 117-PCT Clnt,Adult Residential Placements - Spot Purchase,Third Party Payments,REVENUE
http://statistics.data.gov.uk/id/local-authority/00HY,Wiltshire Council,28/05/2013,5106314148,1624.08,Avonpark Village (Care Homes) Limit ,110227,BA2 ,Community Services,MH OP West Locality,Adult Residential Placements - Spot Purchase,Third Party Payments,REVENUE
http://statistics.data.gov.uk/id/local-authority/00HY,Wiltshire Council,14/05/2013,5106310224,19689.47,Axiell  Ltd ,113771,NG8 ,Resources,Applications SuppLOB,ICT - Support arrangements,Supplies and Services,REVENUE
http://statistics.data.gov.uk/id/local-authority/00HY,Wiltshire Council,23/05/2013,5106312870,250.00,AYM - Association of YOT Managers L ,135055,BS2 ,Children & Education,YOS - Strat Man,Grants Paid to individuals for Tangible Benefits,Supplies and Services,REVENUE
http://statistics.data.gov.uk/id/local-authority/00HY,Wiltshire Council,21/05/2013,5106311627,454.94,Aztec Chemicals ,132467,CW1 ,Neighbourhood & Planning,Nrth Ops-Public Conv,Cleaning Materials - Buildings,Premises Related,REVENUE
http://statistics.data.gov.uk/id/local-authority/00HY,Wiltshire Council,03/05/2013,5106302543,2500.00,Azzurri Communications Ltd ,101309,WS9 ,Wiltshire Council,Wiltshire Council,Hardware Maintenance,Supplies and Services,CAPITAL
http://statistics.data.gov.uk/id/local-authority/00HY,Wiltshire Council,15/05/2013,5106306702,547.66,Azzurri Communications Ltd ,101309,WS9 ,Resources,WAN,ICT - Support arrangements,Supplies and Services,REVENUE
http://statistics.data.gov.uk/id/local-authority/00HY,Wiltshire Council,01/05/2013,1901042088,750.00,B & M Windows  and  Doors Ltd ,101694,SP2 ,Neighbourhood & Planning,Housing Rprs Simdell,Premises Related Other Maintenance Costs,Premises Related,REVENUE
http://statistics.data.gov.uk/id/local-authority/00HY,Wiltshire Council,14/05/2013,1901046929,582.94,B & M Windows  and  Doors Ltd ,101694,SP2 ,Neighbourhood & Planning,Housing Rprs Simdell,Premises Related Other Maintenance Costs,Premises Related,REVENUE
http://statistics.data.gov.uk/id/local-authority/00HY,Wiltshire Council,14/05/2013,1901046937,430.04,B & M Windows  and  Doors Ltd ,101694,SP2 ,Neighbourhood & Planning,Housing Rprs Simdell,Premises Related Other Maintenance Costs,Premises Related,REVENUE
http://statistics.data.gov.uk/id/local-authority/00HY,Wiltshire Council,30/05/2013,1901061654,650.00,B & M Windows  and  Doors Ltd ,101694,SP2 ,Neighbourhood & Planning,Housing Rprs Simdell,Premises Related Other Maintenance Costs,Premises Related,REVENUE
http://statistics.data.gov.uk/id/local-authority/00HY,Wiltshire Council,30/05/2013,1901061657,440.00,B & M Windows  and  Doors Ltd ,101694,SP2 ,Neighbourhood & Planning,Housing Rprs Simdell,Premises Related Other Maintenance Costs,Premises Related,REVENUE
http://statistics.data.gov.uk/id/local-authority/00HY,Wiltshire Council,30/05/2013,1901061659,369.20,B & M Windows  and  Doors Ltd ,101694,SP2 ,Neighbourhood & Planning,Housing Rprs Simdell,Non responsive repairs - General,Premises Related,REVENUE
http://statistics.data.gov.uk/id/local-authority/00HY,Wiltshire Council,30/05/2013,1901061665,300.45,B & M Windows  and  Doors Ltd ,101694,SP2 ,Neighbourhood & Planning,Housing Rprs Simdell,Premises Related Other Maintenance Costs,Premises Related,REVENUE
http://statistics.data.gov.uk/id/local-authority/00HY,Wiltshire Council,30/05/2013,1901061666,407.75,B & M Windows  and  Doors Ltd ,101694,SP2 ,Neighbourhood & Planning,Housing Rprs Simdell,Non responsive repairs - General,Premises Related,REVENUE
http://statistics.data.gov.uk/id/local-authority/00HY,Wiltshire Council,30/05/2013,1901061667,430.04,B & M Windows  and  Doors Ltd ,101694,SP2 ,Neighbourhood & Planning,Housing Rprs Simdell,Premises Related Other Maintenance Costs,Premises Related,REVENUE
http://statistics.data.gov.uk/id/local-authority/00HY,Wiltshire Council,30/05/2013,1901061668,288.00,B & M Windows  and  Doors Ltd ,101694,SP2 ,Neighbourhood & Planning,Housing Rprs Simdell,Premises Related Other Maintenance Costs,Premises Related,REVENUE
http://statistics.data.gov.uk/id/local-authority/00HY,Wiltshire Council,30/05/2013,1901061673,396.90,B & M Windows  and  Doors Ltd ,101694,SP2 ,Neighbourhood & Planning,Housing Rprs Simdell,Premises Related Other Maintenance Costs,Premises Related,REVENUE
http://statistics.data.gov.uk/id/local-authority/00HY,Wiltshire Council,30/05/2013,1901061741,396.90,B & M Windows  and  Doors Ltd ,101694,SP2 ,Neighbourhood & Planning,Housing Rprs Simdell,Premises Related Other Maintenance Costs,Premises Related,REVENUE
http://statistics.data.gov.uk/id/local-authority/00HY,Wiltshire Council,30/05/2013,1901061744,316.43,B & M Windows  and  Doors Ltd ,101694,SP2 ,Neighbourhood & Planning,Housing Rprs Simdell,Premises Related Other Maintenance Costs,Premises Related,REVENUE
http://statistics.data.gov.uk/id/local-authority/00HY,Wiltshire Council,30/05/2013,1901061745,264.60,B & M Windows  and  Doors Ltd ,101694,SP2 ,Neighbourhood & Planning,Housing Rprs Simdell,Premises Related Other Maintenance Costs,Premises Related,REVENUE
http://statistics.data.gov.uk/id/local-authority/00HY,Wiltshire Council,30/05/2013,1901061747,255.85,B & M Windows  and  Doors Ltd ,101694,SP2 ,Neighbourhood & Planning,Housing Rprs Simdell,Premises Related Other Maintenance Costs,Premises Related,REVENUE
http://statistics.data.gov.uk/id/local-authority/00HY,Wiltshire Council,31/05/2013,5106315967,315.42,B & M Windows  and  Doors Ltd ,101694,SP2 ,Neighbourhood & Planning,Housg Mtc Trading Ac,Equipment Purchase,Supplies and Services,REVENUE
http://statistics.data.gov.uk/id/local-authority/00HY,Wiltshire Council,17/05/2013,1901056701,2140.35,B J Mailing Services ,110239,BH21,Neighbourhood & Planning,Admin Hsg Management,Postage,Supplies and Services,REVENUE
http://statistics.data.gov.uk/id/local-authority/00HY,Wiltshire Council,17/05/2013,5106311265,377.42,B S Mowers Ltd ,123988,BS30,Neighbourhood & Planning,Fleet Operations,Vehicle Parts,Transport Related,REVENUE
http://statistics.data.gov.uk/id/local-authority/00HY,Wiltshire Council,02/05/2013,1901043927,3010.40,B Y B Travel Ltd ,101145,BA15,Neighbourhood & Planning,Mainstream Secondary,Transport Contract -  Bus Season Tickets,Third Party Payments,REVENUE
http://statistics.data.gov.uk/id/local-authority/00HY,Wiltshire Council,02/05/2013,1901043928,5732.00,B Y B Travel Ltd ,101145,BA15,Neighbourhood & Planning,Mainstream 16+ FE,Transport Contract -  Bus Season Tickets,Third Party Payments,REVENUE
http://statistics.data.gov.uk/id/local-authority/00HY,Wiltshire Council,02/05/2013,1901043929,10808.00,B Y B Travel Ltd ,101145,BA15,Neighbourhood & Planning,Mainstream 16+ FE,Transport Contract -  Bus Season Tickets,Third Party Payments,REVENUE
http://statistics.data.gov.uk/id/local-authority/00HY,Wiltshire Council,02/05/2013,1901043933,5141.34,B Y B Travel Ltd ,101145,BA15,Neighbourhood & Planning,Mainstream 16+ FE,Transport Contracts,Third Party Payments,REVENUE
http://statistics.data.gov.uk/id/local-authority/00HY,Wiltshire Council,24/05/2013,1901046851,3938.75,B3Burgess Ltd ,134322,CF10,Wiltshire Council,Wiltshire Council,Buildings Minor Alterations,Premises Related,CAPITAL
http://statistics.data.gov.uk/id/local-authority/00HY,Wiltshire Council,24/05/2013,5106307566,6000.00,B3Burgess Ltd ,134322,CF10,Wiltshire Council,Wiltshire Council,Buildings Minor Alterations,Premises Related,CAPITAL
http://statistics.data.gov.uk/id/local-authority/00HY,Wiltshire Council,24/05/2013,5106307951,7150.00,B3Burgess Ltd ,134322,CF10,Wiltshire Council,Wiltshire Council,Buildings Minor Alterations,Premises Related,CAPITAL
http://statistics.data.gov.uk/id/local-authority/00HY,Wiltshire Council,16/05/2013,5106310236,4305.00,B3Burgess Ltd ,134322,CF10,Wiltshire Council,Wiltshire Council,Buildings Minor Alterations,Premises Related,CAPITAL
http://statistics.data.gov.uk/id/local-authority/00HY,Wiltshire Council,22/05/2013,5106311821,14351.00,B3Burgess Ltd ,134322,CF10,Wiltshire Council,Wiltshire Council,Buildings Minor Alterations,Premises Related,CAPITAL
